Service Area,Service Division,Expense Type,Expense Code,Detailed Expense Type,Payment Date,Transaction Number,Amount Exc VAT,Supplier Name
Neighbourhoods and Climate Change,Environmental Services,Supplies and Services,338066,Services,02/10/2023,4185030-669,"2,058.00",4NATURE LTD.
Regeneration Economy and Growth,Corporate Property and Land,Third Party Payments,430100,Rendered by Private Contractors,02/10/2023,4185031-9503,"1,296.00",A19 DRILLING LTD.
Neighbourhoods and Climate Change,Community Protection,Supplies and Services,338027,Services,02/10/2023,4185035-28537267,"6,480.00",AECOM LTD.
Regeneration Economy and Growth,Culture Sport and Tourism,Supplies and Services,312013,Newspapers books and periodicals E312,02/10/2023,4185048-6938992,747.48,ASKEWS & HOLTS LIBRARY SERVICES LTD.
Neighbourhoods and Climate Change,Highways,Construction work A908,908105,Construction work,02/10/2023,4185053-115886,"3,600.00",BAYDALE CONTROL SYSTEMS LTD.
Resources BK0010,Legal & Democratic Services,Supplies and Services,338057,Services,02/10/2023,4185060-2460,894.00,BIOFORTUNA LTD.
Regeneration Economy and Growth,Culture Sport and Tourism,Supplies and Services,312013,Newspapers books and periodicals E312,02/10/2023,4185062-168121,675.97,BOLINDA DIGITAL LTD.
Children and Young Peoples Services,Head of Education and Skills,Supplies and Services,338035,Services,02/10/2023,4185079-806410110,710.00,CITY & GUILDS OF LONDON INSTITUTE.
Regeneration Economy and Growth,Corporate Property and Land,Supplies and Services,304221,Equipment and Materials,02/10/2023,4185081-2852ABW428,668.04,CITY PLUMBING SUPPLIES HOLDINGS LTD.
Adult and Health Services,Public Health CC0450,Third Party Payments,460803,Contract Payments,02/10/2023,4185098-3910022454,"180,916.00",COUNTY DURHAM & DARLINGTON NHS FOUNDATION TRUST (CDDFT).
Resources BK0010,Digital Services,Supplies and Services,342033,Computers and Communications,02/10/2023,4185105-7402945897,818.22,DELL COMPUTER CORPORATION LTD.
Resources BK0010,Digital Services,Supplies and Services,342033,Computers and Communications,02/10/2023,4185105-7402945898,"3,402.00",DELL COMPUTER CORPORATION LTD.
Resources BK0010,Digital Services,Supplies and Services,342051,Computers and Communications,02/10/2023,4185112-9343,"106,250.84",DOCUMATION SOFTWARE LTD.
Neighbourhoods and Climate Change,Partnerships & Community Engagement Div.,Supplies and Services,384086,Miscellaneous Expenses,02/10/2023,4185122-VOUCHER23NB-BASH012,"1,125.00",DURHAM ALLIANCE FOR COMMUNITY CARE.
Neighbourhoods and Climate Change,Community Protection,Supplies and Services,338099,Services,02/10/2023,4185126-HIREAUGUST23,945.00,DURHAM ST NICHOLAS PCC.
Regeneration Economy and Growth,Corporate Property and Land,Supplies and Services,304221,Equipment and Materials,02/10/2023,4185130-059-324913,"1,980.00",EDMUNDSON ELECTRICAL LTD.
Regeneration Economy and Growth,Corporate Property and Land,Supplies and Services,304221,Equipment and Materials,02/10/2023,4185130-059-324926,787.91,EDMUNDSON ELECTRICAL LTD.
Regeneration Economy and Growth,Corporate Property and Land,Supplies and Services,304221,Equipment and Materials,02/10/2023,4185131-059-324947,"1,039.12",EDMUNDSON ELECTRICAL LTD.
Adult and Health Services,Head of Adults,Third Party Payments,478151,Purchase of Care,02/10/2023,4185140-ECS640-23,"1,242.00",ESSENTIAL CARE & SUPPORT LTD.
Neighbourhoods and Climate Change,Environmental Services,Third Party Payments,430120,Rendered by Private Contractors,02/10/2023,4185145-SINVO134454,869.17,FINNING (UK) LTD.
Adult and Health Services,Head of Adults,Transport,230005,Contract Hire,02/10/2023,4185154-103624,518.31,G & P JOHNSON LTD T/A NIGHTINGALE COACHES.
Adult and Health Services,Public Health CC0450,Third Party Payments,460803,Contract Payments,02/10/2023,4185157-7610023778,"66,258.00",GATESHEAD HEALTH NHS FOUNDATION TRUST.
Resources BK0010,Digital Services,Supplies and Services,342033,Computers and Communications,02/10/2023,4185158-800535,"2,172.00",GETECH LTD.
Neighbourhoods and Climate Change,Highways,Third Party Payments,430128,Rendered by Private Contractors,02/10/2023,4185159-1322,849.00,GH & RG STOBBS.
Neighbourhoods and Climate Change,Highways,Supplies and Services,304221,Equipment and Materials,02/10/2023,4185162-06/238306,639.60,GREENHAM TRADING LTD.
Neighbourhoods and Climate Change,Highways,Stock A926,926900,Stock in hand-Inventory system,02/10/2023,4185162-06/238378,951.72,GREENHAM TRADING LTD.
Regeneration Economy and Growth,Culture Sport and Tourism,Premises,145023,Cleaning and Domestic Supplies,02/10/2023,4185162-06/238391,900.36,GREENHAM TRADING LTD.
Neighbourhoods and Climate Change,Highways,Stock A926,926900,Stock in hand-Inventory system,02/10/2023,4185162-06/238569,"5,898.34",GREENHAM TRADING LTD.
Neighbourhoods and Climate Change,Environmental Services,Supplies and Services,304221,Equipment and Materials,02/10/2023,4185164-282647,"3,894.84",GREENLAY T/A THOMAS SHERRIFF & CO LTD.
Children and Young Peoples Services,Head of Early Help Inclusion & Vulnerable Children.,Supplies and Services,384409,Miscellaneous Expenses,02/10/2023,4185171-HH-CIC-0007,"2,216.00",HAYSTAX HUB CIC.
Resources BK0010,Corporate Finance & Commercial Services,Supplies and Services,338066,Services,02/10/2023,4185184-6053,"8,133.60",HW CONTROLS & ASSURANCE LTD T/A VALIDERA.
Neighbourhoods and Climate Change,Highways,Supplies and Services,304221,Equipment and Materials,02/10/2023,4185186-400050600,"20,955.29",ICL UK SALES LTD (CLEVELAND POTASH LTD).
Neighbourhoods and Climate Change,Highways,Supplies and Services,304221,Equipment and Materials,02/10/2023,4185186-400050601,"9,769.96",ICL UK SALES LTD (CLEVELAND POTASH LTD).
Neighbourhoods and Climate Change,Highways,Construction work A908,908105,Construction work,02/10/2023,4185197-28204,"1,480.56",JACK COUPE & SONS LTD T/A COUPE LINE.
Regeneration Economy and Growth,Corporate Property and Land,Supplies and Services,304221,Equipment and Materials,02/10/2023,4185208-0113/00051513,"1,234.31",JT DOVE LTD.
Regeneration Economy and Growth,Corporate Property and Land,Supplies and Services,304221,Equipment and Materials,02/10/2023,4185208-0213/01010690,"3,358.87",JT DOVE LTD.
Neighbourhoods and Climate Change,Highways,Third Party Payments,460503,Contract Payments,02/10/2023,4185211-INV-0010,"6,703.20",KERBO CHARGE LTD.
Neighbourhoods and Climate Change,Environmental Services,Supplies and Services,304999,Equipment and Materials,02/10/2023,4185212-SI02-0408590,"1,228.80",KILLGERM CHEMICALS LTD.
Children and Young Peoples Services,Head of Education and Skills,Supplies and Services,338027,Services,02/10/2023,4185214-040723-09,"1,719.00",KNETIC LTD.
Children and Young Peoples Services,Head of Education and Skills,Supplies and Services,338027,Services,02/10/2023,4185214-040723-10,"1,031.40",KNETIC LTD.
Children and Young Peoples Services,Head of Education and Skills,Supplies and Services,338027,Services,02/10/2023,4185214-040723-11,"2,544.12",KNETIC LTD.
Neighbourhoods and Climate Change,Environmental Services,Construction work A908,908105,Construction work,02/10/2023,4185215-210079,"5,223.01",KOMPAN SCOTLAND LTD.
Neighbourhoods and Climate Change,Environmental Services,Construction work A908,908105,Construction work,02/10/2023,4185215-210081,"27,848.81",KOMPAN SCOTLAND LTD.
Regeneration Economy and Growth,Corporate Property and Land,Supplies and Services,304221,Equipment and Materials,02/10/2023,4185223-107001,618.00,LEISURETEQ LTD.
Neighbourhoods and Climate Change,Environmental Services,Supplies and Services,304221,Equipment and Materials,02/10/2023,4185228-568384,"5,190.00",LLOYD LTD.
Resources BK0010,Transactional & Customer Services,Supplies and Services,338099,Services,02/10/2023,4185229-120085016,"10,409.78",LLOYDS BANK PLC.
Resources BK0010,Digital Services,Supplies and Services,342033,Computers and Communications,02/10/2023,4185235-12660226,"2,455.20",MAINTEL EUROPE LTD.
Non-Service Specific,Insurances,Expenditure 8INSEX,810001,Insurance Expenditure,02/10/2023,4185237-7742050,"6,600.00",MARSH LTD UK.
Neighbourhoods and Climate Change,Environmental Services,Vehicles Equipment Furniture and Fittings,912529,Purchase-equipment,02/10/2023,4185238-INV243171,776.26,MARTON GEOTECHNICAL SERVICES LTD.
Children and Young Peoples Services,Head of Education and Skills,Supplies and Services,384199,Miscellaneous Expenses,02/10/2023,4185242-INV-2907,"1,500.00",MID NITE EXPRESS.
Regeneration Economy and Growth,Corporate Property and Land,Third Party Payments,430100,Rendered by Private Contractors,02/10/2023,4185256-861512,"2,199.60",NATIONWIDE CHIMNEY COMPONENTS LTD.
Adult and Health Services,Adults Excluded,Supplies and Services,338027,Services,02/10/2023,4185260-1800012016784,"9,000.00",NEWCASTLE UPON TYNE CITY COUNCIL.
Adult and Health Services,Adults Excluded,Supplies and Services,338027,Services,02/10/2023,4185261-1800012016772,"10,500.00",NEWCASTLE UPON TYNE CITY COUNCIL.
Regeneration Economy and Growth,Planning & Housing,Supplies and Services,336005,Advertising E336,02/10/2023,4185262-43515230,910.99,NEWSQUEST (YORKSHIRE & NORTH EAST) LTD.
Neighbourhoods and Climate Change,Highways,Construction work A908,908105,Construction work,02/10/2023,4185262-43600525,"1,226.98",NEWSQUEST (YORKSHIRE & NORTH EAST) LTD.
Regeneration Economy and Growth,Corporate Property and Land,Supplies and Services,304221,Equipment and Materials,02/10/2023,4185267-1065186,624.00,NORTHERN TOOLS & ACCESSORIES.
Regeneration Economy and Growth,Corporate Property and Land,Supplies and Services,304221,Equipment and Materials,02/10/2023,4185267-1065190,"1,284.00",NORTHERN TOOLS & ACCESSORIES.
Regeneration Economy and Growth,Corporate Property and Land,Supplies and Services,304221,Equipment and Materials,02/10/2023,4185267-1065215,624.00,NORTHERN TOOLS & ACCESSORIES.
Regeneration Economy and Growth,Corporate Property and Land,Third Party Payments,430100,Rendered by Private Contractors,02/10/2023,4185271-12304-27,"1,367.54",OPUS BUILDING SERVICES LTD.
Regeneration Economy and Growth,Corporate Property and Land,Third Party Payments,430100,Rendered by Private Contractors,02/10/2023,4185271-12304-28,"1,469.30",OPUS BUILDING SERVICES LTD.
Regeneration Economy and Growth,Corporate Property and Land,Third Party Payments,430100,Rendered by Private Contractors,02/10/2023,4185271-12304-29,"1,330.46",OPUS BUILDING SERVICES LTD.
Regeneration Economy and Growth,Corporate Property and Land,Third Party Payments,430100,Rendered by Private Contractors,02/10/2023,4185271-12304-30,"1,330.46",OPUS BUILDING SERVICES LTD.
Regeneration Economy and Growth,Corporate Property and Land,Third Party Payments,430100,Rendered by Private Contractors,02/10/2023,4185271-12304-32,"1,389.68",OPUS BUILDING SERVICES LTD.
Children and Young Peoples Services,Head of Education and Skills,Supplies and Services,384199,Miscellaneous Expenses,02/10/2023,4185274-PP00672,"1,210.00",PACT PRINT LTD.
Neighbourhoods and Climate Change,Highways,Stock A926,926900,Stock in hand-Inventory system,02/10/2023,4185277-XL307067,"1,624.20",PARK ELECTRICAL DISTRIBUTORS LTD.
Adult and Health Services,Head of Adults,Third Party Payments,478151,Purchase of Care,02/10/2023,4185283-77002715,"2,842.02",POTENSIAL LTD T/A POTENS.
Neighbourhoods and Climate Change,Environmental Services,Supplies and Services,304259,Equipment and Materials,02/10/2023,4185286-2123028252,"2,047.20",PRECIA-MOLEN UK LTD T/A SHERING WEIGHING LTD.
Children and Young Peoples Services,Head of Education and Skills,Construction work A908,908105,Construction work,02/10/2023,4185311-7660,"35,820.00",SAFE STRIP UK LTD.
Adult and Health Services,Head of Adults,Supplies and Services,338066,Services,02/10/2023,4185321-SHAH442,716.20,SHAH MEDICAL SERVICES LTD.
Regeneration Economy and Growth,Corporate Property and Land,Supplies and Services,304221,Equipment and Materials,02/10/2023,4185325-36115268,"1,305.79",SIG AIR HANDLING UK LTD T/A SK SALES.
Children and Young Peoples Services,Head of Early Help Inclusion & Vulnerable Children.,Supplies and Services,384409,Miscellaneous Expenses,02/10/2023,4185327-1337,"41,600.00",SJ SSC LIMITED T/A SPORTSCOOL DURHAM.
Regeneration Economy and Growth,Corporate Property and Land,Premises,120009,Energy Costs,02/10/2023,4185330-591908264,"4,173.21",SOUTHERN ELECTRIC.*
Regeneration Economy and Growth,Corporate Property and Land,Premises,120009,Energy Costs,02/10/2023,4185330-591908264/0002,"4,072.42",SOUTHERN ELECTRIC.*
Resources BK0010,Legal & Democratic Services,Supplies and Services,338025,Services,02/10/2023,4185336-13460,"1,720.00",STUART WRIGHT FUNERAL SERVICE LTD.
Neighbourhoods and Climate Change,Environmental Services,Supplies and Services,342033,Computers and Communications,02/10/2023,4185338-146398,"41,218.27",SWITCHSHOP LTD.
Regeneration Economy and Growth,Corporate Property and Land,Supplies and Services,304221,Equipment and Materials,02/10/2023,4185340-1065118,"1,539.56",T CROSSLING & CO LTD.
Regeneration Economy and Growth,Corporate Property and Land,Supplies and Services,304221,Equipment and Materials,02/10/2023,4185340-1065231,618.20,T CROSSLING & CO LTD.
Neighbourhoods and Climate Change,Highways,Supplies and Services,304221,Equipment and Materials,02/10/2023,4185343-9047436222,"1,236.72",TARMAC TRADING LTD.
Neighbourhoods and Climate Change,Highways,Supplies and Services,304221,Equipment and Materials,02/10/2023,4185343-9047446734,873.00,TARMAC TRADING LTD.
Children and Young Peoples Services,Head of Early Help Inclusion & Vulnerable Children.,Premises,150005,Apportioned Exps of Operational Blds,02/10/2023,4185350-7251,"2,763.00",THE DURHAM CENTRE LTD.
Regeneration Economy and Growth,Business Durham,Supplies and Services,344033,Telephones,02/10/2023,4185357-005427799,"1,172.82",THE PHONE CO-OP.
Regeneration Economy and Growth,Corporate Property and Land,Supplies and Services,304221,Equipment and Materials,02/10/2023,4185364-11147409,"1,039.91",TRADECHOICE DISTRIBUTION LTD.
Neighbourhoods and Climate Change,Environmental Services,Supplies and Services,304999,Equipment and Materials,02/10/2023,4185367-65716,"5,035.20",TURF CARE SPECIALISTS LTD.
Neighbourhoods and Climate Change,Environmental Services,Supplies and Services,304999,Equipment and Materials,02/10/2023,4185367-65717,"5,263.20",TURF CARE SPECIALISTS LTD.
Regeneration Economy and Growth,Culture Sport and Tourism,Construction work A908,908105,Construction work,02/10/2023,4185367-65718,"1,440.00",TURF CARE SPECIALISTS LTD.
Regeneration Economy and Growth,Culture Sport and Tourism,Construction work A908,908105,Construction work,02/10/2023,4185367-65720,"1,200.00",TURF CARE SPECIALISTS LTD.
Neighbourhoods and Climate Change,Environmental Services,Supplies and Services,304999,Equipment and Materials,02/10/2023,4185367-65721,780.00,TURF CARE SPECIALISTS LTD.
Neighbourhoods and Climate Change,Highways,Supplies and Services,304221,Equipment and Materials,02/10/2023,4185369-251272,"1,791.96",TYNEDALE ROADSTONE LTD.
Neighbourhoods and Climate Change,Highways,Supplies and Services,304221,Equipment and Materials,02/10/2023,4185369-251273,"1,905.18",TYNEDALE ROADSTONE LTD.
Neighbourhoods and Climate Change,Highways,Supplies and Services,304221,Equipment and Materials,02/10/2023,4185369-251274,605.88,TYNEDALE ROADSTONE LTD.
Neighbourhoods and Climate Change,Highways,Supplies and Services,304221,Equipment and Materials,02/10/2023,4185369-251276,"1,951.92",TYNEDALE ROADSTONE LTD.
Neighbourhoods and Climate Change,Highways,Supplies and Services,304221,Equipment and Materials,02/10/2023,4185369-251278,"1,355.90",TYNEDALE ROADSTONE LTD.
Regeneration Economy and Growth,Corporate Property and Land,Supplies and Services,304221,Equipment and Materials,02/10/2023,4185373-6890516886,"3,727.80",VIESSMANN LTD.
Neighbourhoods and Climate Change,Highways,Supplies and Services,304221,Equipment and Materials,02/10/2023,4185376-29154,"1,034.40",WARD TIMBER LTD.
Neighbourhoods and Climate Change,Partnerships & Community Engagement Div.,Cap Exp on Grants & Other Financial Assistance (REFCUS),918004,Contributions to other bodies 918004,02/10/2023,4185378-VOUCHER21TVF-BASH007,"14,000.00",WEST AUCKLAND PARISH COUNCIL.
Resources BK0010,Legal & Democratic Services,Supplies and Services,338025,Services,02/10/2023,4185381-MISC382/2022-23,"1,800.00",WHITEHOUSE FUNERAL SERVICES.
Regeneration Economy and Growth,Corporate Property and Land,Third Party Payments,430100,Rendered by Private Contractors,02/10/2023,4185384-59678,"3,724.80",WILLOWCRETE MANUFACTURING COMPANY LTD (MFG).
Regeneration Economy and Growth,Corporate Property and Land,Third Party Payments,430100,Rendered by Private Contractors,02/10/2023,4185384-59680,"1,767.60",WILLOWCRETE MANUFACTURING COMPANY LTD (MFG).
Regeneration Economy and Growth,Corporate Property and Land,Third Party Payments,430100,Rendered by Private Contractors,02/10/2023,4185384-59681,"2,601.60",WILLOWCRETE MANUFACTURING COMPANY LTD (MFG).
Regeneration Economy and Growth,Corporate Property and Land,Third Party Payments,430100,Rendered by Private Contractors,02/10/2023,4185384-59682,"5,762.40",WILLOWCRETE MANUFACTURING COMPANY LTD (MFG).
Regeneration Economy and Growth,Corporate Property and Land,Supplies and Services,304221,Equipment and Materials,02/10/2023,4185384-59683,"1,200.36",WILLOWCRETE MANUFACTURING COMPANY LTD (MFG).
Dedicated Schools Grant BG0015,DSG Schools Block,Supplies and Services,304259,Equipment and Materials,02/10/2023,4185388-SI-2792942,"1,143.58",YORKSHIRE PURCHASING ORGANISATION.
Neighbourhoods and Climate Change,Environmental Services,Transport,215005,Running Costs of Vehicles,02/10/2023,4185389-1011007,"20,205.36",YOUR NRG LTD.
Neighbourhoods and Climate Change,Environmental Services,Transport,215005,Running Costs of Vehicles,02/10/2023,4185389-1023513,"18,425.80",YOUR NRG LTD.
Adult and Health Services,Head of Adults,Transport,230005,Contract Hire,02/10/2023,4185104-B95,"1,960.00",REDACTED - PAYMENT TO INDIVIDUAL
Children and Young Peoples Services,Head of Education and Skills,Transport,230009,Contract Hire,02/10/2023,4185109-07/2023-3466,"2,055.96",REDACTED - PAYMENT TO INDIVIDUAL
Children and Young Peoples Services,Head of Childrens Social Care,Supplies and Services,384507,Miscellaneous Expenses,02/10/2023,4185167-INV-1211,990.00,REDACTED - PAYMENT TO INDIVIDUAL
Children and Young Peoples Services,Head of Education and Skills,Supplies and Services,338027,Services,02/10/2023,4185244-DCC7001,"1,425.00",REDACTED - PAYMENT TO INDIVIDUAL
Neighbourhoods and Climate Change,Partnerships & Community Engagement Div.,Cap Exp on Grants & Other Financial Assistance (REFCUS),918004,Contributions to other bodies 918004,02/10/2023,4185091-VOUCHER20AB-DVLY008,"19,182.00",CONSETT & DISTRICT RUGBY FOOTBALL CLUB.
Neighbourhoods and Climate Change,Partnerships & Community Engagement Div.,Cap Exp on Grants & Other Financial Assistance (REFCUS),918004,Contributions to other bodies 918004,02/10/2023,4185220-VOUCHER23NB-TEES003,"2,313.00",LANDS VILLAGE HALL ASSOCIATION.
Children and Young Peoples Services,Head of Education and Skills,Third Party Payments,440999,Other third party payments E440,02/10/2023,4185230-SI-27,"3,900.00",LOKMAN TRAINING LTD.
Neighbourhoods and Climate Change,Environmental Services,Supplies and Services,336005,Advertising E336,02/10/2023,4185285-INV-2667,"2,640.00",POWERPLUS GROUP LTD.
Neighbourhoods and Climate Change,Environmental Services,Supplies and Services,384700,Miscellaneous Expenses,02/10/2023,4185346-RES-09-2023-407,"100,000.00",TEES RIVER TRUST.
Neighbourhoods and Climate Change,Partnerships & Community Engagement Div.,Supplies and Services,384086,Miscellaneous Expenses,02/10/2023,4185366-VOUCHERHOVL05-23,600.00,TRIMDON VILLAGE HALL ASSOCIATION.
Neighbourhoods and Climate Change,Environmental Services,Supplies and Services,338066,Services,02/10/2023,4185383-INV009,"4,460.00",WILDLAND RESEARCH LTD.
Children and Young Peoples Services,Head of Education and Skills,Supplies and Services,384302,Miscellaneous Expenses,02/10/2023,4185101-4100852893,600.00,REDACTED - PAYMENT TO INDIVIDUAL
Regeneration Economy and Growth,Culture Sport and Tourism,Supplies and Services,384302,Miscellaneous Expenses,02/10/2023,4185136-BATH001,500.00,REDACTED - PAYMENT TO INDIVIDUAL
Neighbourhoods and Climate Change,Environmental Services,Supplies and Services,384700,Miscellaneous Expenses,02/10/2023,4185313-RES-09-2023-412,717.00,REDACTED - PAYMENT TO INDIVIDUAL
Neighbourhoods and Climate Change,Highways,Third Party Payments,460224,Contract Payments,03/10/2023,4185982-30197,"216,932.54",ARM PIPETEK LTD.
Neighbourhoods and Climate Change,Environmental Services,Transport,210057,Repair and Maintenance of Vehicles,03/10/2023,4185986-35251897,"1,090.80",BELL TRUCK SALES LTD T/A BELL TRUCK & VAN.
Neighbourhoods and Climate Change,Highways,Supplies and Services,304221,Equipment and Materials,03/10/2023,4185990-21450319,617.72,BREEDON TRADING LTD.
Neighbourhoods and Climate Change,Highways,Supplies and Services,304221,Equipment and Materials,03/10/2023,4185990-21453401,"3,251.61",BREEDON TRADING LTD.
Neighbourhoods and Climate Change,Highways,Supplies and Services,304221,Equipment and Materials,03/10/2023,4185990-21458759,733.54,BREEDON TRADING LTD.
Neighbourhoods and Climate Change,Environmental Services,Transport,210057,Repair and Maintenance of Vehicles,03/10/2023,4185994-62250972,634.81,BUCHER MUNICIPAL LTD.
Children and Young Peoples Services,Head of Childrens Social Care,Supplies and Services,364359,Grants to Voluntary Organisations,03/10/2023,4185996-0000172093A,"1,196.00",BUSY BEARS (DURHAM) LTD.
Resources BK0010,Digital Services,Intangible Assets,917001,Software capitalised licence fees,03/10/2023,4186007-UOTR5144532,"10,062.96",CONVERA UK FINANCIAL LTD.
Neighbourhoods and Climate Change,Environmental Services,Stock A926,926004,Stock,03/10/2023,4186016-96446683,"1,237.69",DENNIS EAGLE LTD T/A TERBERG MATEC (UK) LTD.
Neighbourhoods and Climate Change,Environmental Services,Stock A926,926004,Stock,03/10/2023,4186016-96446733,887.04,DENNIS EAGLE LTD T/A TERBERG MATEC (UK) LTD.
Neighbourhoods and Climate Change,Environmental Services,Transport,210057,Repair and Maintenance of Vehicles,03/10/2023,4186016-96446734,"1,557.40",DENNIS EAGLE LTD T/A TERBERG MATEC (UK) LTD.
Neighbourhoods and Climate Change,Environmental Services,Transport,210057,Repair and Maintenance of Vehicles,03/10/2023,4186016-96446810,"3,241.47",DENNIS EAGLE LTD T/A TERBERG MATEC (UK) LTD.
Neighbourhoods and Climate Change,Environmental Services,Transport,210057,Repair and Maintenance of Vehicles,03/10/2023,4186017-DE11616156,"2,683.03",DENNIS EAGLE LTD.
Neighbourhoods and Climate Change,Environmental Services,Transport,210057,Repair and Maintenance of Vehicles,03/10/2023,4186025-S212907,"1,102.27",ECON ENGINEERING LTD.
Dedicated Schools Grant BG0015,DSG High Needs Block,Third Party Payments,440080,Other third party payments E440,03/10/2023,4186028-11856,"13,710.30",EDUCATION & SERVICES FOR PEOPLE WITH AUTISM LTD (ESPA).
Dedicated Schools Grant BG0015,DSG High Needs Block,Third Party Payments,440080,Other third party payments E440,03/10/2023,4186028-11857,"21,569.92",EDUCATION & SERVICES FOR PEOPLE WITH AUTISM LTD (ESPA).
Dedicated Schools Grant BG0015,DSG High Needs Block,Third Party Payments,440080,Other third party payments E440,03/10/2023,4186028-11858,"36,228.49",EDUCATION & SERVICES FOR PEOPLE WITH AUTISM LTD (ESPA).
Dedicated Schools Grant BG0015,DSG High Needs Block,Third Party Payments,440080,Other third party payments E440,03/10/2023,4186028-11859,"29,227.41",EDUCATION & SERVICES FOR PEOPLE WITH AUTISM LTD (ESPA).
Dedicated Schools Grant BG0015,DSG High Needs Block,Third Party Payments,440080,Other third party payments E440,03/10/2023,4186028-11860,"20,946.49",EDUCATION & SERVICES FOR PEOPLE WITH AUTISM LTD (ESPA).
Dedicated Schools Grant BG0015,DSG High Needs Block,Third Party Payments,440080,Other third party payments E440,03/10/2023,4186028-11861,"31,942.76",EDUCATION & SERVICES FOR PEOPLE WITH AUTISM LTD (ESPA).
Dedicated Schools Grant BG0015,DSG High Needs Block,Third Party Payments,440080,Other third party payments E440,03/10/2023,4186028-11862,"31,942.76",EDUCATION & SERVICES FOR PEOPLE WITH AUTISM LTD (ESPA).
Dedicated Schools Grant BG0015,DSG High Needs Block,Third Party Payments,440080,Other third party payments E440,03/10/2023,4186028-11863,"14,623.57",EDUCATION & SERVICES FOR PEOPLE WITH AUTISM LTD (ESPA).
Dedicated Schools Grant BG0015,DSG High Needs Block,Third Party Payments,440080,Other third party payments E440,03/10/2023,4186028-11864,"18,730.44",EDUCATION & SERVICES FOR PEOPLE WITH AUTISM LTD (ESPA).
Dedicated Schools Grant BG0015,DSG High Needs Block,Third Party Payments,440080,Other third party payments E440,03/10/2023,4186028-11865,"15,646.88",EDUCATION & SERVICES FOR PEOPLE WITH AUTISM LTD (ESPA).
Dedicated Schools Grant BG0015,DSG High Needs Block,Third Party Payments,440080,Other third party payments E440,03/10/2023,4186028-11866,"11,723.62",EDUCATION & SERVICES FOR PEOPLE WITH AUTISM LTD (ESPA).
Dedicated Schools Grant BG0015,DSG High Needs Block,Third Party Payments,440080,Other third party payments E440,03/10/2023,4186028-11867,"62,014.20",EDUCATION & SERVICES FOR PEOPLE WITH AUTISM LTD (ESPA).
Dedicated Schools Grant BG0015,DSG High Needs Block,Third Party Payments,440080,Other third party payments E440,03/10/2023,4186028-11868,"32,426.40",EDUCATION & SERVICES FOR PEOPLE WITH AUTISM LTD (ESPA).
Dedicated Schools Grant BG0015,DSG High Needs Block,Third Party Payments,440080,Other third party payments E440,03/10/2023,4186028-11869,"31,960.23",EDUCATION & SERVICES FOR PEOPLE WITH AUTISM LTD (ESPA).
Dedicated Schools Grant BG0015,DSG High Needs Block,Third Party Payments,440080,Other third party payments E440,03/10/2023,4186028-11870,"35,976.60",EDUCATION & SERVICES FOR PEOPLE WITH AUTISM LTD (ESPA).
Dedicated Schools Grant BG0015,DSG High Needs Block,Third Party Payments,440080,Other third party payments E440,03/10/2023,4186028-11871,"29,239.20",EDUCATION & SERVICES FOR PEOPLE WITH AUTISM LTD (ESPA).
Dedicated Schools Grant BG0015,DSG High Needs Block,Third Party Payments,440080,Other third party payments E440,03/10/2023,4186028-11872,"9,490.36",EDUCATION & SERVICES FOR PEOPLE WITH AUTISM LTD (ESPA).
Dedicated Schools Grant BG0015,DSG High Needs Block,Third Party Payments,440080,Other third party payments E440,03/10/2023,4186028-11873,"10,680.36",EDUCATION & SERVICES FOR PEOPLE WITH AUTISM LTD (ESPA).
Dedicated Schools Grant BG0015,DSG High Needs Block,Third Party Payments,440080,Other third party payments E440,03/10/2023,4186028-11874,"32,114.81",EDUCATION & SERVICES FOR PEOPLE WITH AUTISM LTD (ESPA).
Dedicated Schools Grant BG0015,DSG High Needs Block,Third Party Payments,440080,Other third party payments E440,03/10/2023,4186028-11875,"29,544.15",EDUCATION & SERVICES FOR PEOPLE WITH AUTISM LTD (ESPA).
Neighbourhoods and Climate Change,Environmental Services,Transport,210057,Repair and Maintenance of Vehicles,03/10/2023,4186039-IN237134,"1,428.00",FM STEELSTOCK LTD.
Neighbourhoods and Climate Change,Environmental Services,Transport,210057,Repair and Maintenance of Vehicles,03/10/2023,4186039-IN237135,900.00,FM STEELSTOCK LTD.
Children and Young Peoples Services,Head of Early Help Inclusion & Vulnerable Children.,Supplies and Services,304083,Equipment and Materials,03/10/2023,4186049-261107,646.38,GM PACKAGING (UK) LTD.
Adult and Health Services,Public Health CC0450,Third Party Payments,460803,Contract Payments,03/10/2023,4186053-2510051180,"74,167.13",HARROGATE & DISTRICT NHS FOUNDATION TRUST.
Adult and Health Services,Public Health CC0450,Third Party Payments,460803,Contract Payments,03/10/2023,4186053-2510051181,"37,289.61",HARROGATE & DISTRICT NHS FOUNDATION TRUST.
Regeneration Economy and Growth,Culture Sport and Tourism,Premises,155001,Insurance of Premises,03/10/2023,4186060-18051,"9,384.38",IMPALA ESTATES LTD.
Regeneration Economy and Growth,Culture Sport and Tourism,Premises,120009,Energy Costs,03/10/2023,4186060-18122,"1,762.05",IMPALA ESTATES LTD.
Children and Young Peoples Services,Head of Childrens Social Care,Third Party Payments,440047,Other third party payments E440,03/10/2023,4186079-201,"3,238.15",MAJOR RECRUITMENT LTD.*
Children and Young Peoples Services,Head of Childrens Social Care,Third Party Payments,440038,Other third party payments E440,03/10/2023,4186079-8001,"1,142.40",MAJOR RECRUITMENT LTD.*
Children and Young Peoples Services,Head of Childrens Social Care,Third Party Payments,440047,Other third party payments E440,03/10/2023,4186079-8003,"3,184.39",MAJOR RECRUITMENT LTD.*
Children and Young Peoples Services,Head of Childrens Social Care,Third Party Payments,440047,Other third party payments E440,03/10/2023,4186079-8006,"3,296.46",MAJOR RECRUITMENT LTD.*
Children and Young Peoples Services,Head of Childrens Social Care,Third Party Payments,440038,Other third party payments E440,03/10/2023,4186079-8007,"10,192.37",MAJOR RECRUITMENT LTD.*
Children and Young Peoples Services,Head of Childrens Social Care,Third Party Payments,440047,Other third party payments E440,03/10/2023,4186079-8012,"3,500.98",MAJOR RECRUITMENT LTD.*
Children and Young Peoples Services,Head of Childrens Social Care,Third Party Payments,440046,Other third party payments E440,03/10/2023,4186079-8013,"13,930.14",MAJOR RECRUITMENT LTD.*
Children and Young Peoples Services,Head of Childrens Social Care,Third Party Payments,440038,Other third party payments E440,03/10/2023,4186079-8014,"13,107.19",MAJOR RECRUITMENT LTD.*
Children and Young Peoples Services,Head of Childrens Social Care,Third Party Payments,440038,Other third party payments E440,03/10/2023,4186079-8016,"12,296.52",MAJOR RECRUITMENT LTD.*
Children and Young Peoples Services,Head of Childrens Social Care,Third Party Payments,440047,Other third party payments E440,03/10/2023,4186079-8017,"2,665.87",MAJOR RECRUITMENT LTD.*
Children and Young Peoples Services,Head of Childrens Social Care,Third Party Payments,440046,Other third party payments E440,03/10/2023,4186079-8018,"12,354.00",MAJOR RECRUITMENT LTD.*
Children and Young Peoples Services,Head of Childrens Social Care,Third Party Payments,440038,Other third party payments E440,03/10/2023,4186079-8019,"2,570.40",MAJOR RECRUITMENT LTD.*
Children and Young Peoples Services,Head of Childrens Social Care,Third Party Payments,440038,Other third party payments E440,03/10/2023,4186079-8020,"12,728.21",MAJOR RECRUITMENT LTD.*
Children and Young Peoples Services,Head of Childrens Social Care,Third Party Payments,440047,Other third party payments E440,03/10/2023,4186079-8022,"2,856.10",MAJOR RECRUITMENT LTD.*
Children and Young Peoples Services,Head of Childrens Social Care,Third Party Payments,440046,Other third party payments E440,03/10/2023,4186079-8023,"12,941.21",MAJOR RECRUITMENT LTD.*
Children and Young Peoples Services,Head of Childrens Social Care,Third Party Payments,440047,Other third party payments E440,03/10/2023,4186079-8027,"2,989.26",MAJOR RECRUITMENT LTD.*
Children and Young Peoples Services,Head of Childrens Social Care,Third Party Payments,440046,Other third party payments E440,03/10/2023,4186079-8028,"13,334.82",MAJOR RECRUITMENT LTD.*
Children and Young Peoples Services,Head of Childrens Social Care,Third Party Payments,440038,Other third party payments E440,03/10/2023,4186079-8030,"12,279.30",MAJOR RECRUITMENT LTD.*
Children and Young Peoples Services,Head of Childrens Social Care,Third Party Payments,440047,Other third party payments E440,03/10/2023,4186079-8034,"2,548.50",MAJOR RECRUITMENT LTD.*
Children and Young Peoples Services,Head of Childrens Social Care,Third Party Payments,440046,Other third party payments E440,03/10/2023,4186079-8035,"10,675.68",MAJOR RECRUITMENT LTD.*
Children and Young Peoples Services,Head of Childrens Social Care,Third Party Payments,440038,Other third party payments E440,03/10/2023,4186079-8042,"6,281.74",MAJOR RECRUITMENT LTD.*
Children and Young Peoples Services,Head of Childrens Social Care,Third Party Payments,440047,Other third party payments E440,03/10/2023,4186079-8046,"2,887.98",MAJOR RECRUITMENT LTD.*
Children and Young Peoples Services,Head of Childrens Social Care,Third Party Payments,440046,Other third party payments E440,03/10/2023,4186079-8047,"2,559.60",MAJOR RECRUITMENT LTD.*
Children and Young Peoples Services,Head of Childrens Social Care,Third Party Payments,440047,Other third party payments E440,03/10/2023,4186079-8049,858.00,MAJOR RECRUITMENT LTD.*
Regeneration Economy and Growth,Culture Sport and Tourism,Supplies and Services,324001,Provisions E324,03/10/2023,4186088-907225401,"1,276.16",MOLSON COORS BREWING COMPANY (UK) LTD.
Neighbourhoods and Climate Change,Environmental Services,Stock A926,926004,Stock,03/10/2023,4186095-CIN19169,714.15,NE TRUCK SPARES LTD (NETS).
Neighbourhoods and Climate Change,Environmental Services,Stock A926,926004,Stock,03/10/2023,4186095-INVHEIMP2215,781.41,NE TRUCK SPARES LTD (NETS).
Regeneration Economy and Growth,Culture Sport and Tourism,Supplies and Services,384700,Miscellaneous Expenses,03/10/2023,4186100-NEI-HCL-09-2023-004,"10,000.00",NORTHERN HEARTLANDS.
Regeneration Economy and Growth,Culture Sport and Tourism,Supplies and Services,384199,Miscellaneous Expenses,03/10/2023,4186115-INV11030,"1,000.00",PICTUREHOUSE CINEMAS LTD.
Adult and Health Services,Public Health CC0450,Third Party Payments,460803,Contract Payments,03/10/2023,4186116-18490/18,"5,462.92",PIONEERING CARE PARTNERSHIP.
Resources BK0010,Transactional & Customer Services,Supplies and Services,384999,Miscellaneous Expenses,03/10/2023,4186119-INV94114-DURHAMCOUNTYCOUNCIL-0823,"6,290.72",PREPAID FINANCIAL SERVICES LTD.
Neighbourhoods and Climate Change,Environmental Services,Transport,210057,Repair and Maintenance of Vehicles,03/10/2023,4186129-710965,"1,590.66",RICKERBY LTD.
Neighbourhoods and Climate Change,Environmental Services,Transport,210057,Repair and Maintenance of Vehicles,03/10/2023,4186129-710966,807.86,RICKERBY LTD.
Neighbourhoods and Climate Change,Environmental Services,Transport,210057,Repair and Maintenance of Vehicles,03/10/2023,4186129-710967,"1,493.15",RICKERBY LTD.
Neighbourhoods and Climate Change,Environmental Services,Transport,210057,Repair and Maintenance of Vehicles,03/10/2023,4186130-A28417,"3,386.76",RIPON FARM SERVICES LTD.
Resources BK0010,Transactional & Customer Services,Supplies and Services,340001,Postages E340,03/10/2023,4186134-9068445116,"21,764.31",ROYAL MAIL GROUP PLC.
Neighbourhoods and Climate Change,Highways,Third Party Payments,430100,Rendered by Private Contractors,03/10/2023,4186140-24656,"89,261.48",SEYMOUR (CIVIL ENGINEERING CONTRACTORS) LTD.
Resources BK0010,Digital Services,Supplies and Services,342051,Computers and Communications,03/10/2023,4186144-INV-26567,"14,400.00",SILKTIDE LTD.
Children and Young Peoples Services,Head of Childrens Social Care,Supplies and Services,364359,Grants to Voluntary Organisations,03/10/2023,4186150-BL04457,"1,035.00",STORAL NURSERIES LTD T/A BARNEY LODGE NURSERY SCHOOL.
Children and Young Peoples Services,Head of Childrens Social Care,Supplies and Services,364359,Grants to Voluntary Organisations,03/10/2023,4186150-BL04459,"1,005.00",STORAL NURSERIES LTD T/A BARNEY LODGE NURSERY SCHOOL.
Neighbourhoods and Climate Change,Highways,Supplies and Services,304221,Equipment and Materials,03/10/2023,4186166-248375,"1,738.90",TYNEDALE ROADSTONE LTD.
Neighbourhoods and Climate Change,Highways,Supplies and Services,304221,Equipment and Materials,03/10/2023,4186166-250575,"1,089.00",TYNEDALE ROADSTONE LTD.
Neighbourhoods and Climate Change,Highways,Supplies and Services,304221,Equipment and Materials,03/10/2023,4186166-250844,"1,736.52",TYNEDALE ROADSTONE LTD.
Neighbourhoods and Climate Change,Highways,Supplies and Services,304221,Equipment and Materials,03/10/2023,4186166-250851,"1,052.30",TYNEDALE ROADSTONE LTD.
Neighbourhoods and Climate Change,Highways,Supplies and Services,304221,Equipment and Materials,03/10/2023,4186166-250858,"1,055.88",TYNEDALE ROADSTONE LTD.
Neighbourhoods and Climate Change,Highways,Supplies and Services,304221,Equipment and Materials,03/10/2023,4186166-251097,"1,052.30",TYNEDALE ROADSTONE LTD.
Neighbourhoods and Climate Change,Highways,Supplies and Services,304221,Equipment and Materials,03/10/2023,4186166-251099,"3,131.94",TYNEDALE ROADSTONE LTD.
Neighbourhoods and Climate Change,Highways,Supplies and Services,304221,Equipment and Materials,03/10/2023,4186166-251100,"1,086.28",TYNEDALE ROADSTONE LTD.
Neighbourhoods and Climate Change,Highways,Supplies and Services,304221,Equipment and Materials,03/10/2023,4186166-251103,"1,077.34",TYNEDALE ROADSTONE LTD.
Neighbourhoods and Climate Change,Highways,Supplies and Services,304221,Equipment and Materials,03/10/2023,4186166-251105,"1,903.39",TYNEDALE ROADSTONE LTD.
Neighbourhoods and Climate Change,Highways,Supplies and Services,304221,Equipment and Materials,03/10/2023,4186166-251266,"1,050.52",TYNEDALE ROADSTONE LTD.
Neighbourhoods and Climate Change,Highways,Supplies and Services,304221,Equipment and Materials,03/10/2023,4186166-251268,"1,905.18",TYNEDALE ROADSTONE LTD.
Neighbourhoods and Climate Change,Highways,Supplies and Services,304221,Equipment and Materials,03/10/2023,4186166-251271,"1,061.24",TYNEDALE ROADSTONE LTD.
Neighbourhoods and Climate Change,Highways,Supplies and Services,304221,Equipment and Materials,03/10/2023,4186166-251275,"1,061.24",TYNEDALE ROADSTONE LTD.
Neighbourhoods and Climate Change,Highways,Supplies and Services,304221,Equipment and Materials,03/10/2023,4186166-251277,"1,923.06",TYNEDALE ROADSTONE LTD.
Neighbourhoods and Climate Change,Environmental Services,Supplies and Services,338078,Services,03/10/2023,4186170-INV-60278,"3,397.20",VISTECH SERVICES LTD.
Neighbourhoods and Climate Change,Environmental Services,Supplies and Services,338078,Services,03/10/2023,4186170-INV-60280,"2,163.48",VISTECH SERVICES LTD.
Neighbourhoods and Climate Change,Environmental Services,Supplies and Services,338078,Services,03/10/2023,4186170-INV-60283,"1,233.72",VISTECH SERVICES LTD.
Children and Young Peoples Services,Head of Early Help Inclusion & Vulnerable Children.,Supplies and Services,338078,Services,03/10/2023,4186170-INV-60284,"6,060.10",VISTECH SERVICES LTD.
Neighbourhoods and Climate Change,Environmental Services,Supplies and Services,338078,Services,03/10/2023,4186170-INV-60292,"3,084.30",VISTECH SERVICES LTD.
Regeneration Economy and Growth,Culture Sport and Tourism,Construction work A908,908105,Construction work,03/10/2023,4186175-6443/14,"2,166.00",WILLIAM J MARSHALL & PARTNERS.
Regeneration Economy and Growth,Culture Sport and Tourism,Construction work A908,908105,Construction work,03/10/2023,4186175-6443/15,"2,016.00",WILLIAM J MARSHALL & PARTNERS.
Regeneration Economy and Growth,Culture Sport and Tourism,Construction work A908,908105,Construction work,03/10/2023,4186175-6443/16,630.00,WILLIAM J MARSHALL & PARTNERS.
Regeneration Economy and Growth,Culture Sport and Tourism,Construction work A908,908105,Construction work,03/10/2023,4186175-6443/17,882.00,WILLIAM J MARSHALL & PARTNERS.
Regeneration Economy and Growth,Corporate Property and Land,Supplies and Services,304221,Equipment and Materials,03/10/2023,4186179-1021498,"1,482.28",YOUR NRG LTD.
Neighbourhoods and Climate Change,Environmental Services,Transport,215005,Running Costs of Vehicles,03/10/2023,4186179-1023267,"22,409.69",YOUR NRG LTD.
Neighbourhoods and Climate Change,Environmental Services,Transport,215005,Running Costs of Vehicles,03/10/2023,4186179-1023480,"2,651.74",YOUR NRG LTD.
Children and Young Peoples Services,Head of Education and Skills,Supplies and Services,338027,Services,03/10/2023,4186092-HN00262,"3,712.50",REDACTED - PAYMENT TO INDIVIDUAL
Children and Young Peoples Services,Head of Education and Skills,Supplies and Services,304259,Equipment and Materials,03/10/2023,4186011-3554028,"3,249.00",CURRY GROUP LTD T/A CURRYS BUSINESS.
Neighbourhoods and Climate Change,Environmental Services,Supplies and Services,338027,Services,03/10/2023,4186158-9082,"4,905.60",THE ASSOCIATION FOR DECENTRALISED ENERGY (ADE).
Neighbourhoods and Climate Change,Partnerships & Community Engagement Div.,Supplies and Services,384899,Miscellaneous Expenses,03/10/2023,4186173-VOUCHER23CCU02-23,"1,000.00",WEST RAINTON & LEAMSIDE PARTNERSHIP.
Neighbourhoods and Climate Change,Partnerships & Community Engagement Div.,Supplies and Services,384086,Miscellaneous Expenses,04/10/2023,319128-VOUCHERCRUR06-23,720.00,HUTTON HENRY COMMUNITY ASSOCIATION.
Dedicated Schools Grant BG0015,DSG Early Years Block,Transfer Payments,510030,School Children,04/10/2023,4186183-37763,"2,391.00",1EXCELLENCE MULTI ACADEMY TRUST.
Neighbourhoods and Climate Change,Environmental Services,Supplies and Services,328041,Clothing uniforms and laundry E328,04/10/2023,4186184-39704.,"3,412.37",1ST COVERALL COMPANY LTD.
Adult and Health Services,Head of Adults,Supplies and Services,342053,Computers and Communications,04/10/2023,4186188-1729084,"6,660.00",ACCESS UK LTD.
Children and Young Peoples Services,Childrens Services Operational Support,Supplies and Services,342051,Computers and Communications,04/10/2023,4186188-1801178,"2,280.00",ACCESS UK LTD.
Regeneration Economy and Growth,Planning & Housing,Cap Exp on Grants & Other Financial Assistance (REFCUS),918501,Exp assets not owned by authority,04/10/2023,4186190-RES-10-2023-026,"1,159.71",ADA ELECTRICAL SERVICES.
Dedicated Schools Grant BG0015,DSG Early Years Block,Transfer Payments,510030,School Children,04/10/2023,4186192-37747,"3,853.00",ADVANCE LEARNING PARTNERSHIP.
Dedicated Schools Grant BG0015,DSG Early Years Block,Transfer Payments,510030,School Children,04/10/2023,4186193-37748,"3,322.00",ADVANCE LEARNING PARTNERSHIP.
Dedicated Schools Grant BG0015,DSG Early Years Block,Transfer Payments,510030,School Children,04/10/2023,4186194-37749,"3,720.00",ADVANCE LEARNING PARTNERSHIP.
Dedicated Schools Grant BG0015,DSG Early Years Block,Transfer Payments,510030,School Children,04/10/2023,4186195-37737,"4,119.00",ADVANCE LEARNING PARTNERSHIP.
Children and Young Peoples Services,Head of Education and Skills,Transport,230007,Contract Hire,04/10/2023,4186197-402,"3,332.98",ALANS TAXIS BARNARD CASTLE.
Regeneration Economy and Growth,Culture Sport and Tourism,Supplies and Services,312013,Newspapers books and periodicals E312,04/10/2023,4186209-6940681,661.34,ASKEWS & HOLTS LIBRARY SERVICES LTD.
Regeneration Economy and Growth,Culture Sport and Tourism,Supplies and Services,312013,Newspapers books and periodicals E312,04/10/2023,4186209-6940732,685.31,ASKEWS & HOLTS LIBRARY SERVICES LTD.
Children and Young Peoples Services,Head of Education and Skills,Supplies and Services,384199,Miscellaneous Expenses,04/10/2023,4186212-SIN051302,"1,400.00",BEAMISH MUSEUM LTD.
Regeneration Economy and Growth,Economic Development,Supplies and Services,384700,Miscellaneous Expenses,04/10/2023,4186214-RES-10-2023-015,"31,168.45",BERNICIA GROUP LTD.*
Dedicated Schools Grant BG0015,DSG High Needs Block,Supplies and Services,384302,Miscellaneous Expenses,04/10/2023,4186217-SLINV/00001089,"36,666.60",BISHOP AUCKLAND COLLEGE.
Dedicated Schools Grant BG0015,DSG Early Years Block,Transfer Payments,510030,School Children,04/10/2023,4186218-37750,"5,182.00",BISHOP CHADWICK CATHOLIC EDUCATION TRUST (NSCET).
Dedicated Schools Grant BG0015,DSG Early Years Block,Transfer Payments,510030,School Children,04/10/2023,4186219-37760,"1,063.00",BISHOP HOGARTH CATHOLIC EDUCATION TRUST.
Dedicated Schools Grant BG0015,DSG Early Years Block,Transfer Payments,510030,School Children,04/10/2023,4186220-37766,"2,525.00",BISHOP HOGARTH CATHOLIC EDUCATION TRUST.
Dedicated Schools Grant BG0015,DSG Early Years Block,Transfer Payments,510030,School Children,04/10/2023,4186221-37761,"2,636.00",BISHOP HOGARTH CATHOLIC EDUCATION TRUST.
Dedicated Schools Grant BG0015,DSG Early Years Block,Transfer Payments,510030,School Children,04/10/2023,4186222-37758,"1,594.00",BISHOP HOGARTH CATHOLIC EDUCATION TRUST.
Dedicated Schools Grant BG0015,DSG Early Years Block,Transfer Payments,510030,School Children,04/10/2023,4186223-37765,"2,126.00",BISHOP HOGARTH CATHOLIC EDUCATION TRUST.
Dedicated Schools Grant BG0015,DSG Early Years Block,Transfer Payments,510030,School Children,04/10/2023,4186224-37759,"1,728.00",BISHOP HOGARTH CATHOLIC EDUCATION TRUST.
Dedicated Schools Grant BG0015,DSG Early Years Block,Transfer Payments,510030,School Children,04/10/2023,4186225-37757,"3,454.00",BISHOP WILKINSON CATHOLIC EDUCATION TRUST.
Dedicated Schools Grant BG0015,DSG Early Years Block,Transfer Payments,510030,School Children,04/10/2023,4186226-37762,"3,322.00",BISHOP WILKINSON CATHOLIC EDUCATION TRUST.
Children and Young Peoples Services,Head of Education and Skills,Supplies and Services,384906,Miscellaneous Expenses,04/10/2023,4186227-RES-10-2023-007,"12,600.00",BISHOP WILKINSON CATHOLIC EDUCATION TRUST.
Dedicated Schools Grant BG0015,DSG Early Years Block,Transfer Payments,510030,School Children,04/10/2023,4186228-37764,"5,448.00",BISHOP WILKINSON CATHOLIC EDUCATION TRUST.
Neighbourhoods and Climate Change,Highways,Supplies and Services,304221,Equipment and Materials,04/10/2023,4186232-21446935,617.54,BREEDON TRADING LTD.
Dedicated Schools Grant BG0015,DSG Early Years Block,Transfer Payments,510030,School Children,04/10/2023,4186237-37739,863.85,BUSY BEES (DURHAM) LTD.
Regeneration Economy and Growth,Planning & Housing,Supplies and Services,338066,Services,04/10/2023,4186240-6017151648,"10,485.60",CAPITA PROPERTY & INFRASTRUCTURE LTD.
Regeneration Economy and Growth,Corporate Property and Land,Third Party Payments,430100,Rendered by Private Contractors,04/10/2023,4186242-11739,"3,393.00",CATHEDRAL LOCK & SAFE SERVICES LTD.
Regeneration Economy and Growth,Planning & Housing,Supplies and Services,384999,Miscellaneous Expenses,04/10/2023,4186268-047,"1,500.00",DENTON MANAGEMENT LTD.
Resources BK0010,Legal & Democratic Services,Supplies and Services,338042,Services,04/10/2023,4186269-386559/INVCMC581,930.00,DERE STREET BARRISTERS.
Resources BK0010,Legal & Democratic Services,Supplies and Services,338042,Services,04/10/2023,4186269-390345/INVMAT80,720.00,DERE STREET BARRISTERS.
Neighbourhoods and Climate Change,Partnerships & Community Engagement Div.,Supplies and Services,384086,Miscellaneous Expenses,04/10/2023,4186276-VOUCHERBROL03-23,850.00,DURHAM REMEMBRANCE.
Dedicated Schools Grant BG0015,DSG Early Years Block,Transfer Payments,510030,School Children,04/10/2023,4186279-37736,"3,322.00",EDEN ACADEMY TRUST LTD T/A BLUEBELL MEADOW PRIMARY SCHOOL.
Dedicated Schools Grant BG0015,DSG Early Years Block,Transfer Payments,510032,School Children,04/10/2023,4186280-37733,796.32,EDEN GARDEN NURSERY.
Dedicated Schools Grant BG0015,DSG Early Years Block,Transfer Payments,510030,School Children,04/10/2023,4186280-37743,838.88,EDEN GARDEN NURSERY.
Dedicated Schools Grant BG0015,DSG Early Years Block,Transfer Payments,510030,School Children,04/10/2023,4186281-37740,"5,979.00",EDEN LEARNING TRUST T/A CHILTON ACADEMY.
Regeneration Economy and Growth,Corporate Property and Land,Supplies and Services,304221,Equipment and Materials,04/10/2023,4186283-059-325065,"1,249.42",EDMUNDSON ELECTRICAL LTD.
Dedicated Schools Grant BG0015,DSG High Needs Block,Supplies and Services,384302,Miscellaneous Expenses,04/10/2023,4186285-RES-10-2023-004,"9,667.00",EDUCATION PLUS NE LTD.
Children and Young Peoples Services,Head of Childrens Social Care,Employees,080025,Agency Staff,04/10/2023,4186298-2475168,"198,694.70",GEOMETRIC RESULTS INTERNATIONAL.
Neighbourhoods and Climate Change,Highways,Third Party Payments,430127,Rendered by Private Contractors,04/10/2023,4186299-02/10/2023,"1,611.00",GJ CONTRACTORS.
Regeneration Economy and Growth,Culture Sport and Tourism,Premises,145023,Cleaning and Domestic Supplies,04/10/2023,4186301-06/238480,"1,062.09",GREENHAM TRADING LTD.
Neighbourhoods and Climate Change,Environmental Services,Construction work A908,908105,Construction work,04/10/2023,4186302-091645,"1,532.40",HAGS-SMP LTD.
Dedicated Schools Grant BG0015,DSG Early Years Block,Transfer Payments,510030,School Children,04/10/2023,4186304-37745,"2,923.00",HARTSIDE PRIMARY ACADEMY.
Adult and Health Services,Head of Adults,Third Party Payments,478151,Purchase of Care,04/10/2023,4186308-HLC979,"4,159.54",HIGHLEA CARE LTD.
Neighbourhoods and Climate Change,Highways,Third Party Payments,430100,Rendered by Private Contractors,04/10/2023,4186309-3564,"13,824.00",HIGHWAY CONSTRUCTION SERVICES LTD.
Neighbourhoods and Climate Change,Highways,Third Party Payments,430100,Rendered by Private Contractors,04/10/2023,4186309-3565,"7,992.00",HIGHWAY CONSTRUCTION SERVICES LTD.
Neighbourhoods and Climate Change,Environmental Services,Third Party Payments,430100,Rendered by Private Contractors,04/10/2023,4186311-94564,"1,541.53",HOGARTH COACHWORKS LTD.
Adult and Health Services,Public Health CC0450,Third Party Payments,460803,Contract Payments,04/10/2023,4186317-SI-HK-001403,"21,581.75",HUMANKIND CHARITY.
Resources BK0010,Digital Services,Stock A926,926900,Stock in hand-Inventory system,04/10/2023,4186321-2100707463,"1,265.42",INSIGHT DIRECT (UK) LTD.
Neighbourhoods and Climate Change,Highways,Third Party Payments,430100,Rendered by Private Contractors,04/10/2023,4186326-28343,"2,207.76",JACK COUPE & SONS LTD T/A COUPE LINE.
Dedicated Schools Grant BG0015,DSG Early Years Block,Transfer Payments,510030,School Children,04/10/2023,4186330-37751,"1,993.00",JIGSAW LEARNING TRUST.
Neighbourhoods and Climate Change,Highways,Stock A926,926900,Stock in hand-Inventory system,04/10/2023,4186332-0113/00051614,"3,029.76",JT DOVE LTD.
Neighbourhoods and Climate Change,Highways,Supplies and Services,304221,Equipment and Materials,04/10/2023,4186332-0303/01015509,974.11,JT DOVE LTD.
Neighbourhoods and Climate Change,Environmental Services,Third Party Payments,430101,Rendered by Private Contractors,04/10/2023,4186355-HOL08681,"1,789.32",MCCONECHYS TYRE SERVICE LTD.
Neighbourhoods and Climate Change,Environmental Services,Third Party Payments,430101,Rendered by Private Contractors,04/10/2023,4186355-HOL08712,"2,240.28",MCCONECHYS TYRE SERVICE LTD.
Neighbourhoods and Climate Change,Environmental Services,Third Party Payments,430101,Rendered by Private Contractors,04/10/2023,4186355-HOL08713,"2,324.72",MCCONECHYS TYRE SERVICE LTD.
Neighbourhoods and Climate Change,Environmental Services,Third Party Payments,430101,Rendered by Private Contractors,04/10/2023,4186355-HOL08714,"2,758.78",MCCONECHYS TYRE SERVICE LTD.
Neighbourhoods and Climate Change,Environmental Services,Third Party Payments,430101,Rendered by Private Contractors,04/10/2023,4186355-HOL08715,"3,366.91",MCCONECHYS TYRE SERVICE LTD.
Neighbourhoods and Climate Change,Environmental Services,Third Party Payments,430101,Rendered by Private Contractors,04/10/2023,4186355-HOL08735,"3,986.77",MCCONECHYS TYRE SERVICE LTD.
Neighbourhoods and Climate Change,Environmental Services,Third Party Payments,430101,Rendered by Private Contractors,04/10/2023,4186355-HOL08736,"1,575.76",MCCONECHYS TYRE SERVICE LTD.
Neighbourhoods and Climate Change,Environmental Services,Third Party Payments,430101,Rendered by Private Contractors,04/10/2023,4186355-HOL08737,"2,303.70",MCCONECHYS TYRE SERVICE LTD.
Neighbourhoods and Climate Change,Environmental Services,Third Party Payments,430101,Rendered by Private Contractors,04/10/2023,4186355-HOL08738,"1,637.82",MCCONECHYS TYRE SERVICE LTD.
Regeneration Economy and Growth,Corporate Property and Land,Third Party Payments,430100,Rendered by Private Contractors,04/10/2023,4186360-30559/92851952,"5,997.60",MITIE PROPERTY SERVICES (UK) LTD.
Children and Young Peoples Services,Head of Education and Skills,Supplies and Services,384906,Miscellaneous Expenses,04/10/2023,4186368-RES-10-2023-009,"25,650.00",NEW COLLEGE DURHAM ACADEMIES TRUST.
Adult and Health Services,Public Health CC0450,Third Party Payments,460803,Contract Payments,04/10/2023,4186369-7310032041,"88,711.06",NHS NORTH OF ENGLAND CSU.
Neighbourhoods and Climate Change,Environmental Services,Third Party Payments,430100,Rendered by Private Contractors,04/10/2023,4186374-1444520,790.06,NORTH EAST TRUCK & VAN LTD.
Regeneration Economy and Growth,Culture Sport and Tourism,Supplies and Services,384199,Miscellaneous Expenses,04/10/2023,4186375-0215,"1,260.00",NORTH EXHIBITION SERVICES LTD.
Regeneration Economy and Growth,Culture Sport and Tourism,Supplies and Services,384700,Miscellaneous Expenses,04/10/2023,4186376-NEI-INC-09-2023-004,"10,000.00",NORTHERN HEARTLANDS.
Neighbourhoods and Climate Change,Highways,Third Party Payments,430100,Rendered by Private Contractors,04/10/2023,4186378-DI20386727,"2,328.11",NORTHERN POWERGRID (NORTHEAST) LTD.
Regeneration Economy and Growth,Planning & Housing,Construction work A908,908105,Construction work,04/10/2023,4186378-DI20413662,"15,263.59",NORTHERN POWERGRID (NORTHEAST) LTD.
Regeneration Economy and Growth,Planning & Housing,Construction work A908,908105,Construction work,04/10/2023,4186378-DI20413663,"8,641.46",NORTHERN POWERGRID (NORTHEAST) LTD.
Regeneration Economy and Growth,Planning & Housing,Construction work A908,908105,Construction work,04/10/2023,4186382-NEI-EXP-09-2023-049,"1,440.00",OPENREACH LLU.
Neighbourhoods and Climate Change,Environmental Services,Supplies and Services,304221,Equipment and Materials,04/10/2023,4186385-OASI0078084,"4,076.16",ORIGIN AMENITY SOLUTIONS LTD.
Neighbourhoods and Climate Change,Highways,Stock A926,926900,Stock in hand-Inventory system,04/10/2023,4186390-XL305526,"3,570.00",PARK ELECTRICAL DISTRIBUTORS LTD.
Neighbourhoods and Climate Change,Highways,Stock A926,926900,Stock in hand-Inventory system,04/10/2023,4186390-XL306415,"19,140.00",PARK ELECTRICAL DISTRIBUTORS LTD.
Regeneration Economy and Growth,Culture Sport and Tourism,Supplies and Services,384302,Miscellaneous Expenses,04/10/2023,4186396-36-2023,"1,095.00",PELTON FELL COMMUNITY PARTNERSHIP.
Regeneration Economy and Growth,Culture Sport and Tourism,Supplies and Services,338094,Services,04/10/2023,4186399-4100853826,"1,000.00",PETERLEE MEMORIAL METHODIST CHURCH.
Adult and Health Services,Head of Adults,Third Party Payments,479102,Purchase of Care,04/10/2023,4186404-INV-0224,543.90,POSITIVE CARE & SUPPORT LTD.
Adult and Health Services,Head of Adults,Third Party Payments,479102,Purchase of Care,04/10/2023,4186404-INV-0225,"7,561.08",POSITIVE CARE & SUPPORT LTD.
Adult and Health Services,Head of Adults,Third Party Payments,479102,Purchase of Care,04/10/2023,4186404-INV-0226,"5,527.40",POSITIVE CARE & SUPPORT LTD.
Adult and Health Services,Head of Adults,Third Party Payments,479102,Purchase of Care,04/10/2023,4186404-INV-0227,"3,364.90",POSITIVE CARE & SUPPORT LTD.
Adult and Health Services,Head of Adults,Third Party Payments,479102,Purchase of Care,04/10/2023,4186404-INV-0228,739.20,POSITIVE CARE & SUPPORT LTD.
Chief Executives Office,Communications Management,Supplies and Services,332029,Printing Stationery and Gen Off Exps,04/10/2023,4186412-21183,900.00,RADECAL SIGNS GRAPHICS & ADVERTISING.
Regeneration Economy and Growth,Planning & Housing,Supplies and Services,384999,Miscellaneous Expenses,04/10/2023,4186413-TR69416,700.00,READY TO RENT MANAGEMENT LLP.
Dedicated Schools Grant BG0015,DSG Early Years Block,Transfer Payments,510030,School Children,04/10/2023,4186416-37752,"9,566.00",RIBBON ACADEMY TRUST.
Resources BK0010,Transactional & Customer Services,Supplies and Services,340001,Postages E340,04/10/2023,4186422-9068387614,"15,897.16",ROYAL MAIL GROUP PLC.
Dedicated Schools Grant BG0015,DSG Early Years Block,Transfer Payments,510030,School Children,04/10/2023,4186425-37753,"1,594.00",SACRISTON ACADEMY - EARLY YEARS T/A PRIVATE NURSERY.
Children and Young Peoples Services,Head of Education and Skills,Supplies and Services,384362,Miscellaneous Expenses,04/10/2023,4186436-210468,942.00,SMIRTHWAITE LTD.
Resources BK0010,Digital Services,Supplies and Services,342051,Computers and Communications,04/10/2023,4186437-INVUK1004956,"6,890.68",SOFTCAT PLC.
Neighbourhoods and Climate Change,Highways,Stock A926,926900,Stock in hand-Inventory system,04/10/2023,4186438-SI23009730,714.00,SOLON SECURITY LTD.
Neighbourhoods and Climate Change,Partnerships & Community Engagement Div.,Supplies and Services,384086,Miscellaneous Expenses,04/10/2023,4186439-VOUCHERHOOC05-22,720.00,SOUTH HETTON PARISH COUNCIL.
Dedicated Schools Grant BG0015,DSG Early Years Block,Transfer Payments,510030,School Children,04/10/2023,4186442-37756,"3,322.00",STANLEY LEARNING PARTNERSHIP.
Dedicated Schools Grant BG0015,DSG Early Years Block,Transfer Payments,510030,School Children,04/10/2023,4186443-37742,"2,878.00",STANLEY LEARNING PARTNERSHIP.
Dedicated Schools Grant BG0015,DSG Early Years Block,Transfer Payments,510030,School Children,04/10/2023,4186445-37735,"1,993.00",STANLEY LEARNING PARTNERSHIP.
Dedicated Schools Grant BG0015,DSG Early Years Block,Transfer Payments,510030,School Children,04/10/2023,4186446-37746,"5,580.00",STANLEY LEARNING PARTNERSHIP.
Dedicated Schools Grant BG0015,DSG Early Years Block,Transfer Payments,510030,School Children,04/10/2023,4186450-37767,"3,720.00",STEPHENSON WAY ACADEMY & NURSERY SCHOOL.
Neighbourhoods and Climate Change,Environmental Services,Supplies and Services,338066,Services,04/10/2023,4186451-SG2312,538.28,STOMPING GROUND CIC.
Neighbourhoods and Climate Change,Environmental Services,Supplies and Services,304337,Equipment and Materials,04/10/2023,4186453-6012107,"31,574.40",STORM ENVIRONMENTAL LTD.
Regeneration Economy and Growth,Transport and Contracted Services,Third Party Payments,430106,Rendered by Private Contractors,04/10/2023,4186456-12498,"8,965.30",SUPPORTIVE SRC LTD.
Neighbourhoods and Climate Change,Highways,Stock A926,926900,Stock in hand-Inventory system,04/10/2023,4186458-9047461322,630.85,TARMAC TRADING LTD.
Neighbourhoods and Climate Change,Environmental Services,Third Party Payments,430100,Rendered by Private Contractors,04/10/2023,4186460-25575407,"1,355.87",TC HARRISON JCB.
Regeneration Economy and Growth,Culture Sport and Tourism,Third Party Payments,430131,Rendered by Private Contractors,04/10/2023,4186461-TT/20230803,540.00,TERESA CARTER T/A T TRAINING.
Dedicated Schools Grant BG0015,DSG Early Years Block,Transfer Payments,510030,School Children,04/10/2023,4186463-37754,"5,580.00",THE LAIDLAW SCHOOLS TRUST T/A SEDGEFIELD HARDWICK PRIMARY SCHOOL.
Neighbourhoods and Climate Change,Highways,Stock A926,926900,Stock in hand-Inventory system,04/10/2023,4186466-NSIN00100510,924.81,THOMAS OWEN & SONS (NEWCASTLE) LTD.
Neighbourhoods and Climate Change,Highways,Supplies and Services,389001,Inventory Related,04/10/2023,4186466-NSIN00100512,"1,316.07",THOMAS OWEN & SONS (NEWCASTLE) LTD.
Neighbourhoods and Climate Change,Partnerships & Community Engagement Div.,Supplies and Services,384086,Miscellaneous Expenses,04/10/2023,4186468-VOUCHERMILJ05-23,999.00,THORNLEY FC JUNIORS.
Neighbourhoods and Climate Change,Highways,Supplies and Services,304221,Equipment and Materials,04/10/2023,4186469-40140,"7,003.92",TODDS HIGHWAY MAINTENANCE LTD.
Dedicated Schools Grant BG0015,DSG Early Years Block,Transfer Payments,510030,School Children,04/10/2023,4186471-37741,"4,517.00",TOGETHER LEARNING PARTNERSHIP (CLEVES CROSS PRIMARY SCHOOL).
Regeneration Economy and Growth,Corporate Property and Land,Third Party Payments,430100,Rendered by Private Contractors,04/10/2023,4186472-40120,"3,444.00",TOTAL PUMP SOLUTIONS LTD.
Dedicated Schools Grant BG0015,DSG Early Years Block,Transfer Payments,510030,School Children,04/10/2023,4186477-37755,"3,056.00",TUDHOE LEARNING TRUST T/A SOUTH HETTON PRIMARY SCHOOL.
Neighbourhoods and Climate Change,Environmental Services,Supplies and Services,338076,Services,04/10/2023,4186478-0000004541,"1,800.00",TULLIE HOUSE MUSEUM & ART GALLERY TRUST.
Neighbourhoods and Climate Change,Highways,Supplies and Services,304221,Equipment and Materials,04/10/2023,4186480-251545,"1,102.37",TYNEDALE ROADSTONE LTD.
Neighbourhoods and Climate Change,Highways,Supplies and Services,304221,Equipment and Materials,04/10/2023,4186480-251546,"2,482.80",TYNEDALE ROADSTONE LTD.
Neighbourhoods and Climate Change,Highways,Supplies and Services,304221,Equipment and Materials,04/10/2023,4186480-251547,"1,912.33",TYNEDALE ROADSTONE LTD.
Neighbourhoods and Climate Change,Environmental Services,Supplies and Services,342215,Computers and Communications,04/10/2023,4186481-55952,"5,146.13",UK TELEMATICS LTD.
Neighbourhoods and Climate Change,Environmental Services,Supplies and Services,342215,Computers and Communications,04/10/2023,4186481-56179,"5,146.13",UK TELEMATICS LTD.
Neighbourhoods and Climate Change,Environmental Services,Supplies and Services,342215,Computers and Communications,04/10/2023,4186481-56364,"5,179.19",UK TELEMATICS LTD.
Children and Young Peoples Services,Head of Early Help Inclusion & Vulnerable Children.,Supplies and Services,344033,Telephones,04/10/2023,4186482-209770,687.24,UNIFY BUSINESS SOLUTIONS LTD.
Dedicated Schools Grant BG0015,DSG Early Years Block,Transfer Payments,510030,School Children,04/10/2023,4186486-37768,"2,791.00",VICTORIA LANE ACADEMY.
Regeneration Economy and Growth,Corporate Property and Land,Supplies and Services,338045,Services,04/10/2023,4186493-3736302,"2,010.36",WOMBLE BOND DICKINSON (UK) LLP.
Neighbourhoods and Climate Change,Highways,Stock A926,926900,Stock in hand-Inventory system,04/10/2023,4186501-145540683,"1,104.00",ZG LIGHTING (UK) LTD.
Neighbourhoods and Climate Change,Environmental Services,Supplies and Services,384606,Miscellaneous Expenses,04/10/2023,4186199-RES-10-2023-003,"2,000.00",REDACTED - PAYMENT TO INDIVIDUAL
Adult and Health Services,Head of Adults,Third Party Payments,479102,Purchase of Care,04/10/2023,4186265-1047,"1,194.00",REDACTED - PAYMENT TO INDIVIDUAL
Neighbourhoods and Climate Change,Environmental Services,Supplies and Services,338066,Services,04/10/2023,4186371-109,"1,927.20",REDACTED - PAYMENT TO INDIVIDUAL
Neighbourhoods and Climate Change,Environmental Services,Supplies and Services,338066,Services,04/10/2023,4186371-110,"1,056.00",REDACTED - PAYMENT TO INDIVIDUAL
Neighbourhoods and Climate Change,Environmental Services,Supplies and Services,338066,Services,04/10/2023,4186371-111,612.00,REDACTED - PAYMENT TO INDIVIDUAL
Neighbourhoods and Climate Change,Environmental Services,Third Party Payments,430100,Rendered by Private Contractors,04/10/2023,4186291-85012520,"1,162.57",FORD RETAIL LTD T/A TRUST FORD.
Children and Young Peoples Services,Head of Childrens Social Care,Third Party Payments,440046,Other third party payments E440,04/10/2023,4186305-52,"14,320.00",HATCH GROUP LTD T/A OLIVE HOUSE.
Children and Young Peoples Services,Head of Childrens Social Care,Third Party Payments,440046,Other third party payments E440,04/10/2023,4186305-53,"14,320.00",HATCH GROUP LTD T/A OLIVE HOUSE.
Children and Young Peoples Services,Head of Childrens Social Care,Third Party Payments,440046,Other third party payments E440,04/10/2023,4186305-54,"14,320.00",HATCH GROUP LTD T/A OLIVE HOUSE.
Children and Young Peoples Services,Head of Childrens Social Care,Third Party Payments,440046,Other third party payments E440,04/10/2023,4186305-55,"14,320.00",HATCH GROUP LTD T/A OLIVE HOUSE.
Children and Young Peoples Services,Head of Childrens Social Care,Third Party Payments,440046,Other third party payments E440,04/10/2023,4186305-56,"14,320.00",HATCH GROUP LTD T/A OLIVE HOUSE.
Neighbourhoods and Climate Change,Partnerships & Community Engagement Div.,Supplies and Services,384086,Miscellaneous Expenses,04/10/2023,4186320-VOUCHERBELR04-23,950.00,INFLUENCE CHURCH.
Regeneration Economy and Growth,Corporate Property and Land,Supplies and Services,304221,Equipment and Materials,04/10/2023,4186428-SQ681154,"4,508.40",SALONS DIRECT LTD.
Neighbourhoods and Climate Change,Environmental Services,Supplies and Services,328041,Clothing uniforms and laundry E328,05/10/2023,4186506-39705,"3,355.14",1ST COVERALL COMPANY LTD.
Children and Young Peoples Services,Head of Education and Skills,Transport,230009,Contract Hire,05/10/2023,4186508-92301,"1,123.25",24/7 TAXI SERVICES (PETERLEE) LTD.
Children and Young Peoples Services,Head of Education and Skills,Transport,230007,Contract Hire,05/10/2023,4186508-92302,"3,192.00",24/7 TAXI SERVICES (PETERLEE) LTD.
Children and Young Peoples Services,Head of Education and Skills,Transport,230034,Contract Hire,05/10/2023,4186508-92304,"2,713.20",24/7 TAXI SERVICES (PETERLEE) LTD.
Children and Young Peoples Services,Head of Education and Skills,Transport,230034,Contract Hire,05/10/2023,4186508-92305,"4,320.00",24/7 TAXI SERVICES (PETERLEE) LTD.
Children and Young Peoples Services,Head of Education and Skills,Transport,230007,Contract Hire,05/10/2023,4186508-92307,"3,347.50",24/7 TAXI SERVICES (PETERLEE) LTD.
Children and Young Peoples Services,Head of Education and Skills,Transport,230008,Contract Hire,05/10/2023,4186508-92309,"3,305.23",24/7 TAXI SERVICES (PETERLEE) LTD.
Adult and Health Services,Head of Adults,Transport,230005,Contract Hire,05/10/2023,4186508-92311,"2,494.80",24/7 TAXI SERVICES (PETERLEE) LTD.
Adult and Health Services,Head of Adults,Transport,230005,Contract Hire,05/10/2023,4186508-92312,"2,074.27",24/7 TAXI SERVICES (PETERLEE) LTD.
Children and Young Peoples Services,Head of Education and Skills,Transport,230034,Contract Hire,05/10/2023,4186508-92313,"3,434.40",24/7 TAXI SERVICES (PETERLEE) LTD.
Children and Young Peoples Services,Head of Education and Skills,Transport,230009,Contract Hire,05/10/2023,4186508-92318,"4,254.94",24/7 TAXI SERVICES (PETERLEE) LTD.
Children and Young Peoples Services,Head of Education and Skills,Transport,230010,Contract Hire,05/10/2023,4186508-92329,644.64,24/7 TAXI SERVICES (PETERLEE) LTD.
Children and Young Peoples Services,Head of Childrens Social Care,Transport,230005,Contract Hire,05/10/2023,4186508-92344,612.00,24/7 TAXI SERVICES (PETERLEE) LTD.
Children and Young Peoples Services,Head of Education and Skills,Transport,230007,Contract Hire,05/10/2023,4186509-0923/SE,"1,538.22",AABAT TAXIS.
Children and Young Peoples Services,Head of Education and Skills,Transport,230007,Contract Hire,05/10/2023,4186509-0923/SM,"2,166.82",AABAT TAXIS.
Dedicated Schools Grant BG0015,DSG High Needs Block,Supplies and Services,384302,Miscellaneous Expenses,05/10/2023,4186522-236,"13,800.00",ADVANCE LEARNING PARTNERSHIP.
Children and Young Peoples Services,Head of Early Help Inclusion & Vulnerable Children.,Supplies and Services,384906,Miscellaneous Expenses,05/10/2023,4186525-RES-10-2023-044,920.00,ADVANCE LEARNING PARTNERSHIP.
Children and Young Peoples Services,Head of Education and Skills,Transport,230009,Contract Hire,05/10/2023,4186541-DCC14SEPT23,"3,780.00",ATLAS TAXIS MANAGEMENT LTD.
Children and Young Peoples Services,Head of Education and Skills,Transport,230008,Contract Hire,05/10/2023,4186542-215,"4,750.00",AUCKLAND TRAVEL.
Children and Young Peoples Services,Head of Education and Skills,Transport,230034,Contract Hire,05/10/2023,4186544-29723,"2,753.28",AVALON TAXIS.
Regeneration Economy and Growth,Culture Sport and Tourism,Supplies and Services,384899,Miscellaneous Expenses,05/10/2023,4186547-NEI-HCL-10-2023-001,"15,000.00",BEAMISH MUSEUM LTD.
Neighbourhoods and Climate Change,Environmental Services,Supplies and Services,338099,Services,05/10/2023,4186547-SIN051924,"3,301.20",BEAMISH MUSEUM LTD.
Children and Young Peoples Services,Head of Education and Skills,Transport,230034,Contract Hire,05/10/2023,4186550-MURHASBEL0923,"1,505.88",BENS TAXIS.
Children and Young Peoples Services,Head of Education and Skills,Transport,230007,Contract Hire,05/10/2023,4186550-SH-PITT0923,"1,146.84",BENS TAXIS.
Regeneration Economy and Growth,Culture Sport and Tourism,Supplies and Services,324117,Provisions E324,05/10/2023,4186552-23579079,703.91,BIDFOOD.
Children and Young Peoples Services,Head of Early Help Inclusion & Vulnerable Children.,Supplies and Services,384906,Miscellaneous Expenses,05/10/2023,4186576-RES-10-2013-045,"11,250.00",BISHOP WILKINSON CATHOLIC EDUCATION TRUST.
Children and Young Peoples Services,Head of Education and Skills,Transport,230034,Contract Hire,05/10/2023,4186594-28-SEPT23,"2,090.00",BL TAXIS.
Regeneration Economy and Growth,Corporate Property and Land,Fees,901002,Consultants fees 901002,05/10/2023,4186595-SIN045902,"188,439.01",BLOOM PROCUREMENT SERVICES LTD (FORMERLY NEPRO LTD).
Chief Executives Office,Corporate Policy Planning & Performance,Fees,901002,Consultants fees 901002,05/10/2023,4186595-SIN046049,"227,207.41",BLOOM PROCUREMENT SERVICES LTD (FORMERLY NEPRO LTD).
Regeneration Economy and Growth,Culture Sport and Tourism,Supplies and Services,384199,Miscellaneous Expenses,05/10/2023,4186598-19362,"1,608.24",BROWN & ILLINGWORTH LTD.
Children and Young Peoples Services,Head of Education and Skills,Transport,230007,Contract Hire,05/10/2023,4186600-350801,"1,274.40",C & R TAXIS.
Children and Young Peoples Services,Head of Education and Skills,Transport,230035,Contract Hire,05/10/2023,4186604-089,"1,900.00",CHANNER`S CABS.
Children and Young Peoples Services,Head of Education and Skills,Transport,230007,Contract Hire,05/10/2023,4186605-3389SEPT2023,"4,461.06",CHAPMAN TRAVEL.
Neighbourhoods and Climate Change,Highways,Stock A926,926900,Stock in hand-Inventory system,05/10/2023,4186616-23000RX23014469,"1,395.36",COLAS LTD.
Regeneration Economy and Growth,Culture Sport and Tourism,Supplies and Services,304252,Equipment and Materials,05/10/2023,4186620-SI-203347,626.40,CONTINENTAL SPORTS LTD.
Neighbourhoods and Climate Change,Partnerships & Community Engagement Div.,Supplies and Services,384086,Miscellaneous Expenses,05/10/2023,4186623-VOUCHER23NB-EDRC007,"3,000.00",COXHOE VILLAGE HALL ASSOCIATION.
Children and Young Peoples Services,Head of Childrens Social Care,Transport,230005,Contract Hire,05/10/2023,4186626-116540,794.64,CROFT BUSINESS SERVICES LTD T/A CROFT TRAVEL.
Children and Young Peoples Services,Head of Childrens Social Care,Transport,230005,Contract Hire,05/10/2023,4186626-116541,"1,271.42",CROFT BUSINESS SERVICES LTD T/A CROFT TRAVEL.
Children and Young Peoples Services,Head of Education and Skills,Transport,230007,Contract Hire,05/10/2023,4186626-116556,"5,301.86",CROFT BUSINESS SERVICES LTD T/A CROFT TRAVEL.
Children and Young Peoples Services,Head of Childrens Social Care,Transport,230005,Contract Hire,05/10/2023,4186626-116591,635.71,CROFT BUSINESS SERVICES LTD T/A CROFT TRAVEL.
Children and Young Peoples Services,Head of Childrens Social Care,Transport,230005,Contract Hire,05/10/2023,4186626-116592,"1,589.28",CROFT BUSINESS SERVICES LTD T/A CROFT TRAVEL.
Children and Young Peoples Services,Head of Childrens Social Care,Transport,230005,Contract Hire,05/10/2023,4186626-116593,761.16,CROFT BUSINESS SERVICES LTD T/A CROFT TRAVEL.
Children and Young Peoples Services,Head of Education and Skills,Transport,230009,Contract Hire,05/10/2023,4186630-1843,"1,980.00",DA TAXIS.
Children and Young Peoples Services,Head of Education and Skills,Transport,230003,Contract Hire,05/10/2023,4186630-608,"2,547.72",DA TAXIS.
Resources BK0010,Digital Services,Stock A926,926900,Stock in hand-Inventory system,05/10/2023,4186634-7402946886,809.34,DELL COMPUTER CORPORATION LTD.
Children and Young Peoples Services,Head of Childrens Social Care,Transport,230005,Contract Hire,05/10/2023,4186640-DH2328C,500.00,DH2 CABS.
Children and Young Peoples Services,Head of Childrens Social Care,Transport,230005,Contract Hire,05/10/2023,4186640-DH2328R,540.00,DH2 CABS.
Children and Young Peoples Services,Head of Childrens Social Care,Transport,230005,Contract Hire,05/10/2023,4186640-DH2328ZB,600.00,DH2 CABS.
Children and Young Peoples Services,Head of Childrens Social Care,Transport,230005,Contract Hire,05/10/2023,4186640-DH2328ZE,550.00,DH2 CABS.
Children and Young Peoples Services,Head of Childrens Social Care,Transport,230005,Contract Hire,05/10/2023,4186640-DH2328ZI,780.00,DH2 CABS.
Children and Young Peoples Services,Head of Childrens Social Care,Transport,230005,Contract Hire,05/10/2023,4186640-DH2328ZM,680.00,DH2 CABS.
Children and Young Peoples Services,Head of Childrens Social Care,Transport,230005,Contract Hire,05/10/2023,4186640-DH2329H,500.00,DH2 CABS.
Children and Young Peoples Services,Head of Childrens Social Care,Transport,230005,Contract Hire,05/10/2023,4186640-DH2329ZA,600.00,DH2 CABS.
Children and Young Peoples Services,Head of Childrens Social Care,Transport,230005,Contract Hire,05/10/2023,4186640-DH2329ZE,550.00,DH2 CABS.
Children and Young Peoples Services,Head of Childrens Social Care,Transport,230005,Contract Hire,05/10/2023,4186640-DH2329ZM,552.00,DH2 CABS.
Children and Young Peoples Services,Head of Childrens Social Care,Transport,230005,Contract Hire,05/10/2023,4186640-DH2337E,510.00,DH2 CABS.
Children and Young Peoples Services,Head of Childrens Social Care,Transport,230005,Contract Hire,05/10/2023,4186640-DH2337Q,552.00,DH2 CABS.
Children and Young Peoples Services,Head of Childrens Social Care,Transport,230005,Contract Hire,05/10/2023,4186640-DH2337ZD,900.00,DH2 CABS.
Children and Young Peoples Services,Head of Childrens Social Care,Transport,230005,Contract Hire,05/10/2023,4186640-DH2337ZG,600.00,DH2 CABS.
Regeneration Economy and Growth,Planning & Housing,Supplies and Services,384199,Miscellaneous Expenses,05/10/2023,4186652-49020,"5,187.96",DURHAM UNIVERSITY.
Neighbourhoods and Climate Change,Partnerships & Community Engagement Div.,Supplies and Services,384086,Miscellaneous Expenses,05/10/2023,4186657-VOUCHER23NB-EDUR035,"1,000.00",EASINGTON PAROCHIAL CHURCH COUNCIL.
Children and Young Peoples Services,Head of Education and Skills,Transport,230009,Contract Hire,05/10/2023,4186659-1677,"3,175.20",EAST DURHAM TAXIS.
Children and Young Peoples Services,Head of Education and Skills,Transport,230035,Contract Hire,05/10/2023,4186659-1680,"2,199.97",EAST DURHAM TAXIS.
Children and Young Peoples Services,Head of Education and Skills,Transport,230009,Contract Hire,05/10/2023,4186659-1688,"3,499.20",EAST DURHAM TAXIS.
Regeneration Economy and Growth,Business Durham,Premises,120009,Energy Costs,05/10/2023,4186666-000016544353,"16,214.92",EDF ENERGY CUSTOMERS PLC T/A EDF ENERGY.
Regeneration Economy and Growth,Business Durham,Premises,120009,Energy Costs,05/10/2023,4186666-000016546351,"5,404.78",EDF ENERGY CUSTOMERS PLC T/A EDF ENERGY.
Regeneration Economy and Growth,Business Durham,Premises,120009,Energy Costs,05/10/2023,4186666-000016546852,"14,162.08",EDF ENERGY CUSTOMERS PLC T/A EDF ENERGY.
Regeneration Economy and Growth,Business Durham,Premises,120009,Energy Costs,05/10/2023,4186666-000016547408,"16,840.87",EDF ENERGY CUSTOMERS PLC T/A EDF ENERGY.
Regeneration Economy and Growth,Business Durham,Premises,120009,Energy Costs,05/10/2023,4186666-000016547423,"4,863.34",EDF ENERGY CUSTOMERS PLC T/A EDF ENERGY.
Regeneration Economy and Growth,Corporate Property and Land,Supplies and Services,304221,Equipment and Materials,05/10/2023,4186667-059-325120,941.52,EDMUNDSON ELECTRICAL LTD.
Resources BK0010,Digital Services,Supplies and Services,304245,Equipment and Materials,05/10/2023,4186670-758973,"2,022.00",ENCORE ENVELOPES LTD.
Children and Young Peoples Services,Head of Education and Skills,Transport,230007,Contract Hire,05/10/2023,4186678-2634,"1,776.88",FMR SILVA PITA.
Children and Young Peoples Services,Head of Education and Skills,Transport,230007,Contract Hire,05/10/2023,4186678-2635,862.46,FMR SILVA PITA.
Children and Young Peoples Services,Head of Education and Skills,Transport,230034,Contract Hire,05/10/2023,4186681-1001,"1,830.00",FREEDOM PRIVATE HIRE.
Children and Young Peoples Services,Head of Education and Skills,Transport,230007,Contract Hire,05/10/2023,4186681-4600SEPT,"1,615.00",FREEDOM PRIVATE HIRE.
Children and Young Peoples Services,Head of Education and Skills,Transport,230007,Contract Hire,05/10/2023,4186683-24989-4034,"2,816.56",GARNETTS LTD (COACHES).
Children and Young Peoples Services,Head of Education and Skills,Transport,230007,Contract Hire,05/10/2023,4186683-24989-4035,"2,976.16",GARNETTS LTD (COACHES).
Children and Young Peoples Services,Head of Education and Skills,Transport,230007,Contract Hire,05/10/2023,4186683-24989-4037,"5,880.31",GARNETTS LTD (COACHES).
Children and Young Peoples Services,Head of Education and Skills,Transport,230007,Contract Hire,05/10/2023,4186683-24989-4038,"3,343.43",GARNETTS LTD (COACHES).
Children and Young Peoples Services,Head of Education and Skills,Transport,230007,Contract Hire,05/10/2023,4186683-24990,"13,360.86",GARNETTS LTD (COACHES).
Children and Young Peoples Services,Head of Education and Skills,Transport,230007,Contract Hire,05/10/2023,4186683-24993 - 3182,"4,655.00",GARNETTS LTD (COACHES).
Children and Young Peoples Services,Head of Education and Skills,Transport,230007,Contract Hire,05/10/2023,4186683-24993-3255,"5,301.00",GARNETTS LTD (COACHES).
Children and Young Peoples Services,Head of Education and Skills,Transport,230007,Contract Hire,05/10/2023,4186683-24999-3007,"4,560.00",GARNETTS LTD (COACHES).
Children and Young Peoples Services,Head of Education and Skills,Transport,230007,Contract Hire,05/10/2023,4186683-24999-3315,"5,605.00",GARNETTS LTD (COACHES).
Children and Young Peoples Services,Head of Education and Skills,Transport,230007,Contract Hire,05/10/2023,4186683-24999-3435,"7,562.00",GARNETTS LTD (COACHES).
Children and Young Peoples Services,Head of Education and Skills,Transport,230003,Contract Hire,05/10/2023,4186683-25000,"4,932.00",GARNETTS LTD (COACHES).
Children and Young Peoples Services,Head of Education and Skills,Transport,230007,Contract Hire,05/10/2023,4186685-6376,"1,681.50",GEM TRAVEL.
Resources BK0010,Digital Services,Supplies and Services,304303,Equipment and Materials,05/10/2023,4186691-INV0195602,"14,965.68",GVAV LTD T/A AUDIO VISUAL SOLUTIONS.
Regeneration Economy and Growth,Corporate Property and Land,Supplies and Services,304221,Equipment and Materials,05/10/2023,4186695-4773848,"3,039.84",HEADLAM (FLOORCOVERING DISTRIBUTORS) LTD.
Children and Young Peoples Services,Head of Education and Skills,Transport,230007,Contract Hire,05/10/2023,4186698-SI-183,"1,861.62",HEPWORTHS TRAVEL.
Regeneration Economy and Growth,Corporate Property and Land,Third Party Payments,430100,Rendered by Private Contractors,05/10/2023,4186699-DCC/DBS/013,"76,925.84",HEWITT SPECIALIST ENVELOPE CONTRACTORS LTD.
Regeneration Economy and Growth,Culture Sport and Tourism,Fees,901002,Consultants fees 901002,05/10/2023,4186700-3736,"72,023.38",HISTORIC PROPERTY RESTORATION LTD.
Adult and Health Services,Public Health CC0450,Third Party Payments,460803,Contract Payments,05/10/2023,4186704-SI-HK-001455,648.00,HUMANKIND CHARITY.
Regeneration Economy and Growth,Culture Sport and Tourism,Supplies and Services,304252,Equipment and Materials,05/10/2023,4186706-21702,"1,176.00",HUSSEY SEATWAY LTD.
Neighbourhoods and Climate Change,Highways,Supplies and Services,304221,Equipment and Materials,05/10/2023,4186707-400050602,"14,227.09",ICL UK SALES LTD (CLEVELAND POTASH LTD).
Children and Young Peoples Services,Head of Childrens Social Care,Third Party Payments,486020,Service level agreements E486,05/10/2023,4186709-DM010923-030923,"17,920.00",INCLUDE `IN` AUTISM.
Children and Young Peoples Services,Head of Childrens Social Care,Third Party Payments,486020,Service level agreements E486,05/10/2023,4186709-DM010923-030923-1,"23,520.00",INCLUDE `IN` AUTISM.
Children and Young Peoples Services,Head of Childrens Social Care,Third Party Payments,486020,Service level agreements E486,05/10/2023,4186709-DM061023-03112023,"3,040.00",INCLUDE `IN` AUTISM.
Neighbourhoods and Climate Change,Highways,Third Party Payments,430100,Rendered by Private Contractors,05/10/2023,4186714-28222,"57,544.69",JACK COUPE & SONS LTD T/A COUPE LINE.
Children and Young Peoples Services,Head of Education and Skills,Transport,230034,Contract Hire,05/10/2023,4186716-232401,"2,906.50",JD`S PRIVATE HIRE DURHAM.
Children and Young Peoples Services,Head of Education and Skills,Transport,230009,Contract Hire,05/10/2023,4186716-232403,"2,114.54",JD`S PRIVATE HIRE DURHAM.
Neighbourhoods and Climate Change,Environmental Services,Construction work A908,908105,Construction work,05/10/2023,4186723-0000084346,"11,970.00",JOHN WADE (HAULAGE) LTD.
Regeneration Economy and Growth,Corporate Property and Land,Supplies and Services,384199,Miscellaneous Expenses,05/10/2023,4186723-0000084347,"21,226.80",JOHN WADE (HAULAGE) LTD.
Regeneration Economy and Growth,Culture Sport and Tourism,Supplies and Services,304259,Equipment and Materials,05/10/2023,4186724-192306,620.75,JP LENNARD LTD.
Regeneration Economy and Growth,Culture Sport and Tourism,Supplies and Services,304259,Equipment and Materials,05/10/2023,4186724-192399,646.13,JP LENNARD LTD.
Regeneration Economy and Growth,Corporate Property and Land,Supplies and Services,304221,Equipment and Materials,05/10/2023,4186726-0213/01015508,983.16,JT DOVE LTD.
Children and Young Peoples Services,Head of Education and Skills,Transport,230008,Contract Hire,05/10/2023,4186728-1456SEP23,"4,704.00",K & R TAXIS (STANLEY).
Regeneration Economy and Growth,Economic Development,Supplies and Services,384700,Miscellaneous Expenses,05/10/2023,4186730-RES-10-2023-031,"36,491.51",KARBON HOMES LTD FORMERLY CESTRIA HOUSING ASSOCIATION LTD.
Children and Young Peoples Services,Head of Education and Skills,Transport,230007,Contract Hire,05/10/2023,4186732-2-SEPT23,"1,140.00",KELLY`S.
Regeneration Economy and Growth,Planning & Housing,Supplies and Services,338066,Services,05/10/2023,4186736-506098-050923,"1,500.00",KINGS CHAMBERS.
Children and Young Peoples Services,Head of Education and Skills,Transport,230007,Contract Hire,05/10/2023,4186737-7876-N067APR23,"1,884.84",KINGSWAY CABS LTD.
Children and Young Peoples Services,Head of Education and Skills,Transport,230007,Contract Hire,05/10/2023,4186737-7876-N067MAR23,"4,335.14",KINGSWAY CABS LTD.
Children and Young Peoples Services,Head of Education and Skills,Transport,230034,Contract Hire,05/10/2023,4186740-4122,"1,315.44",L&D TAXIS NE LTD.
Children and Young Peoples Services,Head of Education and Skills,Transport,230034,Contract Hire,05/10/2023,4186740-4123,"1,710.00",L&D TAXIS NE LTD.
Children and Young Peoples Services,Head of Education and Skills,Transport,230035,Contract Hire,05/10/2023,4186740-4126,"2,340.00",L&D TAXIS NE LTD.
Children and Young Peoples Services,Head of Education and Skills,Transport,230007,Contract Hire,05/10/2023,4186746-33041,"4,230.35",LEE`S COACHES LTD.
Children and Young Peoples Services,Head of Education and Skills,Transport,230007,Contract Hire,05/10/2023,4186746-33042,"4,680.00",LEE`S COACHES LTD.
Neighbourhoods and Climate Change,Highways,Supplies and Services,304221,Equipment and Materials,05/10/2023,4186747-CINV090937,"8,959.14",LIMELIGHT SIGNS LTD.
Children and Young Peoples Services,Head of Early Help Inclusion & Vulnerable Children.,Supplies and Services,384906,Miscellaneous Expenses,05/10/2023,4186749-RES-10-2023-047,"11,216.80",LINGFIELD EDUCATION TRUST T/A WOODHAM BURN COMMUNITY PRIMARY SCHOOL.
Regeneration Economy and Growth,Economic Development,Supplies and Services,384700,Miscellaneous Expenses,05/10/2023,4186751-RES-10-2023-029,"19,338.23",LIVIN HOUSING LTD.
Children and Young Peoples Services,Head of Childrens Social Care,Transport,230005,Contract Hire,05/10/2023,4186753-5447,672.00,LOCAL TRANSPORT LTD.
Children and Young Peoples Services,Head of Childrens Social Care,Transport,230005,Contract Hire,05/10/2023,4186753-5469,"1,008.00",LOCAL TRANSPORT LTD.
Children and Young Peoples Services,Head of Childrens Social Care,Transport,230005,Contract Hire,05/10/2023,4186753-5470,"1,732.80",LOCAL TRANSPORT LTD.
Neighbourhoods and Climate Change,Environmental Services,Supplies and Services,304221,Equipment and Materials,05/10/2023,4186755-2231031,"1,884.48",LUBBE & SONS.
Children and Young Peoples Services,Head of Childrens Social Care,Third Party Payments,440038,Other third party payments E440,05/10/2023,4186757-8009,"6,589.68",MAJOR RECRUITMENT LTD.*
Children and Young Peoples Services,Head of Education and Skills,Transport,230007,Contract Hire,05/10/2023,4186760-INV09/2023-01,"1,454.98",MARK & JOHN CHISHOLM T/A (CHEVRON).
Children and Young Peoples Services,Head of Education and Skills,Transport,230007,Contract Hire,05/10/2023,4186760-INV09/2023-02,"1,407.46",MARK & JOHN CHISHOLM T/A (CHEVRON).
Children and Young Peoples Services,Head of Education and Skills,Transport,230007,Contract Hire,05/10/2023,4186760-INV09/2023-03,"2,655.07",MARK & JOHN CHISHOLM T/A (CHEVRON).
Children and Young Peoples Services,Head of Education and Skills,Transport,230007,Contract Hire,05/10/2023,4186760-INV09/2023-04,"1,780.22",MARK & JOHN CHISHOLM T/A (CHEVRON).
Children and Young Peoples Services,Head of Education and Skills,Transport,230007,Contract Hire,05/10/2023,4186760-INV09/2023-05,"1,789.20",MARK & JOHN CHISHOLM T/A (CHEVRON).
Children and Young Peoples Services,Head of Education and Skills,Transport,230034,Contract Hire,05/10/2023,4186769-616,"2,204.00",MICKS TAXIS - MURTON.
Neighbourhoods and Climate Change,Highways,Supplies and Services,304221,Equipment and Materials,05/10/2023,4186775-0045/30169464A,"1,165.25",MKM BUILDING SUPPLIES LTD.
Regeneration Economy and Growth,Culture Sport and Tourism,Supplies and Services,324001,Provisions E324,05/10/2023,4186776-907279586,"1,558.98",MOLSON COORS BREWING COMPANY (UK) LTD.
Children and Young Peoples Services,Head of Education and Skills,Transport,230034,Contract Hire,05/10/2023,4186788-SEPTEMBER 2023,"2,850.00",ND TAXIS.
Neighbourhoods and Climate Change,Highways,Fees,901004,Capital - Detailed Design,05/10/2023,4186797-43556526,674.00,NEWSQUEST (YORKSHIRE & NORTH EAST) LTD.
Regeneration Economy and Growth,Corporate Property and Land,Supplies and Services,304221,Equipment and Materials,05/10/2023,4186800-66918,"3,426.00",NLS SECURITY LTD T/A ESAFES.
Children and Young Peoples Services,Head of Early Help Inclusion & Vulnerable Children.,Supplies and Services,384409,Miscellaneous Expenses,05/10/2023,4186801-2423,"6,480.00",NMC SPORTS.
Regeneration Economy and Growth,Economic Development,Supplies and Services,384700,Miscellaneous Expenses,05/10/2023,4186809-RES-10-2023-028,"11,854.84",NORTHERN LEARNING TRUST.
Neighbourhoods and Climate Change,Highways,Third Party Payments,430100,Rendered by Private Contractors,05/10/2023,4186811-9090,"8,972.40",NU PHALT CONTRACTING LTD.
Regeneration Economy and Growth,Corporate Property and Land,Third Party Payments,430100,Rendered by Private Contractors,05/10/2023,4186814-G0765425,"3,352.80",ORBIS PROTECT LTD.
Regeneration Economy and Growth,Corporate Property and Land,Supplies and Services,304221,Equipment and Materials,05/10/2023,4186819-DT215374,905.11,PARK ELECTRICAL DISTRIBUTORS LTD.
Neighbourhoods and Climate Change,Highways,Stock A926,926900,Stock in hand-Inventory system,05/10/2023,4186819-XL307338,"1,034.88",PARK ELECTRICAL DISTRIBUTORS LTD.
Adult and Health Services,Public Health CC0450,Third Party Payments,460803,Contract Payments,05/10/2023,4186820-58860763D,"18,375.00",PARK RETAIL LTD T/A LOVE2SHOP.
Children and Young Peoples Services,Head of Education and Skills,Supplies and Services,312009,Newspapers books and periodicals E312,05/10/2023,4186827-2016945,"1,704.95",PETERS LTD.
Children and Young Peoples Services,Head of Education and Skills,Transport,230034,Contract Hire,05/10/2023,4186828-5294SEP23,"1,717.92",PETER`S TAXIS.
Children and Young Peoples Services,Head of Education and Skills,Transport,230009,Contract Hire,05/10/2023,4186828-7345,"1,983.20",PETER`S TAXIS.
Children and Young Peoples Services,Head of Education and Skills,Transport,230007,Contract Hire,05/10/2023,4186830-INV0051,"4,076.26",PHIL BELL EXECUTIVE TRAVEL.
Adult and Health Services,Public Health CC0450,Third Party Payments,460803,Contract Payments,05/10/2023,4186834-18491/18,"8,792.40",PIONEERING CARE PARTNERSHIP.
Children and Young Peoples Services,Head of Childrens Social Care,Transport,230005,Contract Hire,05/10/2023,4186841-SI-3043,678.00,PTL TAXIS LTD.
Children and Young Peoples Services,Head of Childrens Social Care,Transport,230005,Contract Hire,05/10/2023,4186841-SI-3045,847.80,PTL TAXIS LTD.
Children and Young Peoples Services,Head of Childrens Social Care,Transport,230005,Contract Hire,05/10/2023,4186841-SI-3047,666.00,PTL TAXIS LTD.
Children and Young Peoples Services,Head of Childrens Social Care,Transport,230005,Contract Hire,05/10/2023,4186841-SI-3048,774.00,PTL TAXIS LTD.
Children and Young Peoples Services,Head of Childrens Social Care,Transport,230005,Contract Hire,05/10/2023,4186841-SI-3060,"1,134.00",PTL TAXIS LTD.
Children and Young Peoples Services,Head of Childrens Social Care,Transport,230005,Contract Hire,05/10/2023,4186841-SI-3061,678.00,PTL TAXIS LTD.
Children and Young Peoples Services,Head of Childrens Social Care,Transport,230005,Contract Hire,05/10/2023,4186841-SI-3063,847.80,PTL TAXIS LTD.
Children and Young Peoples Services,Head of Childrens Social Care,Transport,230005,Contract Hire,05/10/2023,4186841-SI-3065,666.00,PTL TAXIS LTD.
Children and Young Peoples Services,Head of Childrens Social Care,Transport,230005,Contract Hire,05/10/2023,4186841-SI-3066,774.00,PTL TAXIS LTD.
Neighbourhoods and Climate Change,Highways,Third Party Payments,430100,Rendered by Private Contractors,05/10/2023,4186844-15255,"4,789.92",QUANTUM POWER CONNECTIONS LTD.
Neighbourhoods and Climate Change,Highways,Third Party Payments,430100,Rendered by Private Contractors,05/10/2023,4186844-15256,626.83,QUANTUM POWER CONNECTIONS LTD.
Neighbourhoods and Climate Change,Highways,Third Party Payments,430100,Rendered by Private Contractors,05/10/2023,4186844-15257,626.83,QUANTUM POWER CONNECTIONS LTD.
Neighbourhoods and Climate Change,Highways,Third Party Payments,430100,Rendered by Private Contractors,05/10/2023,4186844-15258,773.35,QUANTUM POWER CONNECTIONS LTD.
Neighbourhoods and Climate Change,Highways,Third Party Payments,430100,Rendered by Private Contractors,05/10/2023,4186844-15259,626.83,QUANTUM POWER CONNECTIONS LTD.
Neighbourhoods and Climate Change,Highways,Third Party Payments,430100,Rendered by Private Contractors,05/10/2023,4186844-15260,"1,473.44",QUANTUM POWER CONNECTIONS LTD.
Neighbourhoods and Climate Change,Highways,Third Party Payments,430100,Rendered by Private Contractors,05/10/2023,4186844-15261,626.83,QUANTUM POWER CONNECTIONS LTD.
Neighbourhoods and Climate Change,Highways,Third Party Payments,430100,Rendered by Private Contractors,05/10/2023,4186844-15262,640.51,QUANTUM POWER CONNECTIONS LTD.
Children and Young Peoples Services,Head of Education and Skills,Transport,230008,Contract Hire,05/10/2023,4186864-W190COVER,690.00,S & S TRAVEL LTD.
Neighbourhoods and Climate Change,Environmental Services,Supplies and Services,384199,Miscellaneous Expenses,05/10/2023,4186865-7675,684.00,SAFE STRIP UK LTD.
Children and Young Peoples Services,Head of Education and Skills,Supplies and Services,338078,Services,05/10/2023,4186866-18600,"1,083.30",SAFEGUARD SECURITY (NE) LTD.
Adult and Health Services,Head of Adults,Supplies and Services,338365,Services,05/10/2023,4186868-242874,"3,924.13",SARABEC LTD.
Adult and Health Services,Commissioning inc Supporting People,Third Party Payments,470103,Purchase of Care,05/10/2023,4186876-GRW258320,"1,322.28",SHAFTESBURY CARE GROUP LTD.
Regeneration Economy and Growth,Culture Sport and Tourism,Supplies and Services,304259,Equipment and Materials,05/10/2023,4186884-SI-23240128,750.00,SPORTS MAINTENANCE SERVICES LTD.
Regeneration Economy and Growth,Corporate Property and Land,Third Party Payments,430100,Rendered by Private Contractors,05/10/2023,4186885-8737,"6,246.00",ST ASTIER LTD.
Children and Young Peoples Services,Head of Childrens Social Care,Transport,230005,Contract Hire,05/10/2023,4186905-APR12/STL23,604.80,STL CABS LTD.
Children and Young Peoples Services,Head of Childrens Social Care,Transport,230005,Contract Hire,05/10/2023,4186905-APR29/STL23,640.80,STL CABS LTD.
Children and Young Peoples Services,Head of Childrens Social Care,Transport,230005,Contract Hire,05/10/2023,4186905-SEP1/STL23,"1,528.80",STL CABS LTD.
Children and Young Peoples Services,Head of Childrens Social Care,Transport,230005,Contract Hire,05/10/2023,4186905-SEP10/STL23,614.40,STL CABS LTD.
Children and Young Peoples Services,Head of Childrens Social Care,Transport,230005,Contract Hire,05/10/2023,4186905-SEP15/STL23,624.00,STL CABS LTD.
Children and Young Peoples Services,Head of Childrens Social Care,Transport,230005,Contract Hire,05/10/2023,4186905-SEP17/STL23,702.00,STL CABS LTD.
Children and Young Peoples Services,Head of Childrens Social Care,Transport,230005,Contract Hire,05/10/2023,4186905-SEP23/STL23,"1,411.20",STL CABS LTD.
Children and Young Peoples Services,Head of Childrens Social Care,Transport,230005,Contract Hire,05/10/2023,4186905-SEP27/STL23,"1,256.40",STL CABS LTD.
Children and Young Peoples Services,Head of Childrens Social Care,Transport,230005,Contract Hire,05/10/2023,4186905-SEP29/STL23,"1,377.60",STL CABS LTD.
Children and Young Peoples Services,Head of Childrens Social Care,Transport,230005,Contract Hire,05/10/2023,4186905-SEP3/STL23,"2,136.00",STL CABS LTD.
Children and Young Peoples Services,Head of Childrens Social Care,Transport,230005,Contract Hire,05/10/2023,4186905-SEP31/STL23,"2,479.20",STL CABS LTD.
Children and Young Peoples Services,Head of Childrens Social Care,Transport,230005,Contract Hire,05/10/2023,4186905-SEP32/STL23,764.40,STL CABS LTD.
Children and Young Peoples Services,Head of Childrens Social Care,Transport,230005,Contract Hire,05/10/2023,4186905-SEP33/STL23,"1,482.00",STL CABS LTD.
Children and Young Peoples Services,Head of Childrens Social Care,Transport,230005,Contract Hire,05/10/2023,4186905-SEP4/STL23,"1,965.60",STL CABS LTD.
Children and Young Peoples Services,Head of Childrens Social Care,Transport,230005,Contract Hire,05/10/2023,4186905-SEP6/STL23,"2,088.00",STL CABS LTD.
Children and Young Peoples Services,Head of Childrens Social Care,Transport,230005,Contract Hire,05/10/2023,4186905-SEP7/STL23,864.00,STL CABS LTD.
Adult and Health Services,Commissioning inc Supporting People,Transport,240045,Car allowances E240,05/10/2023,4186908-12499,"3,232.74",SUPPORTIVE SRC LTD.
Children and Young Peoples Services,Head of Education and Skills,Supplies and Services,338066,Services,05/10/2023,4186909-80147,"1,574.40",SWINBURNE MADDISON LLP.
Children and Young Peoples Services,Head of Early Help Inclusion & Vulnerable Children.,Employees,080025,Agency Staff,05/10/2023,4186912-0000532929,"3,460.80",TEACHERACTIVE LTD.
Children and Young Peoples Services,Head of Education and Skills,Transport,230007,Contract Hire,05/10/2023,4186914-4055SEP23,"3,455.46",TED WILFORD COACHES.
Children and Young Peoples Services,Head of Education and Skills,Transport,230003,Contract Hire,05/10/2023,4186914-5030SEP23,"3,608.82",TED WILFORD COACHES.
Resources BK0010,Legal & Democratic Services,Supplies and Services,338042,Services,05/10/2023,4186928-308732/INVKW740,864.00,TRINITY CHAMBERS.
Neighbourhoods and Climate Change,Environmental Services,Third Party Payments,460305,Contract Payments,05/10/2023,4186929-0000018194,"7,830.00",TRISCAN SYSTEMS LTD.
Adult and Health Services,Public Health CC0450,Third Party Payments,460803,Contract Payments,05/10/2023,4186933-SI-TPL-00079480,"1,855.00",TURNING POINT (SERVICES) LTD.
Children and Young Peoples Services,Head of Early Help Inclusion & Vulnerable Children.,Supplies and Services,342055,Computers and Communications,05/10/2023,4186934-122549,543.52,TWINKL EDUCATIONAL PUBLISHING LTD.
Neighbourhoods and Climate Change,Highways,Supplies and Services,304221,Equipment and Materials,05/10/2023,4186935-251548,"1,036.21",TYNEDALE ROADSTONE LTD.
Neighbourhoods and Climate Change,Highways,Supplies and Services,304221,Equipment and Materials,05/10/2023,4186935-251549,"3,200.76",TYNEDALE ROADSTONE LTD.
Neighbourhoods and Climate Change,Highways,Supplies and Services,304221,Equipment and Materials,05/10/2023,4186935-251550,"1,914.12",TYNEDALE ROADSTONE LTD.
Regeneration Economy and Growth,Culture Sport and Tourism,Supplies and Services,304259,Equipment and Materials,05/10/2023,4186937-UG-0926,"2,100.00",UNDEFINED LTD T/A THE UNDEFINED GROUP.
Children and Young Peoples Services,Head of Education and Skills,Transport,230007,Contract Hire,05/10/2023,4186943-0003781,"3,496.00",WATSONS OF SPENNYMOOR.
Regeneration Economy and Growth,Corporate Property and Land,Third Party Payments,430100,Rendered by Private Contractors,05/10/2023,4186946-59694,"1,452.00",WILLOWCRETE MANUFACTURING COMPANY LTD (MFG).
Neighbourhoods and Climate Change,Environmental Services,Transport,215005,Running Costs of Vehicles,05/10/2023,4186950-1023475,"1,101.98",YOUR NRG LTD.
Neighbourhoods and Climate Change,Environmental Services,Transport,215005,Running Costs of Vehicles,05/10/2023,4186950-1023477,"1,234.03",YOUR NRG LTD.
Neighbourhoods and Climate Change,Environmental Services,Transport,215005,Running Costs of Vehicles,05/10/2023,4186950-1023901,"26,848.13",YOUR NRG LTD.
Neighbourhoods and Climate Change,Environmental Services,Transport,215005,Running Costs of Vehicles,05/10/2023,4186950-1023902,"14,875.97",YOUR NRG LTD.
Neighbourhoods and Climate Change,Environmental Services,Transport,215005,Running Costs of Vehicles,05/10/2023,4186950-1023903,"4,526.64",YOUR NRG LTD.
Neighbourhoods and Climate Change,Environmental Services,Transport,215005,Running Costs of Vehicles,05/10/2023,4186950-1024191,"17,181.11",YOUR NRG LTD.
Children and Young Peoples Services,Head of Education and Skills,Transport,230009,Contract Hire,05/10/2023,4186533-10-7384SEP23,"1,790.94",REDACTED - PAYMENT TO INDIVIDUAL
Children and Young Peoples Services,Head of Education and Skills,Transport,230007,Contract Hire,05/10/2023,4186608-47785,"2,675.64",REDACTED - PAYMENT TO INDIVIDUAL
Children and Young Peoples Services,Head of Education and Skills,Transport,230007,Contract Hire,05/10/2023,4186608-47786,"5,040.00",REDACTED - PAYMENT TO INDIVIDUAL
Children and Young Peoples Services,Head of Education and Skills,Transport,230003,Contract Hire,05/10/2023,4186608-47788,"3,960.00",REDACTED - PAYMENT TO INDIVIDUAL
Children and Young Peoples Services,Head of Education and Skills,Transport,230003,Contract Hire,05/10/2023,4186608-47789,"5,040.00",REDACTED - PAYMENT TO INDIVIDUAL
Children and Young Peoples Services,Head of Education and Skills,Transport,230034,Contract Hire,05/10/2023,4186632-22,"1,750.00",REDACTED - PAYMENT TO INDIVIDUAL
Children and Young Peoples Services,Head of Education and Skills,Transport,230034,Contract Hire,05/10/2023,4186632-23,"3,135.00",REDACTED - PAYMENT TO INDIVIDUAL
Children and Young Peoples Services,Head of Childrens Social Care,Supplies and Services,338044,Services,05/10/2023,4186646-SI-1779,647.45,REDACTED - PAYMENT TO INDIVIDUAL
Children and Young Peoples Services,Head of Education and Skills,Transport,230006,Contract Hire,05/10/2023,4186694-1-SEPT23,"1,168.26",REDACTED - PAYMENT TO INDIVIDUAL
Children and Young Peoples Services,Head of Education and Skills,Transport,230007,Contract Hire,05/10/2023,4186694-12-SEPT23,"1,262.93",REDACTED - PAYMENT TO INDIVIDUAL
Adult and Health Services,Head of Adults,Transport,230005,Contract Hire,05/10/2023,4186694-24-SEPT23,905.40,REDACTED - PAYMENT TO INDIVIDUAL
Neighbourhoods and Climate Change,Environmental Services,Supplies and Services,338066,Services,05/10/2023,4186721-55/23A,"4,900.00",REDACTED - PAYMENT TO INDIVIDUAL
Dedicated Schools Grant BG0015,DSG High Needs Block,Transport,230011,Contract Hire,05/10/2023,4186722-331,"2,185.00",REDACTED - PAYMENT TO INDIVIDUAL
Regeneration Economy and Growth,Culture Sport and Tourism,Supplies and Services,338047,Services,05/10/2023,4186731-DGT12992023,"1,500.00",REDACTED - PAYMENT TO INDIVIDUAL
Children and Young Peoples Services,Head of Education and Skills,Transport,230034,Contract Hire,05/10/2023,4186733-SD001,"2,057.32",REDACTED - PAYMENT TO INDIVIDUAL
Children and Young Peoples Services,Head of Education and Skills,Transport,230007,Contract Hire,05/10/2023,4186734-010923,"1,567.32",REDACTED - PAYMENT TO INDIVIDUAL
Children and Young Peoples Services,Head of Education and Skills,Transport,230007,Contract Hire,05/10/2023,4186778-302023-3000SEP23,"1,116.99",REDACTED - PAYMENT TO INDIVIDUAL
Children and Young Peoples Services,Head of Education and Skills,Transport,230007,Contract Hire,05/10/2023,4186779-6046KDK/SEPT2023,"1,235.00",REDACTED - PAYMENT TO INDIVIDUAL
Children and Young Peoples Services,Head of Education and Skills,Transport,230007,Contract Hire,05/10/2023,4186780-BR/09/23,"1,212.44",REDACTED - PAYMENT TO INDIVIDUAL
Children and Young Peoples Services,Head of Education and Skills,Transport,230034,Contract Hire,05/10/2023,4186782-4501SEPT23,"3,048.87",REDACTED - PAYMENT TO INDIVIDUAL
Children and Young Peoples Services,Head of Education and Skills,Transport,230007,Contract Hire,05/10/2023,4186783-ESH0923,"1,418.54",REDACTED - PAYMENT TO INDIVIDUAL
Children and Young Peoples Services,Head of Education and Skills,Transport,230034,Contract Hire,05/10/2023,4186783-JOHN0923,"2,646.00",REDACTED - PAYMENT TO INDIVIDUAL
Children and Young Peoples Services,Head of Education and Skills,Transport,230035,Contract Hire,05/10/2023,4186785-215563,"4,202.81",REDACTED - PAYMENT TO INDIVIDUAL
Children and Young Peoples Services,Head of Education and Skills,Transport,230034,Contract Hire,05/10/2023,4186785-215567,"1,728.00",REDACTED - PAYMENT TO INDIVIDUAL
Children and Young Peoples Services,Head of Education and Skills,Transport,230007,Contract Hire,05/10/2023,4186822-SC-301-SEPT23,"3,170.88",REDACTED - PAYMENT TO INDIVIDUAL
Children and Young Peoples Services,Head of Education and Skills,Transport,230009,Contract Hire,05/10/2023,4186823-7009SEP23,"1,805.00",REDACTED - PAYMENT TO INDIVIDUAL
Children and Young Peoples Services,Head of Education and Skills,Transport,230007,Contract Hire,05/10/2023,4186825-1154/SEPT/23,943.60,REDACTED - PAYMENT TO INDIVIDUAL
Children and Young Peoples Services,Head of Education and Skills,Transport,230034,Contract Hire,05/10/2023,4186849-003,"2,646.35",REDACTED - PAYMENT TO INDIVIDUAL
Children and Young Peoples Services,Head of Education and Skills,Transport,230034,Contract Hire,05/10/2023,4186901-200,"1,717.20",REDACTED - PAYMENT TO INDIVIDUAL
Children and Young Peoples Services,Head of Education and Skills,Transport,230008,Contract Hire,05/10/2023,4186901-202,"2,550.00",REDACTED - PAYMENT TO INDIVIDUAL
Children and Young Peoples Services,Head of Education and Skills,Transport,230034,Contract Hire,05/10/2023,4186901-203,"1,763.38",REDACTED - PAYMENT TO INDIVIDUAL
Children and Young Peoples Services,Head of Education and Skills,Transport,230035,Contract Hire,05/10/2023,4186901-204,"1,412.16",REDACTED - PAYMENT TO INDIVIDUAL
Children and Young Peoples Services,Head of Education and Skills,Transport,230007,Contract Hire,05/10/2023,4186902-5290SEP23,"1,347.30",REDACTED - PAYMENT TO INDIVIDUAL
Children and Young Peoples Services,Head of Childrens Social Care,Supplies and Services,312009,Newspapers books and periodicals E312,05/10/2023,4186625-202426,"1,149.50",CRITICAL PUBLISHING LTD.
Neighbourhoods and Climate Change,Partnerships & Community Engagement Div.,Cap Exp on Grants & Other Financial Assistance (REFCUS),918004,Contributions to other bodies 918004,05/10/2023,4186793-VOUCHER23NB-MDUR006,"27,588.00",NEW BRANCEPETH VILLAGE HALL ASSOCIATION.
Regeneration Economy and Growth,Corporate Property and Land,Cap Exp on Grants & Other Financial Assistance (REFCUS),918004,Contributions to other bodies 918004,05/10/2023,4186802-RES-10-2023-032,"2,529.00",NOON LIVING LTD.
Adult and Health Services,Commissioning inc Supporting People,Third Party Payments,479102,Purchase of Care,05/10/2023,4186855-0271,"2,550.00",RLM GROUP LTD.
Neighbourhoods and Climate Change,Partnerships & Community Engagement Div.,Cap Exp on Grants & Other Financial Assistance (REFCUS),918004,Contributions to other bodies 918004,05/10/2023,4186938-VOUCHER23NB-EDUR033,"1,000.00",VANE TEMPEST THEATRE GROUP.
Neighbourhoods and Climate Change,Environmental Services,Third Party Payments,430100,Rendered by Private Contractors,05/10/2023,4186680-00-044178,780.00,REDACTED - PAYMENT TO INDIVIDUAL
Neighbourhoods and Climate Change,Environmental Services,Supplies and Services,304259,Equipment and Materials,06/10/2023,4186958-425309626,611.34,AIR PRODUCTS PLC.
Adult and Health Services,Head of Adults,Supplies and Services,338089,Services,06/10/2023,4186963-17022,"1,584.00",APT TRAINING & CONSULTANCY LTD.
Regeneration Economy and Growth,Corporate Property and Land,Premises,108099,Service Repairs and Maintenance,06/10/2023,4186969-0000018365,677.40,AUDITORIA SERVICES LTD.
Regeneration Economy and Growth,Corporate Property and Land,Fees,901001,Internal fees,06/10/2023,4186976-SIN046222,"81,944.55",BLOOM PROCUREMENT SERVICES LTD (FORMERLY NEPRO LTD).
Children and Young Peoples Services,Head of Education and Skills,Third Party Payments,440999,Other third party payments E440,06/10/2023,4186980-29,"7,314.00",BROADSIDE CREATIVES CIC.
Children and Young Peoples Services,Head of Early Help Inclusion & Vulnerable Children.,Supplies and Services,338066,Services,06/10/2023,4186981-21620895,"3,749.60",BROOK STREET UK LTD T/A BS SOCIAL CARE.
Children and Young Peoples Services,Head of Early Help Inclusion & Vulnerable Children.,Supplies and Services,338066,Services,06/10/2023,4186981-21620896,"3,749.60",BROOK STREET UK LTD T/A BS SOCIAL CARE.
Children and Young Peoples Services,Head of Education and Skills,Supplies and Services,338035,Services,06/10/2023,4186991-806414148,"1,420.00",CITY & GUILDS OF LONDON INSTITUTE.
Neighbourhoods and Climate Change,Highways,Stock A926,926900,Stock in hand-Inventory system,06/10/2023,4186994-23000RX23014536,"2,078.35",COLAS LTD.
Adult and Health Services,Head of Adults,Third Party Payments,478151,Purchase of Care,06/10/2023,4187009-INV-1651,"2,906.75",DEACONSTAR LTD.
Regeneration Economy and Growth,Corporate Property and Land,Third Party Payments,430100,Rendered by Private Contractors,06/10/2023,4187014-190/2023,"21,720.00",DPC SCREEDING LTD.
Regeneration Economy and Growth,Corporate Property and Land,Supplies and Services,304221,Equipment and Materials,06/10/2023,4187021-059-325207,"1,042.63",EDMUNDSON ELECTRICAL LTD.
Neighbourhoods and Climate Change,Highways,Supplies and Services,304221,Equipment and Materials,06/10/2023,4187025-2309\082,773.76,EPPLETON QUARRY PRODUCTS LTD.
Neighbourhoods and Climate Change,Highways,Supplies and Services,304221,Equipment and Materials,06/10/2023,4187025-2309\083,731.52,EPPLETON QUARRY PRODUCTS LTD.
Neighbourhoods and Climate Change,Environmental Services,Supplies and Services,304259,Equipment and Materials,06/10/2023,4187040-13453,"1,043.46",GB SPORT & LEISURE UK LTD.
Regeneration Economy and Growth,Corporate Property and Land,Premises,106082,Centrally Controlled Rep and Maint,06/10/2023,4187041-INV-1753,"12,629.22",GLENFIELD ENERGY SOLUTIONS LTD.
Children and Young Peoples Services,Head of Early Help Inclusion & Vulnerable Children.,Supplies and Services,384409,Miscellaneous Expenses,06/10/2023,4187048-SI-0000547,"45,177.60",GROUNDWORK NORTH EAST.
Adult and Health Services,Public Health CC0450,Third Party Payments,460803,Contract Payments,06/10/2023,4187052-2510051388,"929,264.13",HARROGATE & DISTRICT NHS FOUNDATION TRUST.
Adult and Health Services,Public Health CC0450,Third Party Payments,460803,Contract Payments,06/10/2023,4187052-2510051389,"4,798.89",HARROGATE & DISTRICT NHS FOUNDATION TRUST.
Adult and Health Services,Public Health CC0450,Supplies and Services,384899,Miscellaneous Expenses,06/10/2023,4187052-2510051390,"4,289.17",HARROGATE & DISTRICT NHS FOUNDATION TRUST.
Children and Young Peoples Services,Head of Education and Skills,Third Party Payments,440999,Other third party payments E440,06/10/2023,4187058-SI-HK-001353,"3,861.00",HUMANKIND CHARITY.
Children and Young Peoples Services,Head of Education and Skills,Third Party Payments,440999,Other third party payments E440,06/10/2023,4187058-SI-HK-001394,"28,314.00",HUMANKIND CHARITY.
Children and Young Peoples Services,Head of Education and Skills,Third Party Payments,440999,Other third party payments E440,06/10/2023,4187058-SI-HK-001460,"3,000.00",HUMANKIND CHARITY.
Neighbourhoods and Climate Change,Highways,Third Party Payments,430100,Rendered by Private Contractors,06/10/2023,4187063-28344,930.79,JACK COUPE & SONS LTD T/A COUPE LINE.
Regeneration Economy and Growth,Corporate Property and Land,Supplies and Services,304221,Equipment and Materials,06/10/2023,4187070-0303/01021994,"1,944.00",JT DOVE LTD.
Regeneration Economy and Growth,Corporate Property and Land,Premises,108099,Service Repairs and Maintenance,06/10/2023,4187086-187839,960.00,LUCION ENVIRONMENTAL LLP LTD.
Children and Young Peoples Services,Head of Education and Skills,Third Party Payments,440999,Other third party payments E440,06/10/2023,4187091-AW1121,"10,620.00",MBC ARTS WELLBEING CIC.
Children and Young Peoples Services,Head of Early Help Inclusion & Vulnerable Children.,Supplies and Services,384906,Miscellaneous Expenses,06/10/2023,4187095-RES-10-2023-043,"17,111.00",NEW COLLEGE DURHAM ACADEMIES TRUST.
Adult and Health Services,Central/Other,Third Party Payments,440150,Other third party payments E440,06/10/2023,4187099-BCF/OCTOBER2023,"1,672,011.00",NHS NORTH EAST & NORTH CUMBRIA ICB.
Neighbourhoods and Climate Change,Environmental Services,Supplies and Services,304403,Equipment and Materials,06/10/2023,4187100-26401,852.00,NORTHERN POWER CLEAN LTD.
Neighbourhoods and Climate Change,Highways,Third Party Payments,430100,Rendered by Private Contractors,06/10/2023,4187101-DI20413786,"1,134.10",NORTHERN POWERGRID (NORTHEAST) LTD.
Neighbourhoods and Climate Change,Highways,Third Party Payments,430100,Rendered by Private Contractors,06/10/2023,4187101-DI20413788,"6,838.01",NORTHERN POWERGRID (NORTHEAST) LTD.
Resources BK0010,HR & Employee Services,Supplies and Services,384199,Miscellaneous Expenses,06/10/2023,4187110-INV-1207,"1,200.00",OM CHANGE & TRANSFORMATION LTD.
Resources BK0010,HR & Employee Services,Supplies and Services,384199,Miscellaneous Expenses,06/10/2023,4187110-INV-1208,"1,834.56",OM CHANGE & TRANSFORMATION LTD.
Resources BK0010,HR & Employee Services,Supplies and Services,384199,Miscellaneous Expenses,06/10/2023,4187110-INV-1212,696.00,OM CHANGE & TRANSFORMATION LTD.
Neighbourhoods and Climate Change,Environmental Services,Supplies and Services,304221,Equipment and Materials,06/10/2023,4187116-OASI0078864,"5,391.60",ORIGIN AMENITY SOLUTIONS LTD.
Children and Young Peoples Services,Head of Education and Skills,Supplies and Services,312009,Newspapers books and periodicals E312,06/10/2023,4187123-2017300,"1,882.35",PETERS LTD.
Neighbourhoods and Climate Change,Environmental Services,Supplies and Services,304221,Equipment and Materials,06/10/2023,4187133-24374,"5,381.76",PROBRUSH T/A NORTHERN MUNICIPAL SPARES LTD.
Regeneration Economy and Growth,Business Durham,Supplies and Services,377015,County Durham Development,06/10/2023,4187144-INV4620,"1,020.00",ROADMEDIA LTD T/A DRIVE BY MEDIA.
Regeneration Economy and Growth,Business Durham,Construction work A908,908105,Construction work,06/10/2023,4187145-24030015,"39,085.72",ROBERTSON CAPITAL PROJECTS.
Regeneration Economy and Growth,Business Durham,Construction work A908,908105,Construction work,06/10/2023,4187145-24030023,"1,978.02",ROBERTSON CAPITAL PROJECTS.
Regeneration Economy and Growth,Culture Sport and Tourism,Supplies and Services,304259,Equipment and Materials,06/10/2023,4187149-17155,"2,113.32",SAFE SECURE LOCKER SERVICES LTD.
Regeneration Economy and Growth,Culture Sport and Tourism,Supplies and Services,304259,Equipment and Materials,06/10/2023,4187149-17156,740.16,SAFE SECURE LOCKER SERVICES LTD.
Regeneration Economy and Growth,Corporate Property and Land,Premises,108099,Service Repairs and Maintenance,06/10/2023,4187150-7711,"2,940.00",SAFE STRIP UK LTD.
Regeneration Economy and Growth,Corporate Property and Land,Fees,901002,Consultants fees 901002,06/10/2023,4187151-INSU00358506,"42,525.00",SAVILLS UK LTD.
Neighbourhoods and Climate Change,Highways,Supplies and Services,352001,Conference Expenses,06/10/2023,4187155-1984,"1,190.40",SECTOR SPECIFIC TRAINING & CONSULTANCY LTD.
Regeneration Economy and Growth,Culture Sport and Tourism,Supplies and Services,384302,Miscellaneous Expenses,06/10/2023,4187159-4100852850,"1,386.00",SHERBURN COMMUNITY ASSOCIATION.
Children and Young Peoples Services,Head of Education and Skills,Third Party Payments,440999,Other third party payments E440,06/10/2023,4187167-523,"20,806.66",STANLEY EVENTS LTD.
Regeneration Economy and Growth,Corporate Property and Land,Supplies and Services,304221,Equipment and Materials,06/10/2023,4187170-1067730,"1,161.22",T CROSSLING & CO LTD.
Regeneration Economy and Growth,Corporate Property and Land,Supplies and Services,304221,Equipment and Materials,06/10/2023,4187170-1067792,"3,911.04",T CROSSLING & CO LTD.
Regeneration Economy and Growth,Corporate Property and Land,Supplies and Services,304221,Equipment and Materials,06/10/2023,4187170-1067937,653.58,T CROSSLING & CO LTD.
Regeneration Economy and Growth,Corporate Property and Land,Supplies and Services,304221,Equipment and Materials,06/10/2023,4187170-1067950,875.57,T CROSSLING & CO LTD.
Regeneration Economy and Growth,Corporate Property and Land,Supplies and Services,304221,Equipment and Materials,06/10/2023,4187171-3649,"2,928.00",T MANNERS & SONS LTD.
Neighbourhoods and Climate Change,Highways,Fees,901004,Capital - Detailed Design,06/10/2023,4187174-18727,617.76,TEESDALE MERCURY LTD.
Children and Young Peoples Services,Head of Childrens Social Care,Third Party Payments,486042,Service level agreements E486,06/10/2023,4187176-RINV/00009107,"2,460.00",THE FOSTERING NETWORK.
Neighbourhoods and Climate Change,Environmental Services,Supplies and Services,338066,Services,06/10/2023,4187179-3801C,"2,000.00",THE PUBLIC ART COMPANY.
Neighbourhoods and Climate Change,Highways,Stock A926,926900,Stock in hand-Inventory system,06/10/2023,4187182-NSIN00100664,"1,483.45",THOMAS OWEN & SONS (NEWCASTLE) LTD.
Neighbourhoods and Climate Change,Highways,Stock A926,926900,Stock in hand-Inventory system,06/10/2023,4187182-NSIN00100666,984.00,THOMAS OWEN & SONS (NEWCASTLE) LTD.
Resources BK0010,Legal & Democratic Services,Supplies and Services,338042,Services,06/10/2023,4187188-306784/INVJMB32,798.00,TRINITY CHAMBERS.
Regeneration Economy and Growth,Planning & Housing,Supplies and Services,304245,Equipment and Materials,06/10/2023,4187189-CD970032216,"4,905.60",TUNSTALL HEALTHCARE (UK) LTD.
Neighbourhoods and Climate Change,Highways,Supplies and Services,304221,Equipment and Materials,06/10/2023,4187191-251552,"1,018.33",TYNEDALE ROADSTONE LTD.
Neighbourhoods and Climate Change,Highways,Supplies and Services,304221,Equipment and Materials,06/10/2023,4187191-251553,"3,165.42",TYNEDALE ROADSTONE LTD.
Neighbourhoods and Climate Change,Highways,Supplies and Services,304221,Equipment and Materials,06/10/2023,4187191-251554,"1,896.24",TYNEDALE ROADSTONE LTD.
Regeneration Economy and Growth,Corporate Property and Land,Supplies and Services,304221,Equipment and Materials,06/10/2023,4187192-04039299,"1,094.66",UK ELECTRIC LTD.*
Neighbourhoods and Climate Change,Highways,Stock A926,926900,Stock in hand-Inventory system,06/10/2023,4187194-SI07860689,"1,752.97",UK PLUMBING SUPPLIES LTD T/A PLUMBASE.
Resources BK0010,Legal & Democratic Services,Supplies and Services,338099,Services,06/10/2023,4187198-119407,"1,514.76",VIVID RESOURCING.
Regeneration Economy and Growth,Corporate Property and Land,Supplies and Services,304221,Equipment and Materials,06/10/2023,4187201-2957700,"2,813.50",WESSEX LIFT CO LTD.
Regeneration Economy and Growth,Corporate Property and Land,Third Party Payments,430100,Rendered by Private Contractors,06/10/2023,4187204-59705,"2,302.56",WILLOWCRETE MANUFACTURING COMPANY LTD (MFG).
Children and Young Peoples Services,Head of Education and Skills,Transport,230007,Contract Hire,06/10/2023,4186962-01451,"1,368.00",REDACTED - PAYMENT TO INDIVIDUAL
Regeneration Economy and Growth,Culture Sport and Tourism,Supplies and Services,384199,Miscellaneous Expenses,06/10/2023,4186985-4100856381,"11,700.00",REDACTED - PAYMENT TO INDIVIDUAL
Regeneration Economy and Growth,Culture Sport and Tourism,Supplies and Services,384302,Miscellaneous Expenses,06/10/2023,4187071-2878,729.00,JUBILEE FIELDS COMMUNITY ASSOCIATION.
Children and Young Peoples Services,Head of Early Help Inclusion & Vulnerable Children.,Supplies and Services,384906,Miscellaneous Expenses,06/10/2023,4187081-RES-10-2023-046,"12,560.00",LINGFIELD EDUCATION TRUST T/A VANE ROAD PRIMARY SCHOOL.
Children and Young Peoples Services,Childrens Services Operational Support,Supplies and Services,338089,Services,06/10/2023,4187193-I8251,"3,594.00",UK MEDIATION LTD.
Neighbourhoods and Climate Change,Community Protection,Supplies and Services,384199,Miscellaneous Expenses,06/10/2023,4187195-01/2023,"1,296.10",VIH EVENT CONSULTANCY LIMITED.
Neighbourhoods and Climate Change,Environmental Services,Supplies and Services,338066,Services,09/10/2023,4187208-673,"1,740.00",4NATURE LTD.
Neighbourhoods and Climate Change,Highways,Supplies and Services,304221,Equipment and Materials,09/10/2023,4187213-35095290,974.02,AGGREGATE INDUSTRIES UK LTD.
Neighbourhoods and Climate Change,Partnerships & Community Engagement Div.,Supplies and Services,364501,Grants to Voluntary Organisations,09/10/2023,4187218-INV-0204,"1,000.00",ANDERSONS PROPERTY LTD.
Children and Young Peoples Services,Head of Early Help Inclusion & Vulnerable Children.,Supplies and Services,304259,Equipment and Materials,09/10/2023,4187225-0000368907,"2,160.36",APEX RADIO SYSTEMS LTD.
Dedicated Schools Grant BG0015,DSG Schools Block,Supplies and Services,304259,Equipment and Materials,09/10/2023,4187225-0000370927,"1,594.79",APEX RADIO SYSTEMS LTD.
Neighbourhoods and Climate Change,Environmental Services,Supplies and Services,338099,Services,09/10/2023,4187226-2324/1540,840.00,APSE.
Regeneration Economy and Growth,Transport and Contracted Services,Third Party Payments,430100,Rendered by Private Contractors,09/10/2023,4187228-RES-10-2023-186,"1,162,842.00",ARRIVA DURHAM COUNTY LTD.
Regeneration Economy and Growth,Culture Sport and Tourism,Supplies and Services,312013,Newspapers books and periodicals E312,09/10/2023,4187230-6942890,548.24,ASKEWS & HOLTS LIBRARY SERVICES LTD.
Regeneration Economy and Growth,Corporate Property and Land,Supplies and Services,384199,Miscellaneous Expenses,09/10/2023,4187231-23037824,"8,460.00",ATKINS GLOBAL.
Regeneration Economy and Growth,Corporate Property and Land,Fees,901002,Consultants fees 901002,09/10/2023,4187231-23037825,"5,520.00",ATKINS GLOBAL.
Adult and Health Services,Head of Adults,Supplies and Services,384616,Miscellaneous Expenses,09/10/2023,4187238-6/2324/DEALO1,874.88,BERNICIA GROUP LTD.*
Regeneration Economy and Growth,Culture Sport and Tourism,Supplies and Services,324117,Provisions E324,09/10/2023,4187242-22662165,755.09,BIDFOOD.
Regeneration Economy and Growth,Culture Sport and Tourism,Supplies and Services,324117,Provisions E324,09/10/2023,4187242-22857444BALANCE,613.59,BIDFOOD.
Neighbourhoods and Climate Change,Highways,Supplies and Services,304221,Equipment and Materials,09/10/2023,4187243-207R02958,"2,346.43",BIFFA WASTE SERVICES LTD.
Neighbourhoods and Climate Change,Highways,Supplies and Services,304221,Equipment and Materials,09/10/2023,4187243-207R02972,708.58,BIFFA WASTE SERVICES LTD.
Regeneration Economy and Growth,Culture Sport and Tourism,Supplies and Services,312013,Newspapers books and periodicals E312,09/10/2023,4187248-171045,658.93,BOLINDA DIGITAL LTD.
Regeneration Economy and Growth,Culture Sport and Tourism,Premises,145023,Cleaning and Domestic Supplies,09/10/2023,4187251-22SI2292717,"1,543.20",BRENNTAG UK LTD.
Children and Young Peoples Services,Head of Childrens Social Care,Supplies and Services,364359,Grants to Voluntary Organisations,09/10/2023,4187257-0000173170,"2,039.23",BUSY BEARS (DURHAM) LTD.
Children and Young Peoples Services,Head of Education and Skills,Supplies and Services,384199,Miscellaneous Expenses,09/10/2023,4187258-RES-10-2023-176,514.60,BUSY BEES (DURHAM) LTD.
Regeneration Economy and Growth,Corporate Property and Land,Third Party Payments,430100,Rendered by Private Contractors,09/10/2023,4187265-11649,"1,726.56",CATHEDRAL LOCK & SAFE SERVICES LTD.
Regeneration Economy and Growth,Corporate Property and Land,Third Party Payments,430100,Rendered by Private Contractors,09/10/2023,4187265-11777,"4,437.43",CATHEDRAL LOCK & SAFE SERVICES LTD.
Regeneration Economy and Growth,Corporate Property and Land,Supplies and Services,304221,Equipment and Materials,09/10/2023,4187273-2852ABW548,"1,284.69",CITY PLUMBING SUPPLIES HOLDINGS LTD.
Resources BK0010,Pensions CK0700,Supplies and Services,342051,Computers and Communications,09/10/2023,4187274-C/PE285009,"39,560.40",CIVICA UK LTD.
Resources BK0010,Pensions CK0700,Supplies and Services,342051,Computers and Communications,09/10/2023,4187274-C/PE285013,891.60,CIVICA UK LTD.
Resources BK0010,Pensions CK0700,Supplies and Services,342051,Computers and Communications,09/10/2023,4187274-C/PE285017,"34,650.00",CIVICA UK LTD.
Resources BK0010,Pensions CK0700,Supplies and Services,342051,Computers and Communications,09/10/2023,4187274-C/PE285020,"9,600.00",CIVICA UK LTD.
Neighbourhoods and Climate Change,Environmental Services,Third Party Payments,430119,Rendered by Private Contractors,09/10/2023,4187277-23063608,"7,500.34",CLEANSING SERVICE GROUP LTD.
Children and Young Peoples Services,Head of Early Help Inclusion & Vulnerable Children.,Supplies and Services,384409,Miscellaneous Expenses,09/10/2023,4187284-INV-0263,"52,074.00",CNS SPORTS STARS.
Children and Young Peoples Services,Head of Education and Skills,Supplies and Services,338094,Services,09/10/2023,4187292-1504,530.00,CORNERSTONES CENTRE FOR THE COMMUNITY.
Adult and Health Services,Public Health CC0450,Third Party Payments,460803,Contract Payments,09/10/2023,4187294-3910022455,"30,830.00",COUNTY DURHAM & DARLINGTON NHS FOUNDATION TRUST (CDDFT).
Adult and Health Services,Public Health CC0450,Third Party Payments,460803,Contract Payments,09/10/2023,4187294-3910022458,"33,789.00",COUNTY DURHAM & DARLINGTON NHS FOUNDATION TRUST (CDDFT).
Neighbourhoods and Climate Change,Environmental Services,Supplies and Services,384199,Miscellaneous Expenses,09/10/2023,4187297-INV0140514,"56,262.24",CROMWELL POLYTHENE LTD.
Regeneration Economy and Growth,Corporate Property and Land,Third Party Payments,430100,Rendered by Private Contractors,09/10/2023,4187311-INV/154066,"1,425.60",DFP SERVICES LTD.
Neighbourhoods and Climate Change,Environmental Services,Supplies and Services,304221,Equipment and Materials,09/10/2023,4187336-6942259,"2,222.40",ESE WORLD LTD.
Neighbourhoods and Climate Change,Highways,Stock A926,926900,Stock in hand-Inventory system,09/10/2023,4187338-148119,"17,476.96",FABRIKAT (NOTTINGHAM) LTD.
Regeneration Economy and Growth,Corporate Property and Land,Fees,901002,Consultants fees 901002,09/10/2023,4187339-131148/32,"2,820.00",FAIRHURST GROUP LLP.
Regeneration Economy and Growth,Transport and Contracted Services,Third Party Payments,430100,Rendered by Private Contractors,09/10/2023,4187355-RES-10-2023-185,"1,417,875.00",GO GATESHEAD LTD.
Neighbourhoods and Climate Change,Partnerships & Community Engagement Div.,Supplies and Services,384086,Miscellaneous Expenses,09/10/2023,4187360-VOUCHERPRIP02-23,511.00,GRANGE VILLA COMMUNITY ENTERPRISE CENTRE.
Regeneration Economy and Growth,Culture Sport and Tourism,Premises,145023,Cleaning and Domestic Supplies,09/10/2023,4187363-06/239081,"1,113.94",GREENHAM TRADING LTD.
Neighbourhoods and Climate Change,Highways,Stock A926,926900,Stock in hand-Inventory system,09/10/2023,4187363-06/239288,837.60,GREENHAM TRADING LTD.
Neighbourhoods and Climate Change,Highways,Supplies and Services,304221,Equipment and Materials,09/10/2023,4187363-06/239442,639.60,GREENHAM TRADING LTD.
Neighbourhoods and Climate Change,Environmental Services,Supplies and Services,324117,Provisions E324,09/10/2023,4187368-INV-0659,649.00,HALLBANKGATE HUB LTD.
Children and Young Peoples Services,Head of Early Help Inclusion & Vulnerable Children.,Third Party Payments,410037,Rendered by Other Local Authorities,09/10/2023,4187372-42573,"4,920.00",HER MAJESTY`S PRISON & PROBATION SERVICE (HMPPS).
Adult and Health Services,Public Health CC0450,Third Party Payments,460803,Contract Payments,09/10/2023,4187380-SI-HK-001425,"374,752.00",HUMANKIND CHARITY.
Neighbourhoods and Climate Change,Highways,Supplies and Services,304221,Equipment and Materials,09/10/2023,4187383-400050769,"1,926.25",ICL UK SALES LTD (CLEVELAND POTASH LTD).
Neighbourhoods and Climate Change,Highways,Supplies and Services,304221,Equipment and Materials,09/10/2023,4187383-400050770,"1,908.66",ICL UK SALES LTD (CLEVELAND POTASH LTD).
Resources BK0010,Digital Services,Construction work A908,908105,Construction work,09/10/2023,4187386-2100710649,"4,287.53",INSIGHT DIRECT (UK) LTD.
Resources BK0010,Digital Services,Supplies and Services,304303,Equipment and Materials,09/10/2023,4187386-2100712334,"4,918.02",INSIGHT DIRECT (UK) LTD.
Children and Young Peoples Services,Head of Early Help Inclusion & Vulnerable Children.,Third Party Payments,440999,Other third party payments E440,09/10/2023,4187389-896,"37,500.00",INVESTING IN CHILDREN CIC.
Neighbourhoods and Climate Change,Environmental Services,Third Party Payments,430100,Rendered by Private Contractors,09/10/2023,4187391-TW3334,"5,280.00",IW ADAMSON LTD T/A COMPLETE WEED CONTROL (TYNE & WEAR).
Neighbourhoods and Climate Change,Highways,Third Party Payments,430100,Rendered by Private Contractors,09/10/2023,4187394-28342,785.93,JACK COUPE & SONS LTD T/A COUPE LINE.
Neighbourhoods and Climate Change,Community Protection,Supplies and Services,328041,Clothing uniforms and laundry E328,09/10/2023,4187396-11577,"1,140.00",JG UNIFORMS.
Neighbourhoods and Climate Change,Highways,Supplies and Services,304221,Equipment and Materials,09/10/2023,4187401-0303/01021070,"1,462.80",JT DOVE LTD.
Neighbourhoods and Climate Change,Highways,Supplies and Services,304221,Equipment and Materials,09/10/2023,4187401-0303/01021071,"1,359.07",JT DOVE LTD.
Regeneration Economy and Growth,Business Durham,Construction work A908,908105,Construction work,09/10/2023,4187403-10321193,"788,445.92",KIER CONSTRUCTION LTD - SCOTLAND
Regeneration Economy and Growth,Transport and Contracted Services,Supplies and Services,328041,Clothing uniforms and laundry E328,09/10/2023,4187407-104482,942.72,KING SCIENTIFIC.
Dedicated Schools Grant BG0015,DSG Schools Block,Supplies and Services,304403,Equipment and Materials,09/10/2023,4187420-6901752391,866.88,LYRECO UK LTD.
Children and Young Peoples Services,Head of Childrens Social Care,Third Party Payments,440046,Other third party payments E440,09/10/2023,4187423-7186,"2,559.60",MAJOR RECRUITMENT LTD.*
Children and Young Peoples Services,Head of Childrens Social Care,Third Party Payments,440046,Other third party payments E440,09/10/2023,4187423-7187,"13,283.20",MAJOR RECRUITMENT LTD.*
Children and Young Peoples Services,Head of Childrens Social Care,Third Party Payments,440046,Other third party payments E440,09/10/2023,4187423-7188,"13,316.84",MAJOR RECRUITMENT LTD.*
Children and Young Peoples Services,Head of Childrens Social Care,Third Party Payments,440046,Other third party payments E440,09/10/2023,4187423-7189,"13,702.56",MAJOR RECRUITMENT LTD.*
Children and Young Peoples Services,Head of Childrens Social Care,Third Party Payments,440046,Other third party payments E440,09/10/2023,4187423-7190,"12,959.88",MAJOR RECRUITMENT LTD.*
Children and Young Peoples Services,Head of Childrens Social Care,Third Party Payments,440046,Other third party payments E440,09/10/2023,4187423-7194,"13,172.68",MAJOR RECRUITMENT LTD.*
Children and Young Peoples Services,Head of Childrens Social Care,Third Party Payments,440046,Other third party payments E440,09/10/2023,4187423-8038,"2,142.00",MAJOR RECRUITMENT LTD.*
Children and Young Peoples Services,Head of Childrens Social Care,Third Party Payments,440046,Other third party payments E440,09/10/2023,4187423-8044,"2,445.42",MAJOR RECRUITMENT LTD.*
Children and Young Peoples Services,Head of Childrens Social Care,Third Party Payments,440047,Other third party payments E440,09/10/2023,4187423-8045,"4,136.86",MAJOR RECRUITMENT LTD.*
Children and Young Peoples Services,Head of Childrens Social Care,Third Party Payments,440046,Other third party payments E440,09/10/2023,4187423-8048,"5,748.90",MAJOR RECRUITMENT LTD.*
Children and Young Peoples Services,Head of Childrens Social Care,Third Party Payments,440046,Other third party payments E440,09/10/2023,4187423-8050,"1,883.82",MAJOR RECRUITMENT LTD.*
Children and Young Peoples Services,Head of Childrens Social Care,Third Party Payments,440046,Other third party payments E440,09/10/2023,4187423-8051,989.29,MAJOR RECRUITMENT LTD.*
Children and Young Peoples Services,Head of Childrens Social Care,Third Party Payments,425021,Rendered by Voluntary Organisations,09/10/2023,4187423-8053,"4,757.71",MAJOR RECRUITMENT LTD.*
Children and Young Peoples Services,Head of Childrens Social Care,Third Party Payments,440046,Other third party payments E440,09/10/2023,4187423-8057,"2,000.40",MAJOR RECRUITMENT LTD.*
Children and Young Peoples Services,Head of Childrens Social Care,Third Party Payments,440047,Other third party payments E440,09/10/2023,4187423-8059,"4,998.02",MAJOR RECRUITMENT LTD.*
Children and Young Peoples Services,Head of Childrens Social Care,Third Party Payments,440047,Other third party payments E440,09/10/2023,4187423-8060,"2,998.80",MAJOR RECRUITMENT LTD.*
Neighbourhoods and Climate Change,Highways,Supplies and Services,304221,Equipment and Materials,09/10/2023,4187427-Z001672905,"20,730.38",MARSHALLS MONO LTD.
Neighbourhoods and Climate Change,Highways,Supplies and Services,304221,Equipment and Materials,09/10/2023,4187427-Z001673080,"20,559.32",MARSHALLS MONO LTD.
Neighbourhoods and Climate Change,Highways,Supplies and Services,304221,Equipment and Materials,09/10/2023,4187427-Z001686720,"20,894.96",MARSHALLS MONO LTD.
Neighbourhoods and Climate Change,Environmental Services,Supplies and Services,384700,Miscellaneous Expenses,09/10/2023,4187446-RES-10-2023-182,"8,347.20",NENTHEAD MINES CONSERVATION SOCIETY.
Children and Young Peoples Services,Head of Education and Skills,Third Party Payments,440999,Other third party payments E440,09/10/2023,4187453-4890,"12,387.42",NORTH EAST DANCE CIC.
Children and Young Peoples Services,Head of Childrens Social Care,Premises,135005,Water Services,09/10/2023,4187454-359144131227918251,680.57,NORTHUMBRIAN WATER LTD.
Neighbourhoods and Climate Change,Environmental Services,Supplies and Services,338013,Services,09/10/2023,4187455-5074828,"3,634.12",NSF CERTIFICATION UK LTD.
Regeneration Economy and Growth,Corporate Property and Land,Third Party Payments,430100,Rendered by Private Contractors,09/10/2023,4187464-12131-97,"1,130.30",OPUS BUILDING SERVICES LTD.
Regeneration Economy and Growth,Corporate Property and Land,Third Party Payments,430100,Rendered by Private Contractors,09/10/2023,4187464-12320-04,"1,353.04",OPUS BUILDING SERVICES LTD.
Regeneration Economy and Growth,Corporate Property and Land,Supplies and Services,304221,Equipment and Materials,09/10/2023,4187464-12320-05,"1,142.35",OPUS BUILDING SERVICES LTD.
Regeneration Economy and Growth,Corporate Property and Land,Third Party Payments,430100,Rendered by Private Contractors,09/10/2023,4187464-12320-06,"1,073.95",OPUS BUILDING SERVICES LTD.
Regeneration Economy and Growth,Corporate Property and Land,Third Party Payments,430100,Rendered by Private Contractors,09/10/2023,4187464-12320-07,"1,345.94",OPUS BUILDING SERVICES LTD.
Regeneration Economy and Growth,Corporate Property and Land,Third Party Payments,430100,Rendered by Private Contractors,09/10/2023,4187464-12320-08,"2,192.40",OPUS BUILDING SERVICES LTD.
Regeneration Economy and Growth,Corporate Property and Land,Third Party Payments,430100,Rendered by Private Contractors,09/10/2023,4187464-12320-09,"2,192.40",OPUS BUILDING SERVICES LTD.
Regeneration Economy and Growth,Corporate Property and Land,Third Party Payments,430100,Rendered by Private Contractors,09/10/2023,4187464-12320-10,"1,398.60",OPUS BUILDING SERVICES LTD.
Regeneration Economy and Growth,Corporate Property and Land,Third Party Payments,430100,Rendered by Private Contractors,09/10/2023,4187464-12320-11,"1,358.45",OPUS BUILDING SERVICES LTD.
Regeneration Economy and Growth,Corporate Property and Land,Third Party Payments,430100,Rendered by Private Contractors,09/10/2023,4187464-12320-12,898.39,OPUS BUILDING SERVICES LTD.
Regeneration Economy and Growth,Corporate Property and Land,Third Party Payments,430100,Rendered by Private Contractors,09/10/2023,4187464-12320-13,"2,252.88",OPUS BUILDING SERVICES LTD.
Regeneration Economy and Growth,Corporate Property and Land,Third Party Payments,430100,Rendered by Private Contractors,09/10/2023,4187464-12320-14,"1,345.94",OPUS BUILDING SERVICES LTD.
Regeneration Economy and Growth,Corporate Property and Land,Third Party Payments,430100,Rendered by Private Contractors,09/10/2023,4187464-12320-15,"1,368.10",OPUS BUILDING SERVICES LTD.
Regeneration Economy and Growth,Corporate Property and Land,Third Party Payments,430100,Rendered by Private Contractors,09/10/2023,4187464-12320-16,"1,353.04",OPUS BUILDING SERVICES LTD.
Regeneration Economy and Growth,Corporate Property and Land,Third Party Payments,430100,Rendered by Private Contractors,09/10/2023,4187464-12320-17,"1,409.40",OPUS BUILDING SERVICES LTD.
Regeneration Economy and Growth,Corporate Property and Land,Third Party Payments,430100,Rendered by Private Contractors,09/10/2023,4187464-12320-18,"1,366.20",OPUS BUILDING SERVICES LTD.
Regeneration Economy and Growth,Corporate Property and Land,Third Party Payments,430100,Rendered by Private Contractors,09/10/2023,4187464-12320-19,"1,366.20",OPUS BUILDING SERVICES LTD.
Regeneration Economy and Growth,Corporate Property and Land,Third Party Payments,430100,Rendered by Private Contractors,09/10/2023,4187464-12320-20,"1,224.16",OPUS BUILDING SERVICES LTD.
Regeneration Economy and Growth,Corporate Property and Land,Third Party Payments,430100,Rendered by Private Contractors,09/10/2023,4187464-12320-21,"1,884.24",OPUS BUILDING SERVICES LTD.
Regeneration Economy and Growth,Corporate Property and Land,Third Party Payments,430100,Rendered by Private Contractors,09/10/2023,4187464-12320-22,"1,345.94",OPUS BUILDING SERVICES LTD.
Regeneration Economy and Growth,Corporate Property and Land,Third Party Payments,430100,Rendered by Private Contractors,09/10/2023,4187464-12320-23,"1,368.10",OPUS BUILDING SERVICES LTD.
Regeneration Economy and Growth,Corporate Property and Land,Third Party Payments,430100,Rendered by Private Contractors,09/10/2023,4187464-12320-24,"1,353.04",OPUS BUILDING SERVICES LTD.
Neighbourhoods and Climate Change,Environmental Services,Supplies and Services,304221,Equipment and Materials,09/10/2023,4187466-OASI0079110,"1,508.06",ORIGIN AMENITY SOLUTIONS LTD.
Resources BK0010,Legal & Democratic Services,Supplies and Services,338042,Services,09/10/2023,4187470-INV/EC218,"1,980.00",PARKLANE PLOWDEN CHAMBERS (BARRISTERS).
Resources BK0010,Legal & Democratic Services,Supplies and Services,338042,Services,09/10/2023,4187470-INV/RAC19,"5,700.00",PARKLANE PLOWDEN CHAMBERS (BARRISTERS).
Regeneration Economy and Growth,Culture Sport and Tourism,Supplies and Services,384302,Miscellaneous Expenses,09/10/2023,4187474-SUMMERFOODFUN23,807.00,PETERLEE OAKERSIDE PARK COMMUNITY ASSOCIATION.
Children and Young Peoples Services,Head of Education and Skills,Supplies and Services,384199,Miscellaneous Expenses,09/10/2023,4187475-23/24-01,876.00,PGI SMITH SOLUTIONS LTD.
Adult and Health Services,Head of Adults,Third Party Payments,479102,Purchase of Care,09/10/2023,4187483-INV-0231,"7,561.08",POSITIVE CARE & SUPPORT LTD.
Regeneration Economy and Growth,Economic Development,Supplies and Services,352001,Conference Expenses,09/10/2023,4187493-517376,"1,668.00",QUALSAFE.COM.
Neighbourhoods and Climate Change,Highways,Third Party Payments,430100,Rendered by Private Contractors,09/10/2023,4187494-15264,"6,980.39",QUANTUM POWER CONNECTIONS LTD.
Regeneration Economy and Growth,Corporate Property and Land,Third Party Payments,430100,Rendered by Private Contractors,09/10/2023,4187510-77684,900.00,RJ UTILITY SERVICES LTD.
Regeneration Economy and Growth,Culture Sport and Tourism,Vehicles Equipment Furniture and Fittings,912529,Purchase-equipment,09/10/2023,4187511-SIN043526,"2,035.20",RLSS UK ENTERPRISES LTD.
Regeneration Economy and Growth,Culture Sport and Tourism,Vehicles Equipment Furniture and Fittings,912529,Purchase-equipment,09/10/2023,4187511-SIN043527,"2,035.20",RLSS UK ENTERPRISES LTD.
Regeneration Economy and Growth,Culture Sport and Tourism,Vehicles Equipment Furniture and Fittings,912529,Purchase-equipment,09/10/2023,4187511-SIN043529,"2,035.20",RLSS UK ENTERPRISES LTD.
Regeneration Economy and Growth,Culture Sport and Tourism,Vehicles Equipment Furniture and Fittings,912529,Purchase-equipment,09/10/2023,4187511-SIN043530,"3,052.80",RLSS UK ENTERPRISES LTD.
Regeneration Economy and Growth,Culture Sport and Tourism,Vehicles Equipment Furniture and Fittings,912529,Purchase-equipment,09/10/2023,4187511-SIN043531,"1,017.60",RLSS UK ENTERPRISES LTD.
Regeneration Economy and Growth,Culture Sport and Tourism,Vehicles Equipment Furniture and Fittings,912529,Purchase-equipment,09/10/2023,4187511-SIN043532,"2,035.20",RLSS UK ENTERPRISES LTD.
Regeneration Economy and Growth,Culture Sport and Tourism,Vehicles Equipment Furniture and Fittings,912529,Purchase-equipment,09/10/2023,4187511-SIN043533,"2,035.20",RLSS UK ENTERPRISES LTD.
Regeneration Economy and Growth,Culture Sport and Tourism,Vehicles Equipment Furniture and Fittings,912529,Purchase-equipment,09/10/2023,4187511-SIN043534,"2,035.20",RLSS UK ENTERPRISES LTD.
Regeneration Economy and Growth,Culture Sport and Tourism,Vehicles Equipment Furniture and Fittings,912529,Purchase-equipment,09/10/2023,4187511-SIN043535,"2,035.20",RLSS UK ENTERPRISES LTD.
Neighbourhoods and Climate Change,Environmental Services,Supplies and Services,304252,Equipment and Materials,09/10/2023,4187538-ARS/11150162,"1,048.61",SNAP ON DIAGNOSTICS UK.
Adult and Health Services,Public Health CC0450,Third Party Payments,460803,Contract Payments,09/10/2023,4187540-7910058289,"5,706.22",SOUTH TYNESIDE & SUNDERLAND NHS FOUNDATION TRUST.
Regeneration Economy and Growth,Culture Sport and Tourism,Supplies and Services,384199,Miscellaneous Expenses,09/10/2023,4187543-SI008213,"4,377.89",SPEKTRIX LTD.
Neighbourhoods and Climate Change,Partnerships & Community Engagement Div.,Supplies and Services,384086,Miscellaneous Expenses,09/10/2023,4187545-VOUCHERMADL10-23,880.00,SPENNYMOOR TOWN COUNCIL.
Regeneration Economy and Growth,Corporate Property and Land,Supplies and Services,384199,Miscellaneous Expenses,09/10/2023,4187548-8742,"2,586.00",ST ASTIER LTD.
Regeneration Economy and Growth,Transport and Contracted Services,Third Party Payments,430100,Rendered by Private Contractors,09/10/2023,4187553-RES-10-2023-183,"5,000.00",STANLEY TRAVEL (NORTH EAST) LTD.
Children and Young Peoples Services,Head of Childrens Social Care,Supplies and Services,336005,Advertising E336,09/10/2023,4187554-INV-6951,"19,200.00",STEVE DAVIDSON ADVERTISING LTD T/A SD ADVERTISING LTD.
Neighbourhoods and Climate Change,Highways,Supplies and Services,304221,Equipment and Materials,09/10/2023,4187555-42787,"2,566.56",STONEGRAVE AGGREGATES LTD.
Regeneration Economy and Growth,Corporate Property and Land,Supplies and Services,304221,Equipment and Materials,09/10/2023,4187560-1068676,"1,847.36",T CROSSLING & CO LTD.
Regeneration Economy and Growth,Culture Sport and Tourism,Supplies and Services,384956,Miscellaneous Expenses,09/10/2023,4187567-2370012999,"3,000.00",TECHNOGYM UK LTD.
Regeneration Economy and Growth,Corporate Property and Land,Supplies and Services,338094,Services,09/10/2023,4187570-RES-10-2023-175,600.00,THE AUCKLAND PROJECT.*
Children and Young Peoples Services,Head of Childrens Social Care,Third Party Payments,486042,Service level agreements E486,09/10/2023,4187572-RINV/00009106,"2,460.00",THE FOSTERING NETWORK.
Neighbourhoods and Climate Change,Highways,Supplies and Services,304221,Equipment and Materials,09/10/2023,4187581-121023,"1,740.00",TOFCO LTD.
Neighbourhoods and Climate Change,Highways,Supplies and Services,304221,Equipment and Materials,09/10/2023,4187581-121027,"1,065.60",TOFCO LTD.
Neighbourhoods and Climate Change,Highways,Stock A926,926900,Stock in hand-Inventory system,09/10/2023,4187583-114834,"1,920.00",TOTAL RENTAL SOLUTIONS LTD.
Neighbourhoods and Climate Change,Highways,Stock A926,926900,Stock in hand-Inventory system,09/10/2023,4187583-114835,684.00,TOTAL RENTAL SOLUTIONS LTD.
Regeneration Economy and Growth,Culture Sport and Tourism,Supplies and Services,384302,Miscellaneous Expenses,09/10/2023,4187585-10JF/DT23/24,"1,134.00",TOW LAW COMMUNITY ASSOCIATION.
Regeneration Economy and Growth,Corporate Property and Land,Supplies and Services,304221,Equipment and Materials,09/10/2023,4187587-11155031,646.01,TRADECHOICE DISTRIBUTION LTD.
Resources BK0010,Legal & Democratic Services,Supplies and Services,338042,Services,09/10/2023,4187588-305720/INVRSH129,864.00,TRINITY CHAMBERS.
Resources BK0010,Legal & Democratic Services,Supplies and Services,338042,Services,09/10/2023,4187588-306100-190523,798.00,TRINITY CHAMBERS.
Resources BK0010,Legal & Democratic Services,Supplies and Services,338042,Services,09/10/2023,4187588-306645/INVTOP149,"1,104.00",TRINITY CHAMBERS.
Neighbourhoods and Climate Change,Highways,Supplies and Services,304221,Equipment and Materials,09/10/2023,4187593-251544,"1,275.05",TYNEDALE ROADSTONE LTD.
Neighbourhoods and Climate Change,Highways,Supplies and Services,304221,Equipment and Materials,09/10/2023,4187593-251555,810.47,TYNEDALE ROADSTONE LTD.
Neighbourhoods and Climate Change,Highways,Supplies and Services,304221,Equipment and Materials,09/10/2023,4187593-251556,"1,319.28",TYNEDALE ROADSTONE LTD.
Neighbourhoods and Climate Change,Highways,Supplies and Services,304221,Equipment and Materials,09/10/2023,4187593-251557,"1,758.48",TYNEDALE ROADSTONE LTD.
Neighbourhoods and Climate Change,Highways,Supplies and Services,304221,Equipment and Materials,09/10/2023,4187593-251558,647.64,TYNEDALE ROADSTONE LTD.
Neighbourhoods and Climate Change,Highways,Supplies and Services,304221,Equipment and Materials,09/10/2023,4187593-251774,"1,799.69",TYNEDALE ROADSTONE LTD.
Neighbourhoods and Climate Change,Highways,Supplies and Services,304221,Equipment and Materials,09/10/2023,4187593-251775,"1,717.56",TYNEDALE ROADSTONE LTD.
Regeneration Economy and Growth,Culture Sport and Tourism,Supplies and Services,338047,Services,09/10/2023,4187605-2081621,"1,462.18",WALT DISNEY COMPANY LTD.
Regeneration Economy and Growth,Culture Sport and Tourism,Supplies and Services,338047,Services,09/10/2023,4187606-23171341,"1,608.07",WARNER BROS ENTERTAINMENT UK LTD.
Regeneration Economy and Growth,Culture Sport and Tourism,Supplies and Services,338047,Services,09/10/2023,4187606-23171348,943.60,WARNER BROS ENTERTAINMENT UK LTD.
Neighbourhoods and Climate Change,Environmental Services,Premises,135005,Water Services,09/10/2023,4187608-2100572708112088627,957.61,WAVE (AWBN).
Neighbourhoods and Climate Change,Environmental Services,Premises,135005,Water Services,09/10/2023,4187608-2100572708112229672,930.18,WAVE (AWBN).
Neighbourhoods and Climate Change,Environmental Services,Premises,135005,Water Services,09/10/2023,4187608-2100572708112362812,957.61,WAVE (AWBN).
Regeneration Economy and Growth,Culture Sport and Tourism,Premises,135005,Water Services,09/10/2023,4187608-8888889748212257673,755.70,WAVE (AWBN).
Regeneration Economy and Growth,Culture Sport and Tourism,Premises,135005,Water Services,09/10/2023,4187608-8888889748212257677,"3,338.20",WAVE (AWBN).
Regeneration Economy and Growth,Culture Sport and Tourism,Premises,135005,Water Services,09/10/2023,4187608-8888889748212257728,"7,532.26",WAVE (AWBN).
Regeneration Economy and Growth,Culture Sport and Tourism,Premises,135005,Water Services,09/10/2023,4187608-8888889748212257731,"23,282.22",WAVE (AWBN).
Regeneration Economy and Growth,Culture Sport and Tourism,Premises,135005,Water Services,09/10/2023,4187608-8888889748212257734,"8,272.54",WAVE (AWBN).
Regeneration Economy and Growth,Culture Sport and Tourism,Supplies and Services,384199,Miscellaneous Expenses,09/10/2023,4187609-18999,"3,394.00",WEARDALE MOTOR SERVICES LTD.
Regeneration Economy and Growth,Transport and Contracted Services,Third Party Payments,430100,Rendered by Private Contractors,09/10/2023,4187609-RES-10-2023-187,"16,000.00",WEARDALE MOTOR SERVICES LTD.
Regeneration Economy and Growth,Culture Sport and Tourism,Supplies and Services,384302,Miscellaneous Expenses,09/10/2023,4187240-BEC-HTDFC-15092023,520.00,REDACTED - PAYMENT TO INDIVIDUAL
Regeneration Economy and Growth,Culture Sport and Tourism,Supplies and Services,384302,Miscellaneous Expenses,09/10/2023,4187302-4100853309,"1,050.00",REDACTED - PAYMENT TO INDIVIDUAL
Adult and Health Services,Head of Adults,Supplies and Services,338066,Services,09/10/2023,4187321-SWSEPE-23,525.90,REDACTED - PAYMENT TO INDIVIDUAL
Children and Young Peoples Services,Head of Education and Skills,Supplies and Services,384199,Miscellaneous Expenses,09/10/2023,4187419-RES-10-2023-178,564.60,REDACTED - PAYMENT TO INDIVIDUAL
Children and Young Peoples Services,Head of Childrens Social Care,Supplies and Services,338045,Services,09/10/2023,4187441-122521/HH/16-21/08/23,660.00,REDACTED - PAYMENT TO INDIVIDUAL
Regeneration Economy and Growth,Culture Sport and Tourism,Supplies and Services,384302,Miscellaneous Expenses,09/10/2023,4187503-INV23-4/10,"1,000.00",REDACTED - PAYMENT TO INDIVIDUAL
Neighbourhoods and Climate Change,Environmental Services,Supplies and Services,338066,Services,09/10/2023,4187533-GTC0006,740.80,REDACTED - PAYMENT TO INDIVIDUAL
Children and Young Peoples Services,Head of Childrens Social Care,Supplies and Services,384500,Miscellaneous Expenses,09/10/2023,4187341-2274,"1,317.50",FAMILY COMPASS.
Regeneration Economy and Growth,Culture Sport and Tourism,Supplies and Services,384302,Miscellaneous Expenses,09/10/2023,4187364-DDSUMMER2023,906.00,GREENHILLS CENTRE.
Neighbourhoods and Climate Change,Environmental Services,Supplies and Services,384199,Miscellaneous Expenses,09/10/2023,4187381-INV-1053,"6,000.00",HUQ INDUSTRIES LTD.
Neighbourhoods and Climate Change,Partnerships & Community Engagement Div.,Supplies and Services,364501,Grants to Voluntary Organisations,09/10/2023,4187496-INV-2001,"1,000.00",REAL PROPERTY (UK) LTD.
Regeneration Economy and Growth,Culture Sport and Tourism,Supplies and Services,338047,Services,09/10/2023,4187579-INV-0049,"30,427.02",TINY DRAGON PRODUCTIONS.
Adult and Health Services,Head of Adults,Supplies and Services,338099,Services,09/10/2023,4187601-100PBAK02,"1,605.00",REDACTED - PAYMENT TO INDIVIDUAL
Children and Young Peoples Services,Head of Education and Skills,Transport,230008,Contract Hire,10/10/2023,4188191-2328,"1,434.00",24/7 TAXI SERVICES (PETERLEE) LTD.
Children and Young Peoples Services,Head of Education and Skills,Transport,230007,Contract Hire,10/10/2023,4188191-92306,"2,549.45",24/7 TAXI SERVICES (PETERLEE) LTD.
Children and Young Peoples Services,Head of Education and Skills,Transport,230007,Contract Hire,10/10/2023,4188191-92308,"3,347.50",24/7 TAXI SERVICES (PETERLEE) LTD.
Children and Young Peoples Services,Head of Education and Skills,Transport,230010,Contract Hire,10/10/2023,4188191-92310,"6,212.14",24/7 TAXI SERVICES (PETERLEE) LTD.
Children and Young Peoples Services,Head of Education and Skills,Transport,230006,Contract Hire,10/10/2023,4188191-92320,"1,706.40",24/7 TAXI SERVICES (PETERLEE) LTD.
Children and Young Peoples Services,Head of Education and Skills,Transport,230008,Contract Hire,10/10/2023,4188191-92321,"1,706.40",24/7 TAXI SERVICES (PETERLEE) LTD.
Children and Young Peoples Services,Head of Education and Skills,Transport,230007,Contract Hire,10/10/2023,4188191-92330,"4,147.22",24/7 TAXI SERVICES (PETERLEE) LTD.
Children and Young Peoples Services,Head of Education and Skills,Transport,230007,Contract Hire,10/10/2023,4188192-SEPTEMBER 04 2023,"1,800.00",A & P TAXIS.
Children and Young Peoples Services,Head of Education and Skills,Transport,230035,Contract Hire,10/10/2023,4188192-SEPTEMBER03-2023,"1,692.72",A & P TAXIS.
Children and Young Peoples Services,Head of Education and Skills,Transport,230008,Contract Hire,10/10/2023,4188193-0923/SB,680.00,AABAT TAXIS.
Adult and Health Services,Head of Adults,Transport,230005,Contract Hire,10/10/2023,4188193-0923/SK,"2,665.11",AABAT TAXIS.
Adult and Health Services,Commissioning inc Supporting People,Supplies and Services,384956,Miscellaneous Expenses,10/10/2023,4188195-1767873,"12,693.24",ACCESS UK LTD.
Neighbourhoods and Climate Change,Environmental Services,Third Party Payments,430100,Rendered by Private Contractors,10/10/2023,4188200-3394,"8,640.00",AJ GUTHRIE & SON.
Neighbourhoods and Climate Change,Highways,Supplies and Services,304358,Equipment and Materials,10/10/2023,4188205-0000039022,"2,808.00",AQUAJET DRAIN CLEANING LTD.
Children and Young Peoples Services,Head of Education and Skills,Transport,230034,Contract Hire,10/10/2023,4188206-5003SEP23,"1,635.00",ARMSTRONG`S TAXIS.
Children and Young Peoples Services,Head of Education and Skills,Transport,230034,Contract Hire,10/10/2023,4188206-SEPT2023-1,"1,853.00",ARMSTRONG`S TAXIS.
Children and Young Peoples Services,Head of Education and Skills,Transport,230008,Contract Hire,10/10/2023,4188208-DCC5SEPT23,"5,328.00",ATLAS TAXIS BISHOP AUCKLAND.
Adult and Health Services,Head of Adults,Transport,230005,Contract Hire,10/10/2023,4188209-DCC 16 SEPT 23,"1,536.00",ATLAS TAXIS MANAGEMENT LTD.
Children and Young Peoples Services,Head of Education and Skills,Transport,230008,Contract Hire,10/10/2023,4188209-DCC13SEPT23,"4,195.90",ATLAS TAXIS MANAGEMENT LTD.
Children and Young Peoples Services,Head of Education and Skills,Transport,230008,Contract Hire,10/10/2023,4188209-DCC8SEPT23,"5,160.53",ATLAS TAXIS MANAGEMENT LTD.
Children and Young Peoples Services,Head of Education and Skills,Transport,230003,Contract Hire,10/10/2023,4188210-221,"2,952.00",AUCKLAND TRAVEL.
Children and Young Peoples Services,Head of Education and Skills,Transport,230008,Contract Hire,10/10/2023,4188211-1063,"2,692.26",BEELINE MINI BUSES.
Children and Young Peoples Services,Head of Education and Skills,Transport,230008,Contract Hire,10/10/2023,4188211-1065,"1,308.24",BEELINE MINI BUSES.
Neighbourhoods and Climate Change,Environmental Services,Transport,210057,Repair and Maintenance of Vehicles,10/10/2023,4188212-35252473,"1,336.79",BELL TRUCK SALES LTD T/A BELL TRUCK & VAN.
Neighbourhoods and Climate Change,Partnerships & Community Engagement Div.,Supplies and Services,384899,Miscellaneous Expenses,10/10/2023,4188213-VOUCHER23CCU-03,867.39,BELMONT PARISH COUNCIL.
Children and Young Peoples Services,Head of Education and Skills,Transport,230007,Contract Hire,10/10/2023,4188215-4517SEP23,"2,542.20",BENNETTS TAXIS.
Children and Young Peoples Services,Head of Early Help Inclusion & Vulnerable Children.,Supplies and Services,384700,Miscellaneous Expenses,10/10/2023,4188221-RES-10-2023-222,"3,539.00",BISHOP WILKINSON CATHOLIC EDUCATION TRUST.
Neighbourhoods and Climate Change,Environmental Services,Transport,210057,Repair and Maintenance of Vehicles,10/10/2023,4188222-60187,737.64,BJ LUKE NIELSEN DIRECT.
Neighbourhoods and Climate Change,Highways,Supplies and Services,304221,Equipment and Materials,10/10/2023,4188225-21463475,849.53,BREEDON TRADING LTD.
Children and Young Peoples Services,Head of Education and Skills,Transport,230008,Contract Hire,10/10/2023,4188226-BZ00477,"1,954.26",BREZ`S TAXIS.
Children and Young Peoples Services,Head of Education and Skills,Transport,230008,Contract Hire,10/10/2023,4188226-BZ00478,"1,094.22",BREZ`S TAXIS.
Adult and Health Services,Head of Adults,Transport,230005,Contract Hire,10/10/2023,4188226-BZ00479,844.00,BREZ`S TAXIS.
Adult and Health Services,Head of Adults,Transport,230005,Contract Hire,10/10/2023,4188226-BZ00480,864.00,BREZ`S TAXIS.
Neighbourhoods and Climate Change,Highways,Supplies and Services,304358,Equipment and Materials,10/10/2023,4188230-10302,750.00,BW HAULAGE LTD.
Children and Young Peoples Services,Head of Childrens Social Care,Third Party Payments,440038,Other third party payments E440,10/10/2023,4188234-25476,"6,020.40",CASTLE VIEW GROUP TRAINING.
Children and Young Peoples Services,Head of Childrens Social Care,Third Party Payments,440047,Other third party payments E440,10/10/2023,4188234-25878,"4,459.39",CASTLE VIEW GROUP TRAINING.
Neighbourhoods and Climate Change,Highways,Supplies and Services,304358,Equipment and Materials,10/10/2023,4188235-115920,"12,643.50",CG ROBINSON & SONS LTD.
Children and Young Peoples Services,Head of Education and Skills,Transport,230034,Contract Hire,10/10/2023,4188236-2418,"1,003.20",CHEVRON TAXIS LTD.
Children and Young Peoples Services,Head of Education and Skills,Transport,230007,Contract Hire,10/10/2023,4188236-2441,"2,544.00",CHEVRON TAXIS LTD.
Children and Young Peoples Services,Head of Education and Skills,Transport,230008,Contract Hire,10/10/2023,4188242-A085 RA-0923,"3,283.20",CJ`S EXECUTIVE TRAVEL LTD.
Children and Young Peoples Services,Head of Education and Skills,Transport,230008,Contract Hire,10/10/2023,4188242-E032-CE0923,"2,898.07",CJ`S EXECUTIVE TRAVEL LTD.
Children and Young Peoples Services,Head of Education and Skills,Transport,230008,Contract Hire,10/10/2023,4188242-N)55-MS0923,"3,639.17",CJ`S EXECUTIVE TRAVEL LTD.
Children and Young Peoples Services,Head of Education and Skills,Transport,230007,Contract Hire,10/10/2023,4188247-C-11931,"7,213.73",COCHRANES T/A KELVIN TRAVEL.
Children and Young Peoples Services,Head of Education and Skills,Transport,230007,Contract Hire,10/10/2023,4188247-C-11932,"4,012.23",COCHRANES T/A KELVIN TRAVEL.
Children and Young Peoples Services,Head of Education and Skills,Transport,230003,Contract Hire,10/10/2023,4188247-C-11935,"2,566.39",COCHRANES T/A KELVIN TRAVEL.
Children and Young Peoples Services,Head of Education and Skills,Transport,230003,Contract Hire,10/10/2023,4188247-C-11936,"2,967.39",COCHRANES T/A KELVIN TRAVEL.
Children and Young Peoples Services,Head of Education and Skills,Transport,230003,Contract Hire,10/10/2023,4188247-C-11937,"4,521.40",COCHRANES T/A KELVIN TRAVEL.
Children and Young Peoples Services,Head of Education and Skills,Transport,230007,Contract Hire,10/10/2023,4188247-C-11938,"5,320.00",COCHRANES T/A KELVIN TRAVEL.
Children and Young Peoples Services,Head of Education and Skills,Transport,230008,Contract Hire,10/10/2023,4188248-46,"1,886.04",CONNORS MINI BUSES.*
Regeneration Economy and Growth,Business Durham,Premises,120021,Energy Costs,10/10/2023,4188251-17819605,"1,588.32",CORONA ENERGY RETAIL 2 LTD.
Regeneration Economy and Growth,Business Durham,Premises,120021,Energy Costs,10/10/2023,4188251-17819606,"1,798.75",CORONA ENERGY RETAIL 2 LTD.
Regeneration Economy and Growth,Business Durham,Premises,120021,Energy Costs,10/10/2023,4188251-17819627,"2,788.49",CORONA ENERGY RETAIL 2 LTD.
Regeneration Economy and Growth,Business Durham,Premises,120021,Energy Costs,10/10/2023,4188251-17820134,797.46,CORONA ENERGY RETAIL 2 LTD.
Regeneration Economy and Growth,Planning & Housing,Supplies and Services,324117,Provisions E324,10/10/2023,4188252-REG0095,664.80,COUNTY DURHAM FURNITURE HELP SCHEME (CDFHS).
Children and Young Peoples Services,Head of Early Help Inclusion & Vulnerable Children.,Supplies and Services,324500,Provisions E324,10/10/2023,4188257-25401,"30,965.58",CREATIVE MANAGEMENT SERVICES LTD.
Children and Young Peoples Services,Head of Education and Skills,Transport,230034,Contract Hire,10/10/2023,4188258-116557/116558,"1,385.47",CROFT BUSINESS SERVICES LTD T/A CROFT TRAVEL.
Children and Young Peoples Services,Head of Education and Skills,Transport,230006,Contract Hire,10/10/2023,4188258-116559,"3,993.12",CROFT BUSINESS SERVICES LTD T/A CROFT TRAVEL.
Children and Young Peoples Services,Head of Education and Skills,Transport,230008,Contract Hire,10/10/2023,4188258-116561,"3,988.01",CROFT BUSINESS SERVICES LTD T/A CROFT TRAVEL.
Children and Young Peoples Services,Head of Education and Skills,Transport,230008,Contract Hire,10/10/2023,4188258-116574/116563,"3,345.01",CROFT BUSINESS SERVICES LTD T/A CROFT TRAVEL.
Children and Young Peoples Services,Head of Education and Skills,Transport,230008,Contract Hire,10/10/2023,4188258-116576,"1,897.73",CROFT BUSINESS SERVICES LTD T/A CROFT TRAVEL.
Children and Young Peoples Services,Head of Education and Skills,Transport,230008,Contract Hire,10/10/2023,4188258-116578,"1,129.54",CROFT BUSINESS SERVICES LTD T/A CROFT TRAVEL.
Children and Young Peoples Services,Head of Education and Skills,Transport,230007,Contract Hire,10/10/2023,4188265-3520SEP23,"2,397.24",DAVE'S PRIVATE HIRE.
Neighbourhoods and Climate Change,Environmental Services,Transport,210057,Repair and Maintenance of Vehicles,10/10/2023,4188267-96447059,609.30,DENNIS EAGLE LTD T/A TERBERG MATEC (UK) LTD.
Neighbourhoods and Climate Change,Environmental Services,Transport,210057,Repair and Maintenance of Vehicles,10/10/2023,4188267-96447060,609.30,DENNIS EAGLE LTD T/A TERBERG MATEC (UK) LTD.
Neighbourhoods and Climate Change,Environmental Services,Transport,210057,Repair and Maintenance of Vehicles,10/10/2023,4188267-96447061,657.30,DENNIS EAGLE LTD T/A TERBERG MATEC (UK) LTD.
Neighbourhoods and Climate Change,Environmental Services,Transport,210057,Repair and Maintenance of Vehicles,10/10/2023,4188268-DE11620838,"2,230.33",DENNIS EAGLE LTD.
Regeneration Economy and Growth,Business Durham,Premises,120009,Energy Costs,10/10/2023,4188275-000016546608,"32,535.58",EDF ENERGY CUSTOMERS PLC T/A EDF ENERGY.
Neighbourhoods and Climate Change,Highways,Supplies and Services,304221,Equipment and Materials,10/10/2023,4188279-147582,"12,427.08",FABRIKAT (NOTTINGHAM) LTD.
Children and Young Peoples Services,Head of Education and Skills,Transport,230007,Contract Hire,10/10/2023,4188284-INV-0191,"2,150.40",FIGGY BUS (TAXI).
Children and Young Peoples Services,Head of Education and Skills,Transport,230007,Contract Hire,10/10/2023,4188284-INV-0192,"3,351.60",FIGGY BUS (TAXI).
Children and Young Peoples Services,Head of Education and Skills,Transport,230007,Contract Hire,10/10/2023,4188284-INV-0194,"1,900.00",FIGGY BUS (TAXI).
Neighbourhoods and Climate Change,Environmental Services,Transport,210057,Repair and Maintenance of Vehicles,10/10/2023,4188287-IN236999,738.04,FM STEELSTOCK LTD.
Neighbourhoods and Climate Change,Environmental Services,Transport,210057,Repair and Maintenance of Vehicles,10/10/2023,4188287-IN237002,619.78,FM STEELSTOCK LTD.
Neighbourhoods and Climate Change,Environmental Services,Third Party Payments,430100,Rendered by Private Contractors,10/10/2023,4188290-119502,"2,920.34",FR SHARROCK LTD.
Neighbourhoods and Climate Change,Highways,Supplies and Services,304252,Equipment and Materials,10/10/2023,4188292-414296464,701.80,GAP GROUP LTD.
Children and Young Peoples Services,Head of Education and Skills,Transport,230003,Contract Hire,10/10/2023,4188293-25002,"5,491.00",GARNETTS LTD (COACHES).
Children and Young Peoples Services,Head of Education and Skills,Transport,230003,Contract Hire,10/10/2023,4188293-25002-3003,"5,225.00",GARNETTS LTD (COACHES).
Children and Young Peoples Services,Head of Education and Skills,Transport,230003,Contract Hire,10/10/2023,4188293-25002-3004,"5,605.00",GARNETTS LTD (COACHES).
Children and Young Peoples Services,Head of Education and Skills,Transport,230003,Contract Hire,10/10/2023,4188293-25002-3005,"10,355.00",GARNETTS LTD (COACHES).
Children and Young Peoples Services,Head of Education and Skills,Transport,230003,Contract Hire,10/10/2023,4188293-25002-3008,"4,712.00",GARNETTS LTD (COACHES).
Children and Young Peoples Services,Head of Education and Skills,Transport,230007,Contract Hire,10/10/2023,4188293-25002-3203,"4,655.00",GARNETTS LTD (COACHES).
Children and Young Peoples Services,Head of Education and Skills,Transport,230003,Contract Hire,10/10/2023,4188293-25002-3262,"4,845.00",GARNETTS LTD (COACHES).
Children and Young Peoples Services,Head of Education and Skills,Transport,230003,Contract Hire,10/10/2023,4188293-25002-3333,"5,035.00",GARNETTS LTD (COACHES).
Children and Young Peoples Services,Head of Education and Skills,Transport,230034,Contract Hire,10/10/2023,4188294-001,"1,995.00",GARY JACKSON PRIVATE HIRE.
Neighbourhoods and Climate Change,Highways,Supplies and Services,304358,Equipment and Materials,10/10/2023,4188297-81875,"1,176.00",GEORGE VARDY HAULAGE.
Neighbourhoods and Climate Change,Highways,Supplies and Services,304358,Equipment and Materials,10/10/2023,4188297-81876,636.00,GEORGE VARDY HAULAGE.
Neighbourhoods and Climate Change,Highways,Supplies and Services,304358,Equipment and Materials,10/10/2023,4188297-81878,636.00,GEORGE VARDY HAULAGE.
Regeneration Economy and Growth,Corporate Property and Land,Supplies and Services,304221,Equipment and Materials,10/10/2023,4188304-4771333,"2,100.00",HEADLAM (FLOORCOVERING DISTRIBUTORS) LTD.
Children and Young Peoples Services,Head of Education and Skills,Transport,230003,Contract Hire,10/10/2023,4188307-23647,"3,030.50",HODGSONS COACH OPERATORS LTD.
Children and Young Peoples Services,Head of Education and Skills,Transport,230007,Contract Hire,10/10/2023,4188307-23648,"5,415.00",HODGSONS COACH OPERATORS LTD.
Children and Young Peoples Services,Head of Education and Skills,Transport,230007,Contract Hire,10/10/2023,4188307-23649,"5,415.00",HODGSONS COACH OPERATORS LTD.
Children and Young Peoples Services,Head of Education and Skills,Transport,230003,Contract Hire,10/10/2023,4188307-23650,"6,460.00",HODGSONS COACH OPERATORS LTD.
Children and Young Peoples Services,Head of Education and Skills,Transport,230007,Contract Hire,10/10/2023,4188307-23651,"2,850.00",HODGSONS COACH OPERATORS LTD.
Children and Young Peoples Services,Head of Education and Skills,Transport,230007,Contract Hire,10/10/2023,4188307-23652,"3,648.00",HODGSONS COACH OPERATORS LTD.
Children and Young Peoples Services,Head of Education and Skills,Transport,230003,Contract Hire,10/10/2023,4188307-23653,"3,330.00",HODGSONS COACH OPERATORS LTD.
Children and Young Peoples Services,Head of Education and Skills,Transport,230007,Contract Hire,10/10/2023,4188307-23655,"3,990.00",HODGSONS COACH OPERATORS LTD.
Children and Young Peoples Services,Head of Education and Skills,Transport,230007,Contract Hire,10/10/2023,4188307-23656,"3,990.00",HODGSONS COACH OPERATORS LTD.
Children and Young Peoples Services,Head of Education and Skills,Transport,230007,Contract Hire,10/10/2023,4188307-23657,"2,166.00",HODGSONS COACH OPERATORS LTD.
Children and Young Peoples Services,Head of Education and Skills,Transport,230007,Contract Hire,10/10/2023,4188307-23659,"1,584.60",HODGSONS COACH OPERATORS LTD.
Neighbourhoods and Climate Change,Environmental Services,Supplies and Services,384199,Miscellaneous Expenses,10/10/2023,4188313-3171,"5,358.00",IAN C LIDDLE T/A IC LIDDLE SERVICES.
Neighbourhoods and Climate Change,Environmental Services,Third Party Payments,430100,Rendered by Private Contractors,10/10/2023,4188313-3180,"1,386.00",IAN C LIDDLE T/A IC LIDDLE SERVICES.
Neighbourhoods and Climate Change,Environmental Services,Third Party Payments,430100,Rendered by Private Contractors,10/10/2023,4188313-3181,"2,520.00",IAN C LIDDLE T/A IC LIDDLE SERVICES.
Children and Young Peoples Services,Head of Education and Skills,Transport,230007,Contract Hire,10/10/2023,4188319-6600,"1,569.67",J YOUNG T/A VIP TAXIS.
Children and Young Peoples Services,Head of Education and Skills,Transport,230007,Contract Hire,10/10/2023,4188319-6602,"1,296.00",J YOUNG T/A VIP TAXIS.
Children and Young Peoples Services,Head of Education and Skills,Transport,230006,Contract Hire,10/10/2023,4188319-6605,"1,721.86",J YOUNG T/A VIP TAXIS.
Neighbourhoods and Climate Change,Highways,Supplies and Services,304358,Equipment and Materials,10/10/2023,4188320-5306969,"1,543.80",JA GILSON (AGRICULTURAL CONTRACTORS) LTD.
Neighbourhoods and Climate Change,Highways,Supplies and Services,304358,Equipment and Materials,10/10/2023,4188320-5306970,"1,227.60",JA GILSON (AGRICULTURAL CONTRACTORS) LTD.
Neighbourhoods and Climate Change,Highways,Supplies and Services,304358,Equipment and Materials,10/10/2023,4188320-5306971,"1,611.73",JA GILSON (AGRICULTURAL CONTRACTORS) LTD.
Neighbourhoods and Climate Change,Highways,Supplies and Services,304358,Equipment and Materials,10/10/2023,4188320-5306972,"1,973.40",JA GILSON (AGRICULTURAL CONTRACTORS) LTD.
Children and Young Peoples Services,Head of Education and Skills,Transport,230007,Contract Hire,10/10/2023,4188325-INV3296,"1,546.20",JEFF ANDERSON COACHES LTD.
Neighbourhoods and Climate Change,Environmental Services,Transport,210057,Repair and Maintenance of Vehicles,10/10/2023,4188327-171640,951.77,JG PAXTON & SONS LTD.
Children and Young Peoples Services,Head of Education and Skills,Supplies and Services,384199,Miscellaneous Expenses,10/10/2023,4188329-DW3Grant005,"1,486.67",JIGSAW WAREHOUSING & DISTRIBUTION LTD.
Neighbourhoods and Climate Change,Highways,Supplies and Services,304358,Equipment and Materials,10/10/2023,4188331-32649,"2,043.00",JOHN R BUTTERFIELD LTD.
Children and Young Peoples Services,Head of Education and Skills,Transport,230034,Contract Hire,10/10/2023,4188334-1454,782.68,K & R TAXIS (STANLEY).
Children and Young Peoples Services,Head of Education and Skills,Transport,230008,Contract Hire,10/10/2023,4188334-1462,"1,728.00",K & R TAXIS (STANLEY).
Neighbourhoods and Climate Change,Highways,Supplies and Services,304358,Equipment and Materials,10/10/2023,4188338-4676,720.00,KEVIN SNOWDON GROUNDWORKS LTD.
Neighbourhoods and Climate Change,Highways,Supplies and Services,304358,Equipment and Materials,10/10/2023,4188338-4680,"1,439.10",KEVIN SNOWDON GROUNDWORKS LTD.
Neighbourhoods and Climate Change,Highways,Supplies and Services,304358,Equipment and Materials,10/10/2023,4188338-4684,"1,345.20",KEVIN SNOWDON GROUNDWORKS LTD.
Children and Young Peoples Services,Head of Education and Skills,Transport,230007,Contract Hire,10/10/2023,4188348-33039,"4,560.00",LEE`S COACHES LTD.
Children and Young Peoples Services,Head of Education and Skills,Transport,230007,Contract Hire,10/10/2023,4188348-33043,"9,000.00",LEE`S COACHES LTD.
Children and Young Peoples Services,Head of Education and Skills,Transport,230007,Contract Hire,10/10/2023,4188349-5162,"2,922.05",LINCAB TAXIS.
Resources BK0010,Digital Services,Supplies and Services,344111,Telephones,10/10/2023,4188355-261888,"32,558.03",MAINTEL EUROPE LTD.
Children and Young Peoples Services,Head of Childrens Social Care,Third Party Payments,440046,Other third party payments E440,10/10/2023,4188356-6855,"10,992.70",MAJOR RECRUITMENT LTD.*
Children and Young Peoples Services,Head of Childrens Social Care,Third Party Payments,440046,Other third party payments E440,10/10/2023,4188356-6859,"1,288.80",MAJOR RECRUITMENT LTD.*
Children and Young Peoples Services,Head of Childrens Social Care,Third Party Payments,425021,Rendered by Voluntary Organisations,10/10/2023,4188356-6864,"1,578.00",MAJOR RECRUITMENT LTD.*
Children and Young Peoples Services,Head of Childrens Social Care,Third Party Payments,440048,Other third party payments E440,10/10/2023,4188356-7184,"5,997.60",MAJOR RECRUITMENT LTD.*
Children and Young Peoples Services,Head of Childrens Social Care,Third Party Payments,440046,Other third party payments E440,10/10/2023,4188356-8061,"10,939.44",MAJOR RECRUITMENT LTD.*
Children and Young Peoples Services,Head of Childrens Social Care,Third Party Payments,440047,Other third party payments E440,10/10/2023,4188356-8062,858.00,MAJOR RECRUITMENT LTD.*
Children and Young Peoples Services,Head of Childrens Social Care,Third Party Payments,440046,Other third party payments E440,10/10/2023,4188356-8063,"11,616.60",MAJOR RECRUITMENT LTD.*
Children and Young Peoples Services,Head of Childrens Social Care,Third Party Payments,425021,Rendered by Voluntary Organisations,10/10/2023,4188356-8064,"10,623.60",MAJOR RECRUITMENT LTD.*
Children and Young Peoples Services,Head of Childrens Social Care,Third Party Payments,440046,Other third party payments E440,10/10/2023,4188356-8067,"1,240.98",MAJOR RECRUITMENT LTD.*
Children and Young Peoples Services,Head of Childrens Social Care,Third Party Payments,440047,Other third party payments E440,10/10/2023,4188356-8069,"2,689.63",MAJOR RECRUITMENT LTD.*
Children and Young Peoples Services,Head of Childrens Social Care,Third Party Payments,440046,Other third party payments E440,10/10/2023,4188356-8070,"11,515.81",MAJOR RECRUITMENT LTD.*
Children and Young Peoples Services,Head of Childrens Social Care,Third Party Payments,440047,Other third party payments E440,10/10/2023,4188356-8071,891.46,MAJOR RECRUITMENT LTD.*
Children and Young Peoples Services,Head of Childrens Social Care,Third Party Payments,440046,Other third party payments E440,10/10/2023,4188356-8072,"11,821.96",MAJOR RECRUITMENT LTD.*
Children and Young Peoples Services,Head of Childrens Social Care,Third Party Payments,425021,Rendered by Voluntary Organisations,10/10/2023,4188356-8073,"16,165.80",MAJOR RECRUITMENT LTD.*
Children and Young Peoples Services,Head of Childrens Social Care,Third Party Payments,440047,Other third party payments E440,10/10/2023,4188356-8075,"5,188.32",MAJOR RECRUITMENT LTD.*
Children and Young Peoples Services,Head of Childrens Social Care,Third Party Payments,440046,Other third party payments E440,10/10/2023,4188356-8076,"2,506.76",MAJOR RECRUITMENT LTD.*
Children and Young Peoples Services,Head of Childrens Social Care,Third Party Payments,440047,Other third party payments E440,10/10/2023,4188356-8078,"3,280.15",MAJOR RECRUITMENT LTD.*
Children and Young Peoples Services,Head of Childrens Social Care,Third Party Payments,440046,Other third party payments E440,10/10/2023,4188356-8079,"11,583.89",MAJOR RECRUITMENT LTD.*
Children and Young Peoples Services,Head of Childrens Social Care,Third Party Payments,440047,Other third party payments E440,10/10/2023,4188356-8080,938.50,MAJOR RECRUITMENT LTD.*
Children and Young Peoples Services,Head of Childrens Social Care,Third Party Payments,440046,Other third party payments E440,10/10/2023,4188356-8081,"11,995.21",MAJOR RECRUITMENT LTD.*
Children and Young Peoples Services,Head of Childrens Social Care,Third Party Payments,425021,Rendered by Voluntary Organisations,10/10/2023,4188356-8082,"12,236.20",MAJOR RECRUITMENT LTD.*
Children and Young Peoples Services,Head of Childrens Social Care,Third Party Payments,440047,Other third party payments E440,10/10/2023,4188356-8086,"2,570.40",MAJOR RECRUITMENT LTD.*
Children and Young Peoples Services,Head of Childrens Social Care,Third Party Payments,440046,Other third party payments E440,10/10/2023,4188356-8087,"2,619.46",MAJOR RECRUITMENT LTD.*
Children and Young Peoples Services,Head of Childrens Social Care,Third Party Payments,440047,Other third party payments E440,10/10/2023,4188356-8089,"3,515.81",MAJOR RECRUITMENT LTD.*
Children and Young Peoples Services,Head of Childrens Social Care,Third Party Payments,440046,Other third party payments E440,10/10/2023,4188356-8090,"11,972.70",MAJOR RECRUITMENT LTD.*
Children and Young Peoples Services,Head of Childrens Social Care,Third Party Payments,440047,Other third party payments E440,10/10/2023,4188356-8091,985.18,MAJOR RECRUITMENT LTD.*
Children and Young Peoples Services,Head of Childrens Social Care,Third Party Payments,440046,Other third party payments E440,10/10/2023,4188356-8092,"10,287.72",MAJOR RECRUITMENT LTD.*
Children and Young Peoples Services,Head of Childrens Social Care,Third Party Payments,440046,Other third party payments E440,10/10/2023,4188356-8096,"1,000.20",MAJOR RECRUITMENT LTD.*
Children and Young Peoples Services,Head of Childrens Social Care,Third Party Payments,440047,Other third party payments E440,10/10/2023,4188356-8099,"3,238.10",MAJOR RECRUITMENT LTD.*
Children and Young Peoples Services,Head of Childrens Social Care,Third Party Payments,440046,Other third party payments E440,10/10/2023,4188356-8100,"12,586.49",MAJOR RECRUITMENT LTD.*
Children and Young Peoples Services,Head of Childrens Social Care,Third Party Payments,440047,Other third party payments E440,10/10/2023,4188356-8101,720.66,MAJOR RECRUITMENT LTD.*
Children and Young Peoples Services,Head of Childrens Social Care,Third Party Payments,440046,Other third party payments E440,10/10/2023,4188356-8102,"11,995.20",MAJOR RECRUITMENT LTD.*
Children and Young Peoples Services,Head of Childrens Social Care,Third Party Payments,440046,Other third party payments E440,10/10/2023,4188356-8105,608.69,MAJOR RECRUITMENT LTD.*
Children and Young Peoples Services,Head of Childrens Social Care,Third Party Payments,440047,Other third party payments E440,10/10/2023,4188356-8107,"3,347.45",MAJOR RECRUITMENT LTD.*
Children and Young Peoples Services,Head of Childrens Social Care,Third Party Payments,440046,Other third party payments E440,10/10/2023,4188356-8108,"11,890.81",MAJOR RECRUITMENT LTD.*
Children and Young Peoples Services,Head of Childrens Social Care,Third Party Payments,440047,Other third party payments E440,10/10/2023,4188356-8109,643.50,MAJOR RECRUITMENT LTD.*
Children and Young Peoples Services,Head of Childrens Social Care,Third Party Payments,440046,Other third party payments E440,10/10/2023,4188356-8111,"11,995.20",MAJOR RECRUITMENT LTD.*
Children and Young Peoples Services,Head of Childrens Social Care,Third Party Payments,440046,Other third party payments E440,10/10/2023,4188356-8113,"12,228.59",MAJOR RECRUITMENT LTD.*
Children and Young Peoples Services,Head of Childrens Social Care,Third Party Payments,440047,Other third party payments E440,10/10/2023,4188356-8115,"3,080.10",MAJOR RECRUITMENT LTD.*
Children and Young Peoples Services,Head of Childrens Social Care,Third Party Payments,440046,Other third party payments E440,10/10/2023,4188356-8116,"12,158.28",MAJOR RECRUITMENT LTD.*
Children and Young Peoples Services,Head of Childrens Social Care,Third Party Payments,440046,Other third party payments E440,10/10/2023,4188356-8117,"11,880.90",MAJOR RECRUITMENT LTD.*
Adult and Health Services,Head of Adults,Third Party Payments,474101,Purchase of Care,10/10/2023,4188358-BLOCKBEDS-OCT23,"28,432.49",MALHOTRA CARE HOMES LTD.
Adult and Health Services,Head of Adults,Third Party Payments,474101,Purchase of Care,10/10/2023,4188358-BLOCKBEDS-RNCC-OCT23,"7,784.01",MALHOTRA CARE HOMES LTD.
Children and Young Peoples Services,Head of Education and Skills,Transport,230008,Contract Hire,10/10/2023,4188359-INV09/2023-07,"2,285.70",MARK & JOHN CHISHOLM T/A (CHEVRON).
Children and Young Peoples Services,Head of Education and Skills,Transport,230008,Contract Hire,10/10/2023,4188359-INV09/2023-08,"3,420.00",MARK & JOHN CHISHOLM T/A (CHEVRON).
Children and Young Peoples Services,Head of Education and Skills,Transport,230008,Contract Hire,10/10/2023,4188359-INV09/2023-09,"5,006.02",MARK & JOHN CHISHOLM T/A (CHEVRON).
Children and Young Peoples Services,Head of Education and Skills,Transport,230010,Contract Hire,10/10/2023,4188359-INV09/2023-10,"3,890.48",MARK & JOHN CHISHOLM T/A (CHEVRON).
Children and Young Peoples Services,Head of Education and Skills,Transport,230010,Contract Hire,10/10/2023,4188359-INV09/2023-11,"4,170.52",MARK & JOHN CHISHOLM T/A (CHEVRON).
Children and Young Peoples Services,Head of Education and Skills,Transport,230008,Contract Hire,10/10/2023,4188359-INV09/2023-16,"3,381.24",MARK & JOHN CHISHOLM T/A (CHEVRON).
Neighbourhoods and Climate Change,Environmental Services,Transport,210057,Repair and Maintenance of Vehicles,10/10/2023,4188387-INV91135,"1,226.40",NE TRUCK SPARES LTD (NETS).
Regeneration Economy and Growth,Corporate Property and Land,Supplies and Services,304259,Equipment and Materials,10/10/2023,4188389-8110026586,"1,587.60",NORTH EAST AMBULANCE SERVICE NHS FOUNDATION TRUST.
Children and Young Peoples Services,Head of Early Help Inclusion & Vulnerable Children.,Supplies and Services,308011,Furniture,10/10/2023,4188411-SI/87545,"5,342.40",PINEAPPLE CONTRACTS.
Chief Executives Office,Communications Management,Supplies and Services,332029,Printing Stationery and Gen Off Exps,10/10/2023,4188416-21174,"7,560.00",RADECAL SIGNS GRAPHICS & ADVERTISING.
Chief Executives Office,Communications Management,Supplies and Services,332029,Printing Stationery and Gen Off Exps,10/10/2023,4188416-21175,"8,652.00",RADECAL SIGNS GRAPHICS & ADVERTISING.
Children and Young Peoples Services,Head of Education and Skills,Transport,230007,Contract Hire,10/10/2023,4188421-2090,"5,310.00",ROBERTS TOURS.
Children and Young Peoples Services,Head of Education and Skills,Transport,230007,Contract Hire,10/10/2023,4188421-2091,"3,555.00",ROBERTS TOURS.
Children and Young Peoples Services,Head of Education and Skills,Transport,230007,Contract Hire,10/10/2023,4188423-1955,"1,203.01",RON`S TAXIS (FISHBURN).
Children and Young Peoples Services,Head of Education and Skills,Transport,230007,Contract Hire,10/10/2023,4188424-ROXDCC327,"9,360.00",ROXBYS BUS HIRE.
Children and Young Peoples Services,Head of Education and Skills,Transport,230003,Contract Hire,10/10/2023,4188424-ROXDCC328,"9,588.00",ROXBYS BUS HIRE.
Children and Young Peoples Services,Head of Education and Skills,Transport,230007,Contract Hire,10/10/2023,4188426-4079-01,"2,160.00",S & S TRAVEL LTD.
Children and Young Peoples Services,Head of Education and Skills,Transport,230008,Contract Hire,10/10/2023,4188426-S080-01,"2,160.00",S & S TRAVEL LTD.
Children and Young Peoples Services,Head of Education and Skills,Transport,230008,Contract Hire,10/10/2023,4188426-W090-01,"3,240.00",S & S TRAVEL LTD.
Adult and Health Services,Head of Adults,Third Party Payments,472101,Purchase of Care,10/10/2023,4188431-RES-10-2023-220,"40,743.86",SECOND TO NONE CARE LTD.
Children and Young Peoples Services,Head of Education and Skills,Transport,230034,Contract Hire,10/10/2023,4188435-11025,"3,796.88",SHOTTON PRIVATE HIRE.
Children and Young Peoples Services,Head of Education and Skills,Transport,230012,Contract Hire,10/10/2023,4188435-11026,"1,546.37",SHOTTON PRIVATE HIRE.
Children and Young Peoples Services,Head of Education and Skills,Transport,230007,Contract Hire,10/10/2023,4188435-6006SEP23,"2,857.06",SHOTTON PRIVATE HIRE.
Neighbourhoods and Climate Change,Highways,Supplies and Services,304221,Equipment and Materials,10/10/2023,4188438-714560240733,"1,104.74",SIG TRADING LTD.
Adult and Health Services,Head of Adults,Transport,230005,Contract Hire,10/10/2023,4188439-3495,889.00,SIMONS TAXIS.
Adult and Health Services,Head of Adults,Transport,230005,Contract Hire,10/10/2023,4188440-3495-WV116SEP23,889.00,SIMONS TAXIS.
Children and Young Peoples Services,Head of Education and Skills,Transport,230008,Contract Hire,10/10/2023,4188445-00504,"1,814.40",SPENNYMOOR TAXIS.
Children and Young Peoples Services,Head of Education and Skills,Transport,230007,Contract Hire,10/10/2023,4188447-09110,"2,096.69",STANLEY TRAVEL (NORTH EAST) LTD.
Children and Young Peoples Services,Head of Education and Skills,Transport,230007,Contract Hire,10/10/2023,4188447-09113,"1,267.22",STANLEY TRAVEL (NORTH EAST) LTD.
Children and Young Peoples Services,Head of Education and Skills,Transport,230009,Contract Hire,10/10/2023,4188447-09126,"1,425.00",STANLEY TRAVEL (NORTH EAST) LTD.
Children and Young Peoples Services,Head of Education and Skills,Transport,230034,Contract Hire,10/10/2023,4188447-0913,"2,508.00",STANLEY TRAVEL (NORTH EAST) LTD.
Children and Young Peoples Services,Head of Education and Skills,Transport,230007,Contract Hire,10/10/2023,4188447-09136,"1,815.67",STANLEY TRAVEL (NORTH EAST) LTD.
Children and Young Peoples Services,Head of Education and Skills,Transport,230003,Contract Hire,10/10/2023,4188447-63462,"6,403.00",STANLEY TRAVEL (NORTH EAST) LTD.
Children and Young Peoples Services,Head of Education and Skills,Transport,230003,Contract Hire,10/10/2023,4188447-63463,"5,396.00",STANLEY TRAVEL (NORTH EAST) LTD.
Children and Young Peoples Services,Head of Education and Skills,Transport,230003,Contract Hire,10/10/2023,4188447-63464,"4,256.00",STANLEY TRAVEL (NORTH EAST) LTD.
Children and Young Peoples Services,Head of Education and Skills,Transport,230003,Contract Hire,10/10/2023,4188447-63465,"3,079.80",STANLEY TRAVEL (NORTH EAST) LTD.
Children and Young Peoples Services,Head of Education and Skills,Transport,230007,Contract Hire,10/10/2023,4188447-63466,"13,128.30",STANLEY TRAVEL (NORTH EAST) LTD.
Neighbourhoods and Climate Change,Highways,Supplies and Services,304221,Equipment and Materials,10/10/2023,4188448-19857,"2,306.40",STEADFAST SECURITY SOLUTIONS LTD.
Children and Young Peoples Services,Head of Education and Skills,Supplies and Services,384199,Miscellaneous Expenses,10/10/2023,4188458-DWF0001BELLDAVMTH3,"2,252.69",THE BELDAV GROUP LTD.
Adult and Health Services,Head of Adults,Transport,230005,Contract Hire,10/10/2023,4188461-256,"1,156.00",THE TAXI COMPANY (MURTON) LTD.
Neighbourhoods and Climate Change,Highways,Supplies and Services,304221,Equipment and Materials,10/10/2023,4188463-40141,"12,420.00",TODDS HIGHWAY MAINTENANCE LTD.
Regeneration Economy and Growth,Culture Sport and Tourism,Supplies and Services,338047,Services,10/10/2023,4188466-200413,901.01,TRAFALGAR RELEASING LTD.
Children and Young Peoples Services,Head of Early Help Inclusion & Vulnerable Children.,Supplies and Services,352001,Conference Expenses,10/10/2023,4188467-INV-16523,"4,590.00",TRIANGLE CONSULTING SOCIAL ENTERPRISE LTD.
Neighbourhoods and Climate Change,Highways,Supplies and Services,304221,Equipment and Materials,10/10/2023,4188469-251264,884.90,TYNEDALE ROADSTONE LTD.
Children and Young Peoples Services,Head of Childrens Social Care,Third Party Payments,440046,Other third party payments E440,10/10/2023,4188472-INV-1040,"3,763.26",VELOX HEALTHCARE.
Children and Young Peoples Services,Head of Childrens Social Care,Third Party Payments,440048,Other third party payments E440,10/10/2023,4188472-INV-1198,601.20,VELOX HEALTHCARE.
Children and Young Peoples Services,Head of Childrens Social Care,Third Party Payments,440048,Other third party payments E440,10/10/2023,4188472-INV-1213,"2,570.40",VELOX HEALTHCARE.
Children and Young Peoples Services,Head of Childrens Social Care,Third Party Payments,440048,Other third party payments E440,10/10/2023,4188472-INV-1214,"2,814.59",VELOX HEALTHCARE.
Neighbourhoods and Climate Change,Environmental Services,Supplies and Services,338078,Services,10/10/2023,4188476-INV-60394,"3,003.84",VISTECH SERVICES LTD.
Neighbourhoods and Climate Change,Environmental Services,Supplies and Services,338078,Services,10/10/2023,4188476-INV-60396,"2,109.84",VISTECH SERVICES LTD.
Neighbourhoods and Climate Change,Environmental Services,Supplies and Services,338078,Services,10/10/2023,4188476-INV-60399,"1,233.72",VISTECH SERVICES LTD.
Children and Young Peoples Services,Head of Early Help Inclusion & Vulnerable Children.,Supplies and Services,338078,Services,10/10/2023,4188476-INV-60401,"6,060.10",VISTECH SERVICES LTD.
Neighbourhoods and Climate Change,Environmental Services,Supplies and Services,338078,Services,10/10/2023,4188476-INV-60409,"2,440.62",VISTECH SERVICES LTD.
Resources BK0010,Digital Services,Supplies and Services,344015,Telephones,10/10/2023,4188477-SK58192,"1,734.00",VODAFONE CORPORATE LTD.
Resources BK0010,Digital Services,Supplies and Services,344015,Telephones,10/10/2023,4188477-SK60107,"1,387.20",VODAFONE CORPORATE LTD.
Resources BK0010,Digital Services,Supplies and Services,344015,Telephones,10/10/2023,4188477-SK60109,693.60,VODAFONE CORPORATE LTD.
Resources BK0010,Digital Services,Supplies and Services,344015,Telephones,10/10/2023,4188477-SK61021,"1,734.00",VODAFONE CORPORATE LTD.
Resources BK0010,Digital Services,Supplies and Services,344015,Telephones,10/10/2023,4188477-SK62074,"1,734.00",VODAFONE CORPORATE LTD.
Resources BK0010,Digital Services,Supplies and Services,344015,Telephones,10/10/2023,4188477-SK63971,693.60,VODAFONE CORPORATE LTD.
Resources BK0010,Digital Services,Supplies and Services,344015,Telephones,10/10/2023,4188477-SK66710,693.60,VODAFONE CORPORATE LTD.
Regeneration Economy and Growth,Culture Sport and Tourism,Supplies and Services,338047,Services,10/10/2023,4188478-2083297,961.25,WALT DISNEY COMPANY LTD.
Children and Young Peoples Services,Head of Education and Skills,Transport,230007,Contract Hire,10/10/2023,4188481-19277,"3,850.50",WEARDALE MOTOR SERVICES LTD.
Children and Young Peoples Services,Head of Education and Skills,Transport,230007,Contract Hire,10/10/2023,4188481-19279,"3,243.98",WEARDALE MOTOR SERVICES LTD.
Children and Young Peoples Services,Head of Education and Skills,Transport,230007,Contract Hire,10/10/2023,4188482-7797,"2,557.02",WEARDALE PRIVATE HIRE.
Children and Young Peoples Services,Head of Education and Skills,Transport,230007,Contract Hire,10/10/2023,4188482-7801,"3,410.50",WEARDALE PRIVATE HIRE.
Children and Young Peoples Services,Head of Education and Skills,Transport,230003,Contract Hire,10/10/2023,4188484-WSL2590,"5,800.00",WHITE STAR TRAVEL LTD.
Neighbourhoods and Climate Change,Environmental Services,Transport,215005,Running Costs of Vehicles,10/10/2023,4188489-1024817,"20,011.68",YOUR NRG LTD.
Non-Service Specific,Insurances,Expenditure 8INSEX,810001,Insurance Expenditure,10/10/2023,4188492-08U0070557-17072023,"308,505.57",ZURICH INSURANCE PLC.
Children and Young Peoples Services,Head of Education and Skills,Transport,230008,Contract Hire,10/10/2023,4188202-0154,"1,643.04",REDACTED - PAYMENT TO INDIVIDUAL
Children and Young Peoples Services,Head of Education and Skills,Transport,230008,Contract Hire,10/10/2023,4188227-1-SEPT23,"2,532.89",REDACTED - PAYMENT TO INDIVIDUAL
Children and Young Peoples Services,Head of Education and Skills,Transport,230008,Contract Hire,10/10/2023,4188231-BIL 0321,"2,700.00",REDACTED - PAYMENT TO INDIVIDUAL
Children and Young Peoples Services,Head of Education and Skills,Transport,230007,Contract Hire,10/10/2023,4188238-47787,"4,482.00",REDACTED - PAYMENT TO INDIVIDUAL
Children and Young Peoples Services,Head of Education and Skills,Transport,230003,Contract Hire,10/10/2023,4188238-47790,"5,220.00",REDACTED - PAYMENT TO INDIVIDUAL
Children and Young Peoples Services,Head of Education and Skills,Transport,230034,Contract Hire,10/10/2023,4188239-5289-23,"3,650.09",REDACTED - PAYMENT TO INDIVIDUAL
Adult and Health Services,Head of Adults,Transport,230005,Contract Hire,10/10/2023,4188239-EAS197/13,630.00,REDACTED - PAYMENT TO INDIVIDUAL
Children and Young Peoples Services,Head of Education and Skills,Transport,230007,Contract Hire,10/10/2023,4188264-INV-0167,"3,040.00",REDACTED - PAYMENT TO INDIVIDUAL
Children and Young Peoples Services,Head of Education and Skills,Transport,230034,Contract Hire,10/10/2023,4188291-8-SEPT23,"1,248.00",REDACTED - PAYMENT TO INDIVIDUAL
Children and Young Peoples Services,Head of Education and Skills,Transport,230034,Contract Hire,10/10/2023,4188298-TT-PA2309,756.00,REDACTED - PAYMENT TO INDIVIDUAL
Children and Young Peoples Services,Head of Education and Skills,Transport,230010,Contract Hire,10/10/2023,4188314-WOOD 001,"5,115.55",REDACTED - PAYMENT TO INDIVIDUAL
Children and Young Peoples Services,Head of Education and Skills,Transport,230007,Contract Hire,10/10/2023,4188339-CTD0023/23,"1,815.85",REDACTED - PAYMENT TO INDIVIDUAL
Children and Young Peoples Services,Head of Education and Skills,Transport,230008,Contract Hire,10/10/2023,4188357-22-SEPT23,"2,201.04",REDACTED - PAYMENT TO INDIVIDUAL
Children and Young Peoples Services,Head of Education and Skills,Transport,230034,Contract Hire,10/10/2023,4188360-3477SEP23,"1,406.00",REDACTED - PAYMENT TO INDIVIDUAL
Children and Young Peoples Services,Head of Education and Skills,Transport,230008,Contract Hire,10/10/2023,4188361-01-SEPT23,"2,533.50",REDACTED - PAYMENT TO INDIVIDUAL
Children and Young Peoples Services,Head of Education and Skills,Transport,230008,Contract Hire,10/10/2023,4188368-A011/0923,"5,287.13",REDACTED - PAYMENT TO INDIVIDUAL
Children and Young Peoples Services,Head of Education and Skills,Transport,230035,Contract Hire,10/10/2023,4188369-288,505.40,REDACTED - PAYMENT TO INDIVIDUAL
Children and Young Peoples Services,Head of Education and Skills,Transport,230034,Contract Hire,10/10/2023,4188370-260,"2,750.00",REDACTED - PAYMENT TO INDIVIDUAL
Children and Young Peoples Services,Head of Education and Skills,Transport,230007,Contract Hire,10/10/2023,4188373-285K,"1,334.16",REDACTED - PAYMENT TO INDIVIDUAL
Children and Young Peoples Services,Head of Education and Skills,Transport,230008,Contract Hire,10/10/2023,4188373-286K,"2,238.30",REDACTED - PAYMENT TO INDIVIDUAL
Children and Young Peoples Services,Head of Education and Skills,Transport,230006,Contract Hire,10/10/2023,4188373-287K,"1,710.00",REDACTED - PAYMENT TO INDIVIDUAL
Children and Young Peoples Services,Head of Education and Skills,Transport,230034,Contract Hire,10/10/2023,4188374-134-2023,"2,261.00",REDACTED - PAYMENT TO INDIVIDUAL
Children and Young Peoples Services,Head of Education and Skills,Transport,230013,Contract Hire,10/10/2023,4188374-135-2023,946.00,REDACTED - PAYMENT TO INDIVIDUAL
Children and Young Peoples Services,Head of Education and Skills,Transport,230007,Contract Hire,10/10/2023,4188374-136-2023,"2,716.30",REDACTED - PAYMENT TO INDIVIDUAL
Children and Young Peoples Services,Head of Education and Skills,Transport,230034,Contract Hire,10/10/2023,4188375-1003,"1,035.00",REDACTED - PAYMENT TO INDIVIDUAL
Children and Young Peoples Services,Head of Education and Skills,Transport,230034,Contract Hire,10/10/2023,4188375-4512SEP23,"2,142.00",REDACTED - PAYMENT TO INDIVIDUAL
Children and Young Peoples Services,Head of Education and Skills,Transport,230007,Contract Hire,10/10/2023,4188375-7380SEP23,"2,292.84",REDACTED - PAYMENT TO INDIVIDUAL
Children and Young Peoples Services,Head of Education and Skills,Transport,230010,Contract Hire,10/10/2023,4188375-BL004SEP23,"2,564.81",REDACTED - PAYMENT TO INDIVIDUAL
Children and Young Peoples Services,Head of Education and Skills,Transport,230034,Contract Hire,10/10/2023,4188376-DCC/040/23,"2,025.00",REDACTED - PAYMENT TO INDIVIDUAL
Children and Young Peoples Services,Head of Education and Skills,Transport,230034,Contract Hire,10/10/2023,4188376-DCC/042/23,"2,580.00",REDACTED - PAYMENT TO INDIVIDUAL
Children and Young Peoples Services,Head of Education and Skills,Transport,230034,Contract Hire,10/10/2023,4188377-3070,"1,520.00",REDACTED - PAYMENT TO INDIVIDUAL
Children and Young Peoples Services,Head of Education and Skills,Transport,230006,Contract Hire,10/10/2023,4188378-DCC106,"3,400.00",REDACTED - PAYMENT TO INDIVIDUAL
Children and Young Peoples Services,Head of Education and Skills,Transport,230034,Contract Hire,10/10/2023,4188379-09-23-0681,"1,836.00",REDACTED - PAYMENT TO INDIVIDUAL
Adult and Health Services,Head of Adults,Transport,230005,Contract Hire,10/10/2023,4188380-DM226-16,894.39,REDACTED - PAYMENT TO INDIVIDUAL
Children and Young Peoples Services,Head of Education and Skills,Transport,230010,Contract Hire,10/10/2023,4188381-FERRY0923,"3,999.00",REDACTED - PAYMENT TO INDIVIDUAL
Children and Young Peoples Services,Head of Education and Skills,Transport,230010,Contract Hire,10/10/2023,4188382-1 23-24,"4,440.00",REDACTED - PAYMENT TO INDIVIDUAL
Children and Young Peoples Services,Head of Education and Skills,Transport,230007,Contract Hire,10/10/2023,4188388-301,"2,041.20",REDACTED - PAYMENT TO INDIVIDUAL
Children and Young Peoples Services,Head of Education and Skills,Transport,230034,Contract Hire,10/10/2023,4188427-3002SEP23,"1,800.00",REDACTED - PAYMENT TO INDIVIDUAL
Children and Young Peoples Services,Head of Education and Skills,Transport,230007,Contract Hire,10/10/2023,4188442-4010SEP23,"1,496.48",REDACTED - PAYMENT TO INDIVIDUAL
Children and Young Peoples Services,Head of Education and Skills,Transport,230008,Contract Hire,10/10/2023,4188449-201,"1,087.08",REDACTED - PAYMENT TO INDIVIDUAL
Children and Young Peoples Services,Head of Education and Skills,Transport,230034,Contract Hire,10/10/2023,4188450-155,"1,334.56",REDACTED - PAYMENT TO INDIVIDUAL
Children and Young Peoples Services,Head of Education and Skills,Transport,230034,Contract Hire,10/10/2023,4188452-3013SEP23,825.00,REDACTED - PAYMENT TO INDIVIDUAL
Children and Young Peoples Services,Head of Education and Skills,Transport,230009,Contract Hire,10/10/2023,4188453-7347SEP23,"1,526.74",REDACTED - PAYMENT TO INDIVIDUAL
Children and Young Peoples Services,Head of Education and Skills,Transport,230008,Contract Hire,10/10/2023,4188464-0002509SEPT23,"4,556.74",REDACTED - PAYMENT TO INDIVIDUAL
Children and Young Peoples Services,Head of Education and Skills,Transport,230008,Contract Hire,10/10/2023,4188464-2505SEPT23,"4,261.68",REDACTED - PAYMENT TO INDIVIDUAL
Adult and Health Services,Head of Adults,Transport,230005,Contract Hire,10/10/2023,4188464-2508SEPT23,"6,559.34",REDACTED - PAYMENT TO INDIVIDUAL
Children and Young Peoples Services,Head of Education and Skills,Transport,230007,Contract Hire,10/10/2023,4188464-2510SEPT23,"2,754.00",REDACTED - PAYMENT TO INDIVIDUAL
Regeneration Economy and Growth,Corporate Property and Land,Fees,901002,Consultants fees 901002,10/10/2023,4188259-SN/JC/04809,"2,283.00",CSN CONSULTING LLP.*
Regeneration Economy and Growth,Culture Sport and Tourism,Supplies and Services,384302,Miscellaneous Expenses,10/10/2023,4188302-CAT,"1,022.40",HASWELL CATERING SERVICES LTD.
Children and Young Peoples Services,Head of Childrens Social Care,Supplies and Services,338066,Services,10/10/2023,4188403-INV-304,652.40,PAEDIATRIC & PERINATAL PATHOLOGY SERVICES LTD.
Children and Young Peoples Services,Head of Education and Skills,Transport,230007,Contract Hire,10/10/2023,4188406-832,"2,719.68",PETERLEE EXECUTIVE CARS LTD.
Children and Young Peoples Services,Head of Childrens Social Care,Supplies and Services,364359,Grants to Voluntary Organisations,10/10/2023,4188432-JUN/JUL23,972.00,SECRET GARDEN (DARLINGTON) LTD.
Neighbourhoods and Climate Change,Partnerships & Community Engagement Div.,Supplies and Services,384086,Miscellaneous Expenses,10/10/2023,4188446-VOUCHER23NB-TEES013,"2,000.00",ST MARY`S PARISH HALL ASSOCIATION.
Children and Young Peoples Services,Head of Education and Skills,Supplies and Services,384302,Miscellaneous Expenses,10/10/2023,4188255-4100852893REPROVIDED,600.00,REDACTED - PAYMENT TO INDIVIDUAL
Children and Young Peoples Services,Head of Education and Skills,Transport,230007,Contract Hire,10/10/2023,4188371-INV0001,560.00,REDACTED - PAYMENT TO INDIVIDUAL
Children and Young Peoples Services,Head of Education and Skills,Transfer Payments,510027,School Children,11/10/2023,4188495-SEPT2023TOPUP,808.00,1EXCELLENCE MULTI ACADEMY TRUST.
Children and Young Peoples Services,Head of Education and Skills,Transport,230009,Contract Hire,11/10/2023,4188502-0923/SD,"3,397.08",AABAT TAXIS.
Neighbourhoods and Climate Change,Highways,Supplies and Services,338027,Services,11/10/2023,4188504-6874,"1,122.00",ACADEMY GEOMATICS LTD.
Neighbourhoods and Climate Change,Highways,Supplies and Services,372009,Subscriptions E372,11/10/2023,4188506-1814923,"4,521.42",ACCESS UK LTD.
Children and Young Peoples Services,Head of Education and Skills,Transfer Payments,510027,School Children,11/10/2023,4188507-SEPT2023TOPUP,975.00,ADVANCE LEARNING PARTNERSHIP.
Dedicated Schools Grant BG0015,DSG High Needs Block,Transfer Payments,510025,School Children,11/10/2023,4188508-SEPT2023TOPUP,650.00,ADVANCE LEARNING PARTNERSHIP.
Children and Young Peoples Services,Head of Education and Skills,Transfer Payments,510026,School Children,11/10/2023,4188509-SEPT2023TOPUP,660.00,ADVANCE LEARNING PARTNERSHIP.
Dedicated Schools Grant BG0015,DSG High Needs Block,Transfer Payments,510025,School Children,11/10/2023,4188510-SEPT2023TOPUP,650.00,ADVANCE LEARNING PARTNERSHIP.
Children and Young Peoples Services,Head of Education and Skills,Transfer Payments,510027,School Children,11/10/2023,4188511-SEPT2023TOPUP,538.00,ADVANCE LEARNING PARTNERSHIP.
Dedicated Schools Grant BG0015,DSG High Needs Block,Transfer Payments,510025,School Children,11/10/2023,4188511-SEPT2023TOPUP-1,650.00,ADVANCE LEARNING PARTNERSHIP.
Dedicated Schools Grant BG0015,DSG High Needs Block,Transfer Payments,510025,School Children,11/10/2023,4188512-SEPT2023TOPUP,"1,774.00",ADVENTURE VALLEY DAY NURSERY LTD.
Children and Young Peoples Services,Head of Education and Skills,Transfer Payments,510027,School Children,11/10/2023,4188512-SEPT2023TOPUP-2,"1,473.00",ADVENTURE VALLEY DAY NURSERY LTD.
Neighbourhoods and Climate Change,Environmental Services,Third Party Payments,430100,Rendered by Private Contractors,11/10/2023,4188516-3393,"2,166.00",AJ GUTHRIE & SON.
Neighbourhoods and Climate Change,Environmental Services,Third Party Payments,430100,Rendered by Private Contractors,11/10/2023,4188516-3396,"3,510.00",AJ GUTHRIE & SON.
Children and Young Peoples Services,Head of Early Help Inclusion & Vulnerable Children.,Supplies and Services,308011,Furniture,11/10/2023,4188517-179418,"1,200.00",ALBANY OFFICE EQUIPMENT (WHOLESALE) LTD.
Children and Young Peoples Services,Head of Early Help Inclusion & Vulnerable Children.,Supplies and Services,308011,Furniture,11/10/2023,4188517-179420,"1,350.00",ALBANY OFFICE EQUIPMENT (WHOLESALE) LTD.
Children and Young Peoples Services,Head of Early Help Inclusion & Vulnerable Children.,Supplies and Services,308011,Furniture,11/10/2023,4188517-179458,"1,782.00",ALBANY OFFICE EQUIPMENT (WHOLESALE) LTD.
Regeneration Economy and Growth,Culture Sport and Tourism,Supplies and Services,342051,Computers and Communications,11/10/2023,4188531-INV-0141,"1,560.00",ASPIRECRM LTD.
